Workbook

Sheet Title Page
B8: Preliminary Standardised Metering Pricing Model
B10: Version | C10: 1
B11: Date | C11: 2021-10-25
B14: Status
B16: Notes:
B17: Current model version is in draft form, with test data for consultation purposes
B18: There are no protections currently enabled for non-input cells
B20: Version Summary
B22: Date | C22: Version | D22: Author | E22: Changes
B24: 2021-10-25 | C24: 1 | D24: AER | E24: Consultation version (contains anonymised input data)

Sheet Inputs | General
B1: ='Title Page'!B8&" v"&'Title Page'!$C$10 -> Preliminary Standardised Metering Pricing Model v1 | V1: Worksheet check: | W1: =IF(COUNTA($X$14:$X$46)=COUNTIF($X14:$X47,"OK"),"OK","Check") -> OK
B2: =MID(CELL("filename",A1),FIND("]",CELL("filename",A1))+1,255) -> Inputs | General | I2: Key: | J2: Input | K2: External Link | M2: Internal Link
B5: 1. Inputs - General
C7: Inputs | D7: Source | E7: Input Format | G7: Value
C8: NSP name | D8: NSP | G8: TEST NSP
C9: Decision stage | D9: NSP | G9: draft
C11: Forecast regulatory control period, first year | D11: NSP | E11: YYYY-YY | G11: 2021-22
C12: Forecast regulatory control period, last year | D12: NSP | G12: =LEFT(FPFirstYear,4)+4&"-"&RIGHT(FPFirstYear,2)+4 -> 2025-26
C14: Regulatory Period Length, Yrs | G14: =LEFT(G12,4)-LEFT(FPFirstYear,4)+1 -> 5
C16: Model Used For | G16: Show All Sheets
B21: =LEFT('Inputs | General'!B5,1)+1&". Linked Inputs - Inflation" -> 2. Linked Inputs - Inflation
G24: Base year | H24: Regulatory period
C25: Year | E25: Units | G25: =LEFT(H25,4)-1&"-"&RIGHT(H25,2)-1 -> 2020-21 | H25: =FPFirstYear -> 2021-22 | I25: =LEFT(H25,4)+1&"-"&RIGHT(H25,2)+1 -> 2022-23 | J25: =LEFT(I25,4)+1&"-"&RIGHT(I25,2)+1 -> 2023-24 | K25: 2024-25 | L25: 2025-26
C26: Inflation Assumption (CPI % increase) | E26: % | H26: 0.02424874658 | I26: 0.02424874658 | J26: 0.02424874658 | K26: 0.02424874658 | L26: 0.02424874658
C27: Cumulative Inflation Index (CPI end period) | E27: Index | G27: 1 | H27: =G27*(1+H26) -> 1.024248747 | I27: =H27*(1+I26) -> 1.049085495 | J27: =I27*(1+J26) -> 1.074524503 | K27: =J27*(1+K26) -> 1.100580376 | L27: =K27*(1+L26) -> 1.12726807

Sheet Price Cap >

Sheet Inputs | Price Cap
B1: ='Title Page'!B8&" v"&'Title Page'!$C$10 -> Preliminary Standardised Metering Pricing Model v1 | N1: DNSP: | O1: =IF('Inputs | General'!$G$16="Exit Fees (Vic)","NOT USED",NSP) -> TEST NSP | U1: Worksheet check: | V1: =IF(COUNTA($W$4:$W$71)=COUNTIF($W4:$W72,"OK"),"OK","Check") -> OK
B2: =MID(CELL("filename",A1),FIND("]",CELL("filename",A1))+1,255) -> Inputs | Price Cap | H2: Key: | I2: Input | J2: External Link | K2: Internal Link
B5: =LEFT('Inputs | General'!B21,1)+1&". Linked Input - Inflation & Discount Rates" -> 3. Linked Input - Inflation & Discount Rates | J5: =IF('Inputs | General'!$G$16="Exit Fees (Vic)","NOT USED","") -> 
B7: Linked Inputs - Discount Rates | G7: Base year | H7: Regulatory period
C8: Year | E8: Units | G8: =LEFT(H8,4)-1&"-"&RIGHT(H8,2)-1 -> 2020-21 | H8: =FPFirstYear -> 2021-22 | I8: =LEFT(H8,4)+1&"-"&RIGHT(H8,2)+1 -> 2022-23 | J8: =LEFT(I8,4)+1&"-"&RIGHT(I8,2)+1 -> 2023-24 | K8: 2024-25 | L8: 2025-26 | N8: Link from PTRM
C9: Nominal Vanilla WACC | E9: % | H9: 0.05 | I9: 0.05 | J9: 0.05 | K9: 0.05 | L9: 0.05
C10: Cumulative Discount Index | E10: Index | G10: 1 | H10: =G10*(1+H9) -> 1.05 | I10: =H10*(1+I9) -> 1.1025 | J10: =I10*(1+J9) -> 1.157625 | K10: =J10*(1+K9) -> 1.21550625 | L10: =K10*(1+L9) -> 1.276281563
B15: =LEFT(B5,1)+1&". Linked Input - Building Block Revenue Requirements" -> 4. Linked Input - Building Block Revenue Requirements | J15: =IF('Inputs | General'!$G$16="Exit Fees (Vic)","NOT USED","") -> 
B17: Linked Inputs - Unsmoothed revenue requirement
E19: Units | H19: =FPFirstYear -> 2021-22 | I19: =LEFT(H19,4)+1&"-"&RIGHT(H19,2)+1 -> 2022-23 | J19: =LEFT(I19,4)+1&"-"&RIGHT(I19,2)+1 -> 2023-24 | K19: 2024-25 | L19: 2025-26 | N19: Link from PTRM
C20: Return on Capital | E20: $m | H20: 12 | I20: 11 | J20: 10 | K20: 9 | L20: 8
C21: Return of Capital (regulatory depreciation) | E21: $m | H21: 18 | I21: 20 | J21: 21 | K21: 22 | L21: 23
C22: Operating Expenditure | E22: $m | H22: 20 | I22: 19.5 | J22: 19 | K22: 18.5 | L22: 18
C23: Revenue Adjustments | E23: $m | H23: 0 | I23: 0 | J23: 0 | K23: 0 | L23: 0
C24: Net Tax Allowance | E24: $m | H24: 0.1 | I24: 0.1 | J24: 0.1 | K24: 0.1 | L24: 0.1
C25: Annual Revenue Requirement (unsmoothed) | E25: $m | H25: =SUM(H20:H24) -> 50.1 | I25: =SUM(I20:I24) -> 50.6 | J25: =SUM(J20:J24) -> 50.1 | K25: =SUM(K20:K24) -> 49.6 | L25: =SUM(L20:L24) -> 49.1
C27: Non-Capital Component | E27: $m | H27: =H22 -> 20 | I27: =I22 -> 19.5 | J27: =J22 -> 19 | K27: =K22 -> 18.5 | L27: =L22 -> 18
C28: Capital Component | E28: $m | H28: =SUM(H20:H21,H23:H24) -> 30.1 | I28: =SUM(I20:I21,I23:I24) -> 31.1 | J28: =SUM(J20:J21,J23:J24) -> 31.1 | K28: =SUM(K20:K21,K23:K24) -> 31.1 | L28: =SUM(L20:L21,L23:L24) -> 31.1
H29: =(H27+H28=H25)/1 -> 1 | I29: =(I27+I28=I25)/1 -> 1 | J29: =(J27+J28=J25)/1 -> 1 | K29: =(K27+K28=K25)/1 -> 1 | L29: =(L27+L28=L25)/1 -> 1
B31: NPV of unsmoothed revenue requirement
E32: Units | G32: NPV
C33: Non-capital | E33: $m | G33: =SUMPRODUCT($H27:$L27,1/$H$10:$L$10) -> 82.47107503
C34: Capital | E34: $m | G34: =SUMPRODUCT($H28:$L28,1/$H$10:$L$10) -> 133.6943435
C35: Total | E35: $m | G35: =G33+G34 -> 216.1654185
B39: =LEFT(B15,1)+1&". Input - Base Year Tariffs, Base Year Volume & Volume Forecast" -> 5. Input - Base Year Tariffs, Base Year Volume & Volume Forecast
H41: =LEFT(J42,4)-1&"-"&RIGHT(J42,2)-1 -> 2020-21 | I41: =LEFT(J42,4)-1&"-"&RIGHT(J42,2)-1 -> 2020-21 | J41: Volume Forecast
A42: ▼ Table Filters | C42: Tariff # | D42: Tariff name | E42: Application | F42: Tariff Code | G42: Other designation | H42: Base year tariff ($/year) | I42: Base year volume | J42: =FPFirstYear -> 2021-22 | K42: =LEFT(J42,4)+1&"-"&RIGHT(J42,2)+1 -> 2022-23 | L42: =LEFT(K42,4)+1&"-"&RIGHT(K42,2)+1 -> 2023-24 | M42: 2024-25 | N42: 2025-26
C43: Tariff # | D43: Tariff name | E43: Application | F43: Tariff Code | G43: Other designation | H43: Base year tariff ($/year) | I43: Base year volume | J43: F-RP0 | K43: F-RP+1 | L43: F-RP+2 | M43: F-RP+3 | N43: F-RP+4
C44: 1 | D44: =D45 -> Residential Non ToU | E44: Non-capital | F44: =F45 -> R1 | G44: =G45 -> Primary | H44: 10 | I44: 1000000 | J44: =Table4[[#This Row],[Base year volume]]*0.9 -> 900000 | K44: =Table4[[#This Row],[F-RP0]]*0.9 -> 810000 | L44: =Table4[[#This Row],[F-RP+1]]*0.9 -> 729000 | M44: =Table4[[#This Row],[F-RP+2]]*0.9 -> 656100 | N44: =Table4[[#This Row],[F-RP+3]]*0.9 -> 590490
C45: 1 | D45: =D46 -> Residential Non ToU | E45: Capital | F45: =F46 -> R1 | G45: =G46 -> Primary | H45: 20 | I45: 1100000 | J45: =Table4[[#This Row],[Base year volume]] -> 1100000 | K45: =Table4[[#This Row],[F-RP0]] -> 1100000 | L45: =Table4[[#This Row],[F-RP+1]] -> 1100000 | M45: =Table4[[#This Row],[F-RP+2]] -> 1100000 | N45: =Table4[[#This Row],[F-RP+3]] -> 1100000
C46: 1 | D46: Residential Non ToU | E46: Total | F46: R1 | G46: Primary | H46: =H44+H45 -> 30
C47: 2 | D47: =D48 -> Residential ToU | E47: Non-capital | F47: =F48 -> R2 | G47: Primary | H47: 20 | I47: 300000 | J47: =Table4[[#This Row],[Base year volume]]*0.9 -> 270000 | K47: =Table4[[#This Row],[F-RP0]]*0.9 -> 243000 | L47: =Table4[[#This Row],[F-RP+1]]*0.9 -> 218700 | M47: =Table4[[#This Row],[F-RP+2]]*0.9 -> 196830 | N47: =Table4[[#This Row],[F-RP+3]]*0.9 -> 177147
C48: 2 | D48: Residential ToU | E48: Capital | F48: R2 | G48: Primary | H48: 20 | I48: 330000 | J48: =Table4[[#This Row],[Base year volume]] -> 330000 | K48: =Table4[[#This Row],[F-RP0]] -> 330000 | L48: =Table4[[#This Row],[F-RP+1]] -> 330000 | M48: =Table4[[#This Row],[F-RP+2]] -> 330000 | N48: =Table4[[#This Row],[F-RP+3]] -> 330000
C49: 2 | D49: Residential ToU | E49: Total | F49: R2 | G49: Primary | H49: =H47+H48 -> 40
C50: 3 | D50: =D51 -> Controlled load | E50: Non-capital | F50: =F51 -> B1 | G50: Secondary | H50: 1 | I50: 300000 | J50: =Table4[[#This Row],[Base year volume]]*0.9 -> 270000 | K50: =Table4[[#This Row],[F-RP0]]*0.9 -> 243000 | L50: =Table4[[#This Row],[F-RP+1]]*0.9 -> 218700 | M50: =Table4[[#This Row],[F-RP+2]]*0.9 -> 196830 | N50: =Table4[[#This Row],[F-RP+3]]*0.9 -> 177147
C51: 3 | D51: Controlled load | E51: Capital | F51: B1 | G51: Secondary | H51: 10 | I51: 330000 | J51: =Table4[[#This Row],[Base year volume]] -> 330000 | K51: =Table4[[#This Row],[F-RP0]] -> 330000 | L51: =Table4[[#This Row],[F-RP+1]] -> 330000 | M51: =Table4[[#This Row],[F-RP+2]] -> 330000 | N51: =Table4[[#This Row],[F-RP+3]] -> 330000
C52: 3 | D52: Controlled load | E52: Total | F52: B1 | G52: Secondary | H52: =H50+H51 -> 11
C53: 4 | D53: =D54 -> Small Business Non ToU | E53: Non-capital | F53: =F54 -> B2 | G53: Primary | H53: 10 | I53: 50000 | J53: =Table4[[#This Row],[Base year volume]]*0.9 -> 45000 | K53: =Table4[[#This Row],[F-RP0]]*0.9 -> 40500 | L53: =Table4[[#This Row],[F-RP+1]]*0.9 -> 36450 | M53: =Table4[[#This Row],[F-RP+2]]*0.9 -> 32805 | N53: =Table4[[#This Row],[F-RP+3]]*0.9 -> 29524.5
C54: 4 | D54: Small Business Non ToU | E54: Capital | F54: B2 | G54: Primary | H54: 30 | I54: 55000 | J54: =Table4[[#This Row],[Base year volume]] -> 55000 | K54: =Table4[[#This Row],[F-RP0]] -> 55000 | L54: =Table4[[#This Row],[F-RP+1]] -> 55000 | M54: =Table4[[#This Row],[F-RP+2]] -> 55000 | N54: =Table4[[#This Row],[F-RP+3]] -> 55000
C55: 4 | D55: Small Business Non ToU | E55: Total | F55: B2 | G55: Primary | H55: =H53+H54 -> 40
C56: 5 | D56: =D57 -> Small Business ToU | E56: Non-capital | F56: =F57 -> LV1 | G56: Primary | H56: 25 | I56: 50000 | J56: =Table4[[#This Row],[Base year volume]]*0.9 -> 45000 | K56: =Table4[[#This Row],[F-RP0]]*0.9 -> 40500 | L56: =Table4[[#This Row],[F-RP+1]]*0.9 -> 36450 | M56: =Table4[[#This Row],[F-RP+2]]*0.9 -> 32805 | N56: =Table4[[#This Row],[F-RP+3]]*0.9 -> 29524.5
C57: 5 | D57: Small Business ToU | E57: Capital | F57: LV1 | G57: Primary | H57: 20 | I57: 55000 | J57: =Table4[[#This Row],[Base year volume]] -> 55000 | K57: =Table4[[#This Row],[F-RP0]] -> 55000 | L57: =Table4[[#This Row],[F-RP+1]] -> 55000 | M57: =Table4[[#This Row],[F-RP+2]] -> 55000 | N57: =Table4[[#This Row],[F-RP+3]] -> 55000
A58: ▼ More Rows | C58: 5 | D58: Small Business ToU | E58: Total | F58: LV1 | G58: Primary | H58: =H56+H57 -> 45
C59: 6 | D59: =D60 -> LV 40-160 MWh (System) | E59: Non-capital | F59: =F60 -> 0 | G59: 0 | H59: 45 | I59: 10000 | J59: =Table4[[#This Row],[Base year volume]]*0.9 -> 9000 | K59: =Table4[[#This Row],[F-RP0]]*0.9 -> 8100 | L59: =Table4[[#This Row],[F-RP+1]]*0.9 -> 7290 | M59: =Table4[[#This Row],[F-RP+2]]*0.9 -> 6561 | N59: =Table4[[#This Row],[F-RP+3]]*0.9 -> 5904.9
C60: 6 | D60: LV 40-160 MWh (System) | E60: Capital | F60: 0 | G60: 0 | H60: 25 | I60: 10000 | J60: =Table4[[#This Row],[Base year volume]] -> 10000 | K60: =Table4[[#This Row],[F-RP0]] -> 10000 | L60: =Table4[[#This Row],[F-RP+1]] -> 10000 | M60: =Table4[[#This Row],[F-RP+2]] -> 10000 | N60: =Table4[[#This Row],[F-RP+3]] -> 10000
C61: 6 | D61: LV 40-160 MWh (System) | E61: Total | F61: 0 | G61: 0 | H61: =H59+H60 -> 70
C62: 7 | D62: =D63 -> 0 | E62: Non-capital | F62: =F63 -> 0 | G62: 0
C63: 7 | D63: 0 | E63: Capital | F63: 0 | G63: 0
C64: 7 | D64: 0 | E64: Total | F64: 0 | G64: 0 | H64: =H62+H63 -> 0
C65: 8 | D65: =D66 -> 0 | E65: Non-capital | F65: =F66 -> 0 | G65: 0
C66: 8 | D66: 0 | E66: Capital | F66: 0 | G66: 0
C67: 8 | D67: 0 | E67: Total | F67: 0 | G67: 0 | H67: =H65+H66 -> 0
C68: 9 | D68: =D69 -> 0 | E68: Non-capital | F68: =F69 -> 0 | G68: 0
C69: 9 | D69: 0 | E69: Capital | F69: 0 | G69: 0
C70: 9 | D70: 0 | E70: Total | F70: 0 | G70: 0 | H70: =H68+H69 -> 0
C71: 10 | D71: =D72 -> 0 | E71: Non-capital | F71: =F72 -> 0 | G71: 0
C72: 10 | D72: 0 | E72: Capital | F72: 0 | G72: 0
C73: 10 | D73: 0 | E73: Total | F73: 0 | G73: 0 | H73: =H71+H72 -> 0
C74: 11 | D74: =D75 -> 0 | E74: Non-capital | F74: =F75 -> 0 | G74: 0
C75: 11 | D75: 0 | E75: Capital | F75: 0 | G75: 0
C76: 11 | D76: 0 | E76: Total | F76: 0 | G76: 0 | H76: =H74+H75 -> 0
C77: 12 | D77: =D78 -> 0 | E77: Non-capital | F77: =F78 -> 0 | G77: 0
C78: 12 | D78: 0 | E78: Capital | F78: 0 | G78: 0
C79: 12 | D79: 0 | E79: Total | F79: 0 | G79: 0 | H79: =H77+H78 -> 0
C80: 13 | D80: =D81 -> 0 | E80: Non-capital | F80: =F81 -> 0 | G80: 0
C81: 13 | D81: 0 | E81: Capital | F81: 0 | G81: 0
C82: 13 | D82: 0 | E82: Total | F82: 0 | G82: 0 | H82: =H80+H81 -> 0
C83: 14 | D83: =D84 -> 0 | E83: Non-capital | F83: =F84 -> 0 | G83: 0
C84: 14 | D84: 0 | E84: Capital | F84: 0 | G84: 0
C85: 14 | D85: 0 | E85: Total | F85: 0 | G85: 0 | H85: =H83+H84 -> 0
C86: 15 | D86: =D87 -> 0 | E86: Non-capital | F86: =F87 -> 0 | G86: 0
C87: 15 | D87: 0 | E87: Capital | F87: 0 | G87: 0
C88: 15 | D88: 0 | E88: Total | F88: 0 | G88: 0 | H88: =H86+H87 -> 0
D90: Total | E90: Non-capital | I90: =SUMIFS(Table4[Base year volume],Table4[[Application]:[Application]],$E90) -> 1710000 | J90: =SUMIFS(Table4[F-RP0],Table4[[Application]:[Application]],$E90) -> 1539000 | K90: =SUMIFS(Table4[F-RP+1],Table4[[Application]:[Application]],$E90) -> 1385100 | L90: =SUMIFS(Table4[F-RP+2],Table4[[Application]:[Application]],$E90) -> 1246590 | M90: =SUMIFS(Table4[F-RP+3],Table4[[Application]:[Application]],$E90) -> 1121931 | N90: =SUMIFS(Table4[F-RP+4],Table4[[Application]:[Application]],$E90) -> 1009737.9
D91: Total | E91: Capital | I91: =SUMIFS(Table4[Base year volume],Table4[[Application]:[Application]],$E91) -> 1880000 | J91: =SUMIFS(Table4[F-RP0],Table4[[Application]:[Application]],$E91) -> 1880000 | K91: =SUMIFS(Table4[F-RP+1],Table4[[Application]:[Application]],$E91) -> 1880000 | L91: =SUMIFS(Table4[F-RP+2],Table4[[Application]:[Application]],$E91) -> 1880000 | M91: =SUMIFS(Table4[F-RP+3],Table4[[Application]:[Application]],$E91) -> 1880000 | N91: =SUMIFS(Table4[F-RP+4],Table4[[Application]:[Application]],$E91) -> 1880000
B95: =LEFT(B39,1)+1&". Set X-Factors" -> 6. Set X-Factors
A97: Price cap calculation
B99: 1: Non-capital
C101: Unsmoothed - Annual Revenue Requirement | E101: ='Calc | Price Cap'!I59/10^6 -> 18.5 | F101: ='Inputs | Price Cap'!H27 -> 20 | G101: ='Inputs | Price Cap'!I27 -> 19.5 | H101: ='Inputs | Price Cap'!J27 -> 19 | I101: ='Inputs | Price Cap'!K27 -> 18.5 | J101: ='Inputs | Price Cap'!L27 -> 18 | L101: ='Inputs | Price Cap'!G33 -> 82.47107503 | M101: NPV (unsmoothed)
F103: =F106-E101 -> 3.21052 | G103: First year difference ($m) | L103: =J101-I101 -> -0.5 | M103: Final year difference ($m)
F104: =(F106/E101)-1 -> 0.1735416216 | G104: First year difference (%) | L104: =(J101/I101)-1 -> -0.02702702703 | M104: Final year difference (%)
C106: Smoothed - Expected Revenue | E106: ='Calc | Price Cap'!I59/10^6 -> 18.5 | F106: ='Calc | Price Cap'!J59/10^6 -> 21.71052 | G106: ='Calc | Price Cap'!K59/10^6 -> 20.212335 | H106: ='Calc | Price Cap'!L59/10^6 -> 18.8227071 | I106: ='Calc | Price Cap'!M59/10^6 -> 17.52351246 | J106: ='Calc | Price Cap'!N59/10^6 -> 16.31701017 | L106: =SUMPRODUCT($F106:$J106,1/'Inputs | Price Cap'!$H$10:$L$10) -> 82.47107298 | M106: NPV (smoothed)
C108: X Factors | F108: P_0 | G108: X_02 | H108: X_03 | I108: X_04 | J108: X_05
C109: positive P0, X imply real decrease in price/ revenue constraint | F109: -0.273156522 | G109: -0.01 | H109: -0.01 | I109: -0.01 | J109: -0.01 | L109: =L101-L106 -> 2.048235359e-06 | M109: NPV difference (smoothed vs unsmoothed)
B115: 2: Capital
C117: Unsmoothed - Annual Revenue Requirement | E117: ='Calc | Price Cap'!I60/10^6 -> 34.9 | F117: ='Inputs | Price Cap'!H28 -> 30.1 | G117: ='Inputs | Price Cap'!I28 -> 31.1 | H117: ='Inputs | Price Cap'!J28 -> 31.1 | I117: ='Inputs | Price Cap'!K28 -> 31.1 | J117: ='Inputs | Price Cap'!L28 -> 31.1 | L117: ='Inputs | Price Cap'!G34 -> 133.6943435 | M117: NPV (unsmoothed)
F119: =F122-E117 -> -3.63025 | G119: First year difference ($m) | L119: =J117-I117 -> 0 | M119: Final year difference ($m)
F120: =(F122/E117)-1 -> -0.1040186246 | G120: First year difference (%) | L120: =(J117/I117)-1 -> 0 | M120: Final year difference (%)
C122: Smoothed - Expected Revenue | E122: ='Calc | Price Cap'!I60/10^6 -> 34.9 | F122: ='Calc | Price Cap'!J60/10^6 -> 31.26975 | G122: ='Calc | Price Cap'!K60/10^6 -> 31.0609 | H122: ='Calc | Price Cap'!L60/10^6 -> 30.85215 | I122: ='Calc | Price Cap'!M60/10^6 -> 30.65825 | J122: ='Calc | Price Cap'!N60/10^6 -> 30.46435 | L122: =SUMPRODUCT($F122:$J122,1/'Inputs | Price Cap'!$H$10:$L$10) -> 133.6973469 | M122: NPV (smoothed)
C124: X Factors | F124: P_0 | G124: X_02 | H124: X_03 | I124: X_04 | J124: X_05
C125: positive P0, X imply real decrease in price/ revenue constraint | F125: 0.1254211795 | G125: 0.03 | H125: 0.03 | I125: 0.03 | J125: 0.03 | L125: =L117-L122 -> -0.003003391689 | M125: NPV difference (smoothed vs unsmoothed)

Sheet Calc | Price Cap
B1: ='Title Page'!B8&" v"&'Title Page'!$C$10 -> Preliminary Standardised Metering Pricing Model v1 | M1: DNSP: | N1: =IF('Inputs | General'!$G$16="Exit Fees (Vic)","NOT USED",NSP) -> TEST NSP
B2: =MID(CELL("filename",A1),FIND("]",CELL("filename",A1))+1,255) -> Calc | Price Cap | H2: Key: | I2: Input | J2: External Link | K2: Internal Link
B5: Annual Charges Calculations
B7: Annual Smoothed Revenue Calculation
I8: Base Year Revenue | J8: Annual Revenue
A9: ▼ Table Filters | C9: Tariff # | D9: Tariff name | E9: Application | F9: Tariff Code | G9: Other designation | I9: =LEFT(J9,4)-1&"-"&RIGHT(J9,2)-1 -> 2020-21 | J9: =FPFirstYear -> 2021-22 | K9: =LEFT(J9,4)+1&"-"&RIGHT(J9,2)+1 -> 2022-23 | L9: =LEFT(K9,4)+1&"-"&RIGHT(K9,2)+1 -> 2023-24 | M9: 2024-25 | N9: 2025-26
C10: Tariff # | D10: Tariff name | E10: Application | F10: Tariff Code | G10: Other designation | H10: Column1 | I10: F-RP-1 | J10: F-RP0 | K10: F-RP+1 | L10: F-RP+2 | M10: F-RP+3 | N10: F-RP+4
C11: 1 | D11: ='Inputs | Price Cap'!D44 -> Residential Non ToU | E11: Non-capital | F11: ='Inputs | Price Cap'!F44 -> R1 | G11: ='Inputs | Price Cap'!G44 -> Primary | I11: ='Output | Price Caps'!$I9*'Inputs | Price Cap'!I44 -> 10000000 | J11: ='Output | Price Caps'!J9*'Inputs | Price Cap'!J44 -> 11736000 | K11: ='Output | Price Caps'!K9*'Inputs | Price Cap'!K44 -> 10926900 | L11: ='Output | Price Caps'!L9*'Inputs | Price Cap'!L44 -> 10176840 | M11: ='Output | Price Caps'!M9*'Inputs | Price Cap'!M44 -> 9474084 | N11: ='Output | Price Caps'!N9*'Inputs | Price Cap'!N44 -> 8821920.6
C12: 1 | D12: ='Inputs | Price Cap'!D45 -> Residential Non ToU | E12: Capital | F12: ='Inputs | Price Cap'!F45 -> R1 | G12: ='Inputs | Price Cap'!G45 -> Primary | I12: ='Output | Price Caps'!$I10*'Inputs | Price Cap'!I45 -> 22000000 | J12: ='Output | Price Caps'!J10*'Inputs | Price Cap'!J45 -> 19712000 | K12: ='Output | Price Caps'!K10*'Inputs | Price Cap'!K45 -> 19580000 | L12: ='Output | Price Caps'!L10*'Inputs | Price Cap'!L45 -> 19448000 | M12: ='Output | Price Caps'!M10*'Inputs | Price Cap'!M45 -> 19327000 | N12: ='Output | Price Caps'!N10*'Inputs | Price Cap'!N45 -> 19206000
C13: 1 | D13: ='Inputs | Price Cap'!D46 -> Residential Non ToU | E13: Total | F13: ='Inputs | Price Cap'!F46 -> R1 | G13: ='Inputs | Price Cap'!G46 -> Primary | I13: =I11+I12 -> 32000000 | J13: 31448000 | K13: 30506900 | L13: 29624840 | M13: 28801084 | N13: 28027920.6
C14: 2 | D14: ='Inputs | Price Cap'!D47 -> Residential ToU | E14: Non-capital | F14: ='Inputs | Price Cap'!F47 -> R2 | G14: ='Inputs | Price Cap'!G47 -> Primary | I14: ='Output | Price Caps'!$I12*'Inputs | Price Cap'!I47 -> 6000000 | J14: ='Output | Price Caps'!J12*'Inputs | Price Cap'!J47 -> 7041600 | K14: ='Output | Price Caps'!K12*'Inputs | Price Cap'!K47 -> 6556140 | L14: ='Output | Price Caps'!L12*'Inputs | Price Cap'!L47 -> 6103917 | M14: ='Output | Price Caps'!M12*'Inputs | Price Cap'!M47 -> 5682482.1 | N14: ='Output | Price Caps'!N12*'Inputs | Price Cap'!N47 -> 5291380.89
C15: 2 | D15: ='Inputs | Price Cap'!D48 -> Residential ToU | E15: Capital | F15: ='Inputs | Price Cap'!F48 -> R2 | G15: ='Inputs | Price Cap'!G48 -> Primary | I15: ='Output | Price Caps'!$I13*'Inputs | Price Cap'!I48 -> 6600000 | J15: ='Output | Price Caps'!J13*'Inputs | Price Cap'!J48 -> 5913600 | K15: ='Output | Price Caps'!K13*'Inputs | Price Cap'!K48 -> 5874000 | L15: ='Output | Price Caps'!L13*'Inputs | Price Cap'!L48 -> 5834400 | M15: ='Output | Price Caps'!M13*'Inputs | Price Cap'!M48 -> 5798100 | N15: ='Output | Price Caps'!N13*'Inputs | Price Cap'!N48 -> 5761800
C16: 2 | D16: ='Inputs | Price Cap'!D49 -> Residential ToU | E16: Total | F16: ='Inputs | Price Cap'!F49 -> R2 | G16: ='Inputs | Price Cap'!G49 -> Primary | I16: =I14+I15 -> 12600000 | J16: 12955200 | K16: 12430140 | L16: 11938317 | M16: 11480582.1 | N16: 11053180.89
C17: 3 | D17: ='Inputs | Price Cap'!D50 -> Controlled load | E17: Non-capital | F17: ='Inputs | Price Cap'!F50 -> B1 | G17: ='Inputs | Price Cap'!G50 -> Secondary | I17: ='Output | Price Caps'!$I15*'Inputs | Price Cap'!I50 -> 300000 | J17: ='Output | Price Caps'!J15*'Inputs | Price Cap'!J50 -> 351000 | K17: ='Output | Price Caps'!K15*'Inputs | Price Cap'!K50 -> 325620 | L17: ='Output | Price Caps'!L15*'Inputs | Price Cap'!L50 -> 303993 | M17: ='Output | Price Caps'!M15*'Inputs | Price Cap'!M50 -> 283435.2 | N17: ='Output | Price Caps'!N15*'Inputs | Price Cap'!N50 -> 263949.03
C18: 3 | D18: ='Inputs | Price Cap'!D51 -> Controlled load | E18: Capital | F18: ='Inputs | Price Cap'!F51 -> B1 | G18: ='Inputs | Price Cap'!G51 -> Secondary | I18: ='Output | Price Caps'!$I16*'Inputs | Price Cap'!I51 -> 3300000 | J18: ='Output | Price Caps'!J16*'Inputs | Price Cap'!J51 -> 2956800 | K18: ='Output | Price Caps'!K16*'Inputs | Price Cap'!K51 -> 2937000 | L18: ='Output | Price Caps'!L16*'Inputs | Price Cap'!L51 -> 2917200 | M18: ='Output | Price Caps'!M16*'Inputs | Price Cap'!M51 -> 2897400 | N18: ='Output | Price Caps'!N16*'Inputs | Price Cap'!N51 -> 2877600
C19: 3 | D19: ='Inputs | Price Cap'!D52 -> Controlled load | E19: Total | F19: ='Inputs | Price Cap'!F52 -> B1 | G19: ='Inputs | Price Cap'!G52 -> Secondary | I19: =I17+I18 -> 3600000 | J19: 3307800 | K19: 3262620 | L19: 3221193 | M19: 3180835.2 | N19: 3141549.03
C20: 4 | D20: ='Inputs | Price Cap'!D53 -> Small Business Non ToU | E20: Non-capital | F20: ='Inputs | Price Cap'!F53 -> B2 | G20: ='Inputs | Price Cap'!G53 -> Primary | I20: ='Output | Price Caps'!$I18*'Inputs | Price Cap'!I53 -> 500000 | J20: ='Output | Price Caps'!J18*'Inputs | Price Cap'!J53 -> 586800 | K20: ='Output | Price Caps'!K18*'Inputs | Price Cap'!K53 -> 546345 | L20: ='Output | Price Caps'!L18*'Inputs | Price Cap'!L53 -> 508842 | M20: ='Output | Price Caps'!M18*'Inputs | Price Cap'!M53 -> 473704.2 | N20: ='Output | Price Caps'!N18*'Inputs | Price Cap'!N53 -> 441096.03
C21: 4 | D21: ='Inputs | Price Cap'!D54 -> Small Business Non ToU | E21: Capital | F21: ='Inputs | Price Cap'!F54 -> B2 | G21: ='Inputs | Price Cap'!G54 -> Primary | I21: ='Output | Price Caps'!$I19*'Inputs | Price Cap'!I54 -> 1650000 | J21: ='Output | Price Caps'!J19*'Inputs | Price Cap'!J54 -> 1477850 | K21: ='Output | Price Caps'!K19*'Inputs | Price Cap'!K54 -> 1468500 | L21: ='Output | Price Caps'!L19*'Inputs | Price Cap'!L54 -> 1459150 | M21: ='Output | Price Caps'!M19*'Inputs | Price Cap'!M54 -> 1449800 | N21: ='Output | Price Caps'!N19*'Inputs | Price Cap'!N54 -> 1440450
C22: 4 | D22: ='Inputs | Price Cap'!D55 -> Small Business Non ToU | E22: Total | F22: ='Inputs | Price Cap'!F55 -> B2 | G22: ='Inputs | Price Cap'!G55 -> Primary | I22: =I20+I21 -> 2150000 | J22: 2064650 | K22: 2014845 | L22: 1967992 | M22: 1923504.2 | N22: 1881546.03
C23: 5 | D23: ='Inputs | Price Cap'!D56 -> Small Business ToU | E23: Non-capital | F23: ='Inputs | Price Cap'!F56 -> LV1 | G23: ='Inputs | Price Cap'!G56 -> Primary | I23: ='Output | Price Caps'!$I21*'Inputs | Price Cap'!I56 -> 1250000 | J23: ='Output | Price Caps'!J21*'Inputs | Price Cap'!J56 -> 1467000 | K23: ='Output | Price Caps'!K21*'Inputs | Price Cap'!K56 -> 1365660 | L23: ='Output | Price Caps'!L21*'Inputs | Price Cap'!L56 -> 1271376 | M23: ='Output | Price Caps'!M21*'Inputs | Price Cap'!M56 -> 1183604.4 | N23: ='Output | Price Caps'!N21*'Inputs | Price Cap'!N56 -> 1101854.34
C24: 5 | D24: ='Inputs | Price Cap'!D57 -> Small Business ToU | E24: Capital | F24: ='Inputs | Price Cap'!F57 -> LV1 | G24: ='Inputs | Price Cap'!G57 -> Primary | I24: ='Output | Price Caps'!$I22*'Inputs | Price Cap'!I57 -> 1100000 | J24: ='Output | Price Caps'!J22*'Inputs | Price Cap'!J57 -> 985600 | K24: ='Output | Price Caps'!K22*'Inputs | Price Cap'!K57 -> 979000 | L24: ='Output | Price Caps'!L22*'Inputs | Price Cap'!L57 -> 972400 | M24: ='Output | Price Caps'!M22*'Inputs | Price Cap'!M57 -> 966350 | N24: ='Output | Price Caps'!N22*'Inputs | Price Cap'!N57 -> 960300
A25: ▼ More Rows | C25: 5 | D25: ='Inputs | Price Cap'!D58 -> Small Business ToU | E25: Total | F25: ='Inputs | Price Cap'!F58 -> LV1 | G25: ='Inputs | Price Cap'!G58 -> Primary | I25: =I23+I24 -> 2350000 | J25: 2452600 | K25: 2344660 | L25: 2243776 | M25: 2149954.4 | N25: 2062154.34
C26: 6 | D26: ='Inputs | Price Cap'!D59 -> LV 40-160 MWh (System) | E26: Non-capital | F26: ='Inputs | Price Cap'!F59 -> 0 | G26: ='Inputs | Price Cap'!G59 -> 0 | I26: ='Output | Price Caps'!$I24*'Inputs | Price Cap'!I59 -> 450000 | J26: ='Output | Price Caps'!J24*'Inputs | Price Cap'!J59 -> 528120 | K26: ='Output | Price Caps'!K24*'Inputs | Price Cap'!K59 -> 491670 | L26: ='Output | Price Caps'!L24*'Inputs | Price Cap'!L59 -> 457739.1 | M26: ='Output | Price Caps'!M24*'Inputs | Price Cap'!M59 -> 426202.56 | N26: ='Output | Price Caps'!N24*'Inputs | Price Cap'!N59 -> 396809.28
C27: 6 | D27: ='Inputs | Price Cap'!D60 -> LV 40-160 MWh (System) | E27: Capital | F27: ='Inputs | Price Cap'!F60 -> 0 | G27: ='Inputs | Price Cap'!G60 -> 0 | I27: ='Output | Price Caps'!$I25*'Inputs | Price Cap'!I60 -> 250000 | J27: ='Output | Price Caps'!J25*'Inputs | Price Cap'!J60 -> 223900 | K27: ='Output | Price Caps'!K25*'Inputs | Price Cap'!K60 -> 222400 | L27: ='Output | Price Caps'!L25*'Inputs | Price Cap'!L60 -> 221000 | M27: ='Output | Price Caps'!M25*'Inputs | Price Cap'!M60 -> 219600 | N27: ='Output | Price Caps'!N25*'Inputs | Price Cap'!N60 -> 218200
C28: 6 | D28: ='Inputs | Price Cap'!D61 -> LV 40-160 MWh (System) | E28: Total | F28: ='Inputs | Price Cap'!F61 -> 0 | G28: ='Inputs | Price Cap'!G61 -> 0 | I28: =I26+I27 -> 700000 | J28: 752020 | K28: 714070 | L28: 678739.1 | M28: 645802.56 | N28: 615009.28
C29: 7 | D29: ='Inputs | Price Cap'!D62 -> 0 | E29: Non-capital | F29: ='Inputs | Price Cap'!F62 -> 0 | G29: ='Inputs | Price Cap'!G62 -> 0 | I29: ='Output | Price Caps'!$I27*'Inputs | Price Cap'!I62 -> 0 | J29: ='Output | Price Caps'!J27*'Inputs | Price Cap'!J62 -> 0 | K29: ='Output | Price Caps'!K27*'Inputs | Price Cap'!K62 -> 0 | L29: ='Output | Price Caps'!L27*'Inputs | Price Cap'!L62 -> 0 | M29: ='Output | Price Caps'!M27*'Inputs | Price Cap'!M62 -> 0 | N29: ='Output | Price Caps'!N27*'Inputs | Price Cap'!N62 -> 0
C30: 7 | D30: ='Inputs | Price Cap'!D63 -> 0 | E30: Capital | F30: ='Inputs | Price Cap'!F63 -> 0 | G30: ='Inputs | Price Cap'!G63 -> 0 | I30: ='Output | Price Caps'!$I28*'Inputs | Price Cap'!I63 -> 0 | J30: ='Output | Price Caps'!J28*'Inputs | Price Cap'!J63 -> 0 | K30: ='Output | Price Caps'!K28*'Inputs | Price Cap'!K63 -> 0 | L30: ='Output | Price Caps'!L28*'Inputs | Price Cap'!L63 -> 0 | M30: ='Output | Price Caps'!M28*'Inputs | Price Cap'!M63 -> 0 | N30: ='Output | Price Caps'!N28*'Inputs | Price Cap'!N63 -> 0
C31: 7 | D31: ='Inputs | Price Cap'!D64 -> 0 | E31: Total | F31: ='Inputs | Price Cap'!F64 -> 0 | G31: ='Inputs | Price Cap'!G64 -> 0 | I31: =I29+I30 -> 0 | J31: 0 | K31: 0 | L31: 0 | M31: 0 | N31: 0
C32: 8 | D32: ='Inputs | Price Cap'!D65 -> 0 | E32: Non-capital | F32: ='Inputs | Price Cap'!F65 -> 0 | G32: ='Inputs | Price Cap'!G65 -> 0 | I32: ='Output | Price Caps'!$I30*'Inputs | Price Cap'!I65 -> 0 | J32: ='Output | Price Caps'!J30*'Inputs | Price Cap'!J65 -> 0 | K32: ='Output | Price Caps'!K30*'Inputs | Price Cap'!K65 -> 0 | L32: ='Output | Price Caps'!L30*'Inputs | Price Cap'!L65 -> 0 | M32: ='Output | Price Caps'!M30*'Inputs | Price Cap'!M65 -> 0 | N32: ='Output | Price Caps'!N30*'Inputs | Price Cap'!N65 -> 0
C33: 8 | D33: ='Inputs | Price Cap'!D66 -> 0 | E33: Capital | F33: ='Inputs | Price Cap'!F66 -> 0 | G33: ='Inputs | Price Cap'!G66 -> 0 | I33: ='Output | Price Caps'!$I31*'Inputs | Price Cap'!I66 -> 0 | J33: ='Output | Price Caps'!J31*'Inputs | Price Cap'!J66 -> 0 | K33: ='Output | Price Caps'!K31*'Inputs | Price Cap'!K66 -> 0 | L33: ='Output | Price Caps'!L31*'Inputs | Price Cap'!L66 -> 0 | M33: ='Output | Price Caps'!M31*'Inputs | Price Cap'!M66 -> 0 | N33: ='Output | Price Caps'!N31*'Inputs | Price Cap'!N66 -> 0
C34: 8 | D34: ='Inputs | Price Cap'!D67 -> 0 | E34: Total | F34: ='Inputs | Price Cap'!F67 -> 0 | G34: ='Inputs | Price Cap'!G67 -> 0 | I34: =I32+I33 -> 0 | J34: 0 | K34: 0 | L34: 0 | M34: 0 | N34: 0
C35: 9 | D35: ='Inputs | Price Cap'!D68 -> 0 | E35: Non-capital | F35: ='Inputs | Price Cap'!F68 -> 0 | G35: ='Inputs | Price Cap'!G68 -> 0 | I35: ='Output | Price Caps'!$I33*'Inputs | Price Cap'!I68 -> 0 | J35: ='Output | Price Caps'!J33*'Inputs | Price Cap'!J68 -> 0 | K35: ='Output | Price Caps'!K33*'Inputs | Price Cap'!K68 -> 0 | L35: ='Output | Price Caps'!L33*'Inputs | Price Cap'!L68 -> 0 | M35: ='Output | Price Caps'!M33*'Inputs | Price Cap'!M68 -> 0 | N35: ='Output | Price Caps'!N33*'Inputs | Price Cap'!N68 -> 0
C36: 9 | D36: ='Inputs | Price Cap'!D69 -> 0 | E36: Capital | F36: ='Inputs | Price Cap'!F69 -> 0 | G36: ='Inputs | Price Cap'!G69 -> 0 | I36: ='Output | Price Caps'!$I34*'Inputs | Price Cap'!I69 -> 0 | J36: ='Output | Price Caps'!J34*'Inputs | Price Cap'!J69 -> 0 | K36: ='Output | Price Caps'!K34*'Inputs | Price Cap'!K69 -> 0 | L36: ='Output | Price Caps'!L34*'Inputs | Price Cap'!L69 -> 0 | M36: ='Output | Price Caps'!M34*'Inputs | Price Cap'!M69 -> 0 | N36: ='Output | Price Caps'!N34*'Inputs | Price Cap'!N69 -> 0
C37: 9 | D37: ='Inputs | Price Cap'!D70 -> 0 | E37: Total | F37: ='Inputs | Price Cap'!F70 -> 0 | G37: ='Inputs | Price Cap'!G70 -> 0 | I37: =I35+I36 -> 0 | J37: 0 | K37: 0 | L37: 0 | M37: 0 | N37: 0
C38: 10 | D38: ='Inputs | Price Cap'!D71 -> 0 | E38: Non-capital | F38: ='Inputs | Price Cap'!F71 -> 0 | G38: ='Inputs | Price Cap'!G71 -> 0 | I38: ='Output | Price Caps'!$I36*'Inputs | Price Cap'!I71 -> 0 | J38: ='Output | Price Caps'!J36*'Inputs | Price Cap'!J71 -> 0 | K38: ='Output | Price Caps'!K36*'Inputs | Price Cap'!K71 -> 0 | L38: ='Output | Price Caps'!L36*'Inputs | Price Cap'!L71 -> 0 | M38: ='Output | Price Caps'!M36*'Inputs | Price Cap'!M71 -> 0 | N38: ='Output | Price Caps'!N36*'Inputs | Price Cap'!N71 -> 0
C39: 10 | D39: ='Inputs | Price Cap'!D72 -> 0 | E39: Capital | F39: ='Inputs | Price Cap'!F72 -> 0 | G39: ='Inputs | Price Cap'!G72 -> 0 | I39: ='Output | Price Caps'!$I37*'Inputs | Price Cap'!I72 -> 0 | J39: ='Output | Price Caps'!J37*'Inputs | Price Cap'!J72 -> 0 | K39: ='Output | Price Caps'!K37*'Inputs | Price Cap'!K72 -> 0 | L39: ='Output | Price Caps'!L37*'Inputs | Price Cap'!L72 -> 0 | M39: ='Output | Price Caps'!M37*'Inputs | Price Cap'!M72 -> 0 | N39: ='Output | Price Caps'!N37*'Inputs | Price Cap'!N72 -> 0
C40: 10 | D40: ='Inputs | Price Cap'!D73 -> 0 | E40: Total | F40: ='Inputs | Price Cap'!F73 -> 0 | G40: ='Inputs | Price Cap'!G73 -> 0 | I40: =I38+I39 -> 0 | J40: 0 | K40: 0 | L40: 0 | M40: 0 | N40: 0
C41: 11 | D41: ='Inputs | Price Cap'!D74 -> 0 | E41: Non-capital | F41: ='Inputs | Price Cap'!F74 -> 0 | G41: ='Inputs | Price Cap'!G74 -> 0 | I41: ='Output | Price Caps'!$I39*'Inputs | Price Cap'!I74 -> 0 | J41: ='Output | Price Caps'!J39*'Inputs | Price Cap'!J74 -> 0 | K41: ='Output | Price Caps'!K39*'Inputs | Price Cap'!K74 -> 0 | L41: ='Output | Price Caps'!L39*'Inputs | Price Cap'!L74 -> 0 | M41: ='Output | Price Caps'!M39*'Inputs | Price Cap'!M74 -> 0 | N41: ='Output | Price Caps'!N39*'Inputs | Price Cap'!N74 -> 0
C42: 11 | D42: ='Inputs | Price Cap'!D75 -> 0 | E42: Capital | F42: ='Inputs | Price Cap'!F75 -> 0 | G42: ='Inputs | Price Cap'!G75 -> 0 | I42: ='Output | Price Caps'!$I40*'Inputs | Price Cap'!I75 -> 0 | J42: ='Output | Price Caps'!J40*'Inputs | Price Cap'!J75 -> 0 | K42: ='Output | Price Caps'!K40*'Inputs | Price Cap'!K75 -> 0 | L42: ='Output | Price Caps'!L40*'Inputs | Price Cap'!L75 -> 0 | M42: ='Output | Price Caps'!M40*'Inputs | Price Cap'!M75 -> 0 | N42: ='Output | Price Caps'!N40*'Inputs | Price Cap'!N75 -> 0
C43: 11 | D43: ='Inputs | Price Cap'!D76 -> 0 | E43: Total | F43: ='Inputs | Price Cap'!F76 -> 0 | G43: ='Inputs | Price Cap'!G76 -> 0 | I43: =I41+I42 -> 0 | J43: 0 | K43: 0 | L43: 0 | M43: 0 | N43: 0
C44: 12 | D44: ='Inputs | Price Cap'!D77 -> 0 | E44: Non-capital | F44: ='Inputs | Price Cap'!F77 -> 0 | G44: ='Inputs | Price Cap'!G77 -> 0 | I44: ='Output | Price Caps'!$I42*'Inputs | Price Cap'!I77 -> 0 | J44: ='Output | Price Caps'!J42*'Inputs | Price Cap'!J77 -> 0 | K44: ='Output | Price Caps'!K42*'Inputs | Price Cap'!K77 -> 0 | L44: ='Output | Price Caps'!L42*'Inputs | Price Cap'!L77 -> 0 | M44: ='Output | Price Caps'!M42*'Inputs | Price Cap'!M77 -> 0 | N44: ='Output | Price Caps'!N42*'Inputs | Price Cap'!N77 -> 0
C45: 12 | D45: ='Inputs | Price Cap'!D78 -> 0 | E45: Capital | F45: ='Inputs | Price Cap'!F78 -> 0 | G45: ='Inputs | Price Cap'!G78 -> 0 | I45: ='Output | Price Caps'!$I43*'Inputs | Price Cap'!I78 -> 0 | J45: ='Output | Price Caps'!J43*'Inputs | Price Cap'!J78 -> 0 | K45: ='Output | Price Caps'!K43*'Inputs | Price Cap'!K78 -> 0 | L45: ='Output | Price Caps'!L43*'Inputs | Price Cap'!L78 -> 0 | M45: ='Output | Price Caps'!M43*'Inputs | Price Cap'!M78 -> 0 | N45: ='Output | Price Caps'!N43*'Inputs | Price Cap'!N78 -> 0
C46: 12 | D46: ='Inputs | Price Cap'!D79 -> 0 | E46: Total | F46: ='Inputs | Price Cap'!F79 -> 0 | G46: ='Inputs | Price Cap'!G79 -> 0 | I46: =I44+I45 -> 0 | J46: 0 | K46: 0 | L46: 0 | M46: 0 | N46: 0
C47: 13 | D47: ='Inputs | Price Cap'!D80 -> 0 | E47: Non-capital | F47: ='Inputs | Price Cap'!F80 -> 0 | G47: ='Inputs | Price Cap'!G80 -> 0 | I47: ='Output | Price Caps'!$I45*'Inputs | Price Cap'!I80 -> 0 | J47: ='Output | Price Caps'!J45*'Inputs | Price Cap'!J80 -> 0 | K47: ='Output | Price Caps'!K45*'Inputs | Price Cap'!K80 -> 0 | L47: ='Output | Price Caps'!L45*'Inputs | Price Cap'!L80 -> 0 | M47: ='Output | Price Caps'!M45*'Inputs | Price Cap'!M80 -> 0 | N47: ='Output | Price Caps'!N45*'Inputs | Price Cap'!N80 -> 0
C48: 13 | D48: ='Inputs | Price Cap'!D81 -> 0 | E48: Capital | F48: ='Inputs | Price Cap'!F81 -> 0 | G48: ='Inputs | Price Cap'!G81 -> 0 | I48: ='Output | Price Caps'!$I46*'Inputs | Price Cap'!I81 -> 0 | J48: ='Output | Price Caps'!J46*'Inputs | Price Cap'!J81 -> 0 | K48: ='Output | Price Caps'!K46*'Inputs | Price Cap'!K81 -> 0 | L48: ='Output | Price Caps'!L46*'Inputs | Price Cap'!L81 -> 0 | M48: ='Output | Price Caps'!M46*'Inputs | Price Cap'!M81 -> 0 | N48: ='Output | Price Caps'!N46*'Inputs | Price Cap'!N81 -> 0
C49: 13 | D49: ='Inputs | Price Cap'!D82 -> 0 | E49: Total | F49: ='Inputs | Price Cap'!F82 -> 0 | G49: ='Inputs | Price Cap'!G82 -> 0 | I49: =I47+I48 -> 0 | J49: 0 | K49: 0 | L49: 0 | M49: 0 | N49: 0
C50: 14 | D50: ='Inputs | Price Cap'!D83 -> 0 | E50: Non-capital | F50: ='Inputs | Price Cap'!F83 -> 0 | G50: ='Inputs | Price Cap'!G83 -> 0 | I50: ='Output | Price Caps'!$I48*'Inputs | Price Cap'!I83 -> 0 | J50: ='Output | Price Caps'!J48*'Inputs | Price Cap'!J83 -> 0 | K50: ='Output | Price Caps'!K48*'Inputs | Price Cap'!K83 -> 0 | L50: ='Output | Price Caps'!L48*'Inputs | Price Cap'!L83 -> 0 | M50: ='Output | Price Caps'!M48*'Inputs | Price Cap'!M83 -> 0 | N50: ='Output | Price Caps'!N48*'Inputs | Price Cap'!N83 -> 0
C51: 14 | D51: ='Inputs | Price Cap'!D84 -> 0 | E51: Capital | F51: ='Inputs | Price Cap'!F84 -> 0 | G51: ='Inputs | Price Cap'!G84 -> 0 | I51: ='Output | Price Caps'!$I49*'Inputs | Price Cap'!I84 -> 0 | J51: ='Output | Price Caps'!J49*'Inputs | Price Cap'!J84 -> 0 | K51: ='Output | Price Caps'!K49*'Inputs | Price Cap'!K84 -> 0 | L51: ='Output | Price Caps'!L49*'Inputs | Price Cap'!L84 -> 0 | M51: ='Output | Price Caps'!M49*'Inputs | Price Cap'!M84 -> 0 | N51: ='Output | Price Caps'!N49*'Inputs | Price Cap'!N84 -> 0
C52: 14 | D52: ='Inputs | Price Cap'!D85 -> 0 | E52: Total | F52: ='Inputs | Price Cap'!F85 -> 0 | G52: ='Inputs | Price Cap'!G85 -> 0 | I52: =I50+I51 -> 0 | J52: 0 | K52: 0 | L52: 0 | M52: 0 | N52: 0
C53: 15 | D53: ='Inputs | Price Cap'!D86 -> 0 | E53: Non-capital | F53: ='Inputs | Price Cap'!F86 -> 0 | G53: ='Inputs | Price Cap'!G86 -> 0 | I53: ='Output | Price Caps'!$I51*'Inputs | Price Cap'!I86 -> 0 | J53: ='Output | Price Caps'!J51*'Inputs | Price Cap'!J86 -> 0 | K53: ='Output | Price Caps'!K51*'Inputs | Price Cap'!K86 -> 0 | L53: ='Output | Price Caps'!L51*'Inputs | Price Cap'!L86 -> 0 | M53: ='Output | Price Caps'!M51*'Inputs | Price Cap'!M86 -> 0 | N53: ='Output | Price Caps'!N51*'Inputs | Price Cap'!N86 -> 0
C54: 15 | D54: ='Inputs | Price Cap'!D87 -> 0 | E54: Capital | F54: ='Inputs | Price Cap'!F87 -> 0 | G54: ='Inputs | Price Cap'!G87 -> 0 | I54: ='Output | Price Caps'!$I52*'Inputs | Price Cap'!I87 -> 0 | J54: ='Output | Price Caps'!J52*'Inputs | Price Cap'!J87 -> 0 | K54: ='Output | Price Caps'!K52*'Inputs | Price Cap'!K87 -> 0 | L54: ='Output | Price Caps'!L52*'Inputs | Price Cap'!L87 -> 0 | M54: ='Output | Price Caps'!M52*'Inputs | Price Cap'!M87 -> 0 | N54: ='Output | Price Caps'!N52*'Inputs | Price Cap'!N87 -> 0
C55: 15 | D55: ='Inputs | Price Cap'!D88 -> 0 | E55: Total | F55: ='Inputs | Price Cap'!F88 -> 0 | G55: ='Inputs | Price Cap'!G88 -> 0 | I55: =I53+I54 -> 0 | J55: 0 | K55: 0 | L55: 0 | M55: 0 | N55: 0
B57: Total Smoothed Revenue
E58: Application | I58: =LEFT(J58,4)-1&"-"&RIGHT(J58,2)-1 -> 2020-21 | J58: =FPFirstYear -> 2021-22 | K58: =LEFT(J58,4)+1&"-"&RIGHT(J58,2)+1 -> 2022-23 | L58: =LEFT(K58,4)+1&"-"&RIGHT(K58,2)+1 -> 2023-24 | M58: 2024-25 | N58: 2025-26
E59: Non-capital | I59: =SUMIFS('Calc | Price Cap'!I$11:I$55,'Output | Price Caps'!$E$9:$E$53,$E59) -> 18500000 | J59: =SUMIFS('Calc | Price Cap'!J$11:J$55,'Output | Price Caps'!$E$9:$E$53,$E59) -> 21710520 | K59: =SUMIFS('Calc | Price Cap'!K$11:K$55,'Output | Price Caps'!$E$9:$E$53,$E59) -> 20212335 | L59: =SUMIFS('Calc | Price Cap'!L$11:L$55,'Output | Price Caps'!$E$9:$E$53,$E59) -> 18822707.1 | M59: =SUMIFS('Calc | Price Cap'!M$11:M$55,'Output | Price Caps'!$E$9:$E$53,$E59) -> 17523512.46 | N59: =SUMIFS('Calc | Price Cap'!N$11:N$55,'Output | Price Caps'!$E$9:$E$53,$E59) -> 16317010.17
E60: Capital | I60: =SUMIFS('Calc | Price Cap'!I$11:I$55,'Output | Price Caps'!$E$9:$E$53,$E60) -> 34900000 | J60: =SUMIFS('Calc | Price Cap'!J$11:J$55,'Output | Price Caps'!$E$9:$E$53,$E60) -> 31269750 | K60: =SUMIFS('Calc | Price Cap'!K$11:K$55,'Output | Price Caps'!$E$9:$E$53,$E60) -> 31060900 | L60: =SUMIFS('Calc | Price Cap'!L$11:L$55,'Output | Price Caps'!$E$9:$E$53,$E60) -> 30852150 | M60: =SUMIFS('Calc | Price Cap'!M$11:M$55,'Output | Price Caps'!$E$9:$E$53,$E60) -> 30658250 | N60: =SUMIFS('Calc | Price Cap'!N$11:N$55,'Output | Price Caps'!$E$9:$E$53,$E60) -> 30464350
E61: Total | I61: =SUMIFS('Calc | Price Cap'!I$11:I$55,'Output | Price Caps'!$E$9:$E$53,$E61) -> 53400000 | J61: =SUMIFS('Calc | Price Cap'!J$11:J$55,'Output | Price Caps'!$E$9:$E$53,$E61) -> 52980270 | K61: =SUMIFS('Calc | Price Cap'!K$11:K$55,'Output | Price Caps'!$E$9:$E$53,$E61) -> 51273235 | L61: =SUMIFS('Calc | Price Cap'!L$11:L$55,'Output | Price Caps'!$E$9:$E$53,$E61) -> 49674857.1 | M61: =SUMIFS('Calc | Price Cap'!M$11:M$55,'Output | Price Caps'!$E$9:$E$53,$E61) -> 48181762.46 | N61: =SUMIFS('Calc | Price Cap'!N$11:N$55,'Output | Price Caps'!$E$9:$E$53,$E61) -> 46781360.17
I63: =(ROUND(I59+I60,0)=ROUND(I61,0))/1 -> 1 | J63: 1 | K63: 1 | L63: 1 | M63: 1 | N63: 1

Sheet Output | Price Caps
C1: ='Title Page'!B8&" v"&'Title Page'!$C$10 -> Preliminary Standardised Metering Pricing Model v1 | N1: DNSP: | O1: =IF('Inputs | General'!$G$16="Exit Fees (Vic)","NOT USED",NSP) -> TEST NSP | U1: Worksheet check: | V1: =IF(COUNTA($W$5:$W$52)=COUNTIF($W5:$W53,"OK"),"OK","Check") -> OK
C2: =MID(CELL("filename",A1),FIND("]",CELL("filename",A1))+1,255) -> Output | Price Caps | H2: Key: | I2: Input | J2: External Link | K2: Internal Link
B5: RESULT - Price Cap - Annual Charges
I6: Base Year Charges | J6: Price Cap - Annual Charges (nominal)
A7: ▼ Table Filters | C7: Tariff # | D7: Tariff name | E7: Application | F7: Tariff Code | G7: Other designation | I7: =LEFT(J7,4)-1&"-"&RIGHT(J7,2)-1 -> 2020-21 | J7: =FPFirstYear -> 2021-22 | K7: =LEFT(J7,4)+1&"-"&RIGHT(J7,2)+1 -> 2022-23 | L7: =LEFT(K7,4)+1&"-"&RIGHT(K7,2)+1 -> 2023-24 | M7: 2024-25 | N7: 2025-26
C8: Tariff # | D8: Tariff name | E8: Application | F8: Tariff Code | G8: Other designation | H8: Ca | I8: F-RP-1 | J8: F-RP0 | K8: F-RP+1 | L8: F-RP+2 | M8: F-RP+3 | N8: F-RP+4 | O8: Column1
C9: 1 | D9: ='Inputs | Price Cap'!D44 -> Residential Non ToU | E9: Non-capital | F9: ='Inputs | Price Cap'!F44 -> R1 | G9: ='Inputs | Price Cap'!G44 -> Primary | I9: =ROUND('Inputs | Price Cap'!H44,2) -> 10 | J9: =ROUND('Output | Price Caps'!I9*(1-'Inputs | Price Cap'!F$109)*(1+'Inputs | General'!H$26),2) -> 13.04 | K9: =ROUND('Output | Price Caps'!J9*(1-'Inputs | Price Cap'!G$109)*(1+'Inputs | General'!I$26),2) -> 13.49 | L9: =ROUND('Output | Price Caps'!K9*(1-'Inputs | Price Cap'!H$109)*(1+'Inputs | General'!J$26),2) -> 13.96 | M9: =ROUND('Output | Price Caps'!L9*(1-'Inputs | Price Cap'!I$109)*(1+'Inputs | General'!K$26),2) -> 14.44 | N9: =ROUND('Output | Price Caps'!M9*(1-'Inputs | Price Cap'!J$109)*(1+'Inputs | General'!L$26),2) -> 14.94
C10: 1 | D10: ='Inputs | Price Cap'!D45 -> Residential Non ToU | E10: Capital | F10: ='Inputs | Price Cap'!F45 -> R1 | G10: ='Inputs | Price Cap'!G45 -> Primary | I10: =ROUND('Inputs | Price Cap'!H45,2) -> 20 | J10: =ROUND('Output | Price Caps'!I10*(1-'Inputs | Price Cap'!F$125)*(1+'Inputs | General'!H$26),2) -> 17.92 | K10: =ROUND('Output | Price Caps'!J10*(1-'Inputs | Price Cap'!G$125)*(1+'Inputs | General'!I$26),2) -> 17.8 | L10: =ROUND('Output | Price Caps'!K10*(1-'Inputs | Price Cap'!H$125)*(1+'Inputs | General'!J$26),2) -> 17.68 | M10: =ROUND('Output | Price Caps'!L10*(1-'Inputs | Price Cap'!I$125)*(1+'Inputs | General'!K$26),2) -> 17.57 | N10: =ROUND('Output | Price Caps'!M10*(1-'Inputs | Price Cap'!J$125)*(1+'Inputs | General'!L$26),2) -> 17.46
C11: 1 | D11: ='Inputs | Price Cap'!D46 -> Residential Non ToU | E11: Total | F11: ='Inputs | Price Cap'!F46 -> R1 | G11: ='Inputs | Price Cap'!G46 -> Primary | I11: =ROUND('Inputs | Price Cap'!H46,2) -> 30 | J11: =J9+J10 -> 30.96 | K11: =K9+K10 -> 31.29 | L11: =L9+L10 -> 31.64 | M11: =M9+M10 -> 32.01 | N11: =N9+N10 -> 32.4
C12: 2 | D12: ='Inputs | Price Cap'!D47 -> Residential ToU | E12: Non-capital | F12: ='Inputs | Price Cap'!F47 -> R2 | G12: ='Inputs | Price Cap'!G47 -> Primary | I12: =ROUND('Inputs | Price Cap'!H47,2) -> 20 | J12: =ROUND('Output | Price Caps'!I12*(1-'Inputs | Price Cap'!F$109)*(1+'Inputs | General'!H$26),2) -> 26.08 | K12: =ROUND('Output | Price Caps'!J12*(1-'Inputs | Price Cap'!G$109)*(1+'Inputs | General'!I$26),2) -> 26.98 | L12: =ROUND('Output | Price Caps'!K12*(1-'Inputs | Price Cap'!H$109)*(1+'Inputs | General'!J$26),2) -> 27.91 | M12: =ROUND('Output | Price Caps'!L12*(1-'Inputs | Price Cap'!I$109)*(1+'Inputs | General'!K$26),2) -> 28.87 | N12: =ROUND('Output | Price Caps'!M12*(1-'Inputs | Price Cap'!J$109)*(1+'Inputs | General'!L$26),2) -> 29.87
C13: 2 | D13: ='Inputs | Price Cap'!D48 -> Residential ToU | E13: Capital | F13: ='Inputs | Price Cap'!F48 -> R2 | G13: ='Inputs | Price Cap'!G48 -> Primary | I13: =ROUND('Inputs | Price Cap'!H48,2) -> 20 | J13: =ROUND('Output | Price Caps'!I13*(1-'Inputs | Price Cap'!F$125)*(1+'Inputs | General'!H$26),2) -> 17.92 | K13: =ROUND('Output | Price Caps'!J13*(1-'Inputs | Price Cap'!G$125)*(1+'Inputs | General'!I$26),2) -> 17.8 | L13: =ROUND('Output | Price Caps'!K13*(1-'Inputs | Price Cap'!H$125)*(1+'Inputs | General'!J$26),2) -> 17.68 | M13: =ROUND('Output | Price Caps'!L13*(1-'Inputs | Price Cap'!I$125)*(1+'Inputs | General'!K$26),2) -> 17.57 | N13: =ROUND('Output | Price Caps'!M13*(1-'Inputs | Price Cap'!J$125)*(1+'Inputs | General'!L$26),2) -> 17.46
C14: 2 | D14: ='Inputs | Price Cap'!D49 -> Residential ToU | E14: Total | F14: ='Inputs | Price Cap'!F49 -> R2 | G14: ='Inputs | Price Cap'!G49 -> Primary | I14: =ROUND('Inputs | Price Cap'!H49,2) -> 40 | J14: =J12+J13 -> 44 | K14: =K12+K13 -> 44.78 | L14: =L12+L13 -> 45.59 | M14: =M12+M13 -> 46.44 | N14: =N12+N13 -> 47.33
C15: 3 | D15: ='Inputs | Price Cap'!D50 -> Controlled load | E15: Non-capital | F15: ='Inputs | Price Cap'!F50 -> B1 | G15: ='Inputs | Price Cap'!G50 -> Secondary | I15: =ROUND('Inputs | Price Cap'!H50,2) -> 1 | J15: =ROUND('Output | Price Caps'!I15*(1-'Inputs | Price Cap'!F$109)*(1+'Inputs | General'!H$26),2) -> 1.3 | K15: =ROUND('Output | Price Caps'!J15*(1-'Inputs | Price Cap'!G$109)*(1+'Inputs | General'!I$26),2) -> 1.34 | L15: =ROUND('Output | Price Caps'!K15*(1-'Inputs | Price Cap'!H$109)*(1+'Inputs | General'!J$26),2) -> 1.39 | M15: =ROUND('Output | Price Caps'!L15*(1-'Inputs | Price Cap'!I$109)*(1+'Inputs | General'!K$26),2) -> 1.44 | N15: =ROUND('Output | Price Caps'!M15*(1-'Inputs | Price Cap'!J$109)*(1+'Inputs | General'!L$26),2) -> 1.49
C16: 3 | D16: ='Inputs | Price Cap'!D51 -> Controlled load | E16: Capital | F16: ='Inputs | Price Cap'!F51 -> B1 | G16: ='Inputs | Price Cap'!G51 -> Secondary | I16: =ROUND('Inputs | Price Cap'!H51,2) -> 10 | J16: =ROUND('Output | Price Caps'!I16*(1-'Inputs | Price Cap'!F$125)*(1+'Inputs | General'!H$26),2) -> 8.96 | K16: =ROUND('Output | Price Caps'!J16*(1-'Inputs | Price Cap'!G$125)*(1+'Inputs | General'!I$26),2) -> 8.9 | L16: =ROUND('Output | Price Caps'!K16*(1-'Inputs | Price Cap'!H$125)*(1+'Inputs | General'!J$26),2) -> 8.84 | M16: =ROUND('Output | Price Caps'!L16*(1-'Inputs | Price Cap'!I$125)*(1+'Inputs | General'!K$26),2) -> 8.78 | N16: =ROUND('Output | Price Caps'!M16*(1-'Inputs | Price Cap'!J$125)*(1+'Inputs | General'!L$26),2) -> 8.72
C17: 3 | D17: ='Inputs | Price Cap'!D52 -> Controlled load | E17: Total | F17: ='Inputs | Price Cap'!F52 -> B1 | G17: ='Inputs | Price Cap'!G52 -> Secondary | I17: =ROUND('Inputs | Price Cap'!H52,2) -> 11 | J17: =J15+J16 -> 10.26 | K17: =K15+K16 -> 10.24 | L17: =L15+L16 -> 10.23 | M17: =M15+M16 -> 10.22 | N17: =N15+N16 -> 10.21
C18: 4 | D18: ='Inputs | Price Cap'!D53 -> Small Business Non ToU | E18: Non-capital | F18: ='Inputs | Price Cap'!F53 -> B2 | G18: ='Inputs | Price Cap'!G53 -> Primary | I18: =ROUND('Inputs | Price Cap'!H53,2) -> 10 | J18: =ROUND('Output | Price Caps'!I18*(1-'Inputs | Price Cap'!F$109)*(1+'Inputs | General'!H$26),2) -> 13.04 | K18: =ROUND('Output | Price Caps'!J18*(1-'Inputs | Price Cap'!G$109)*(1+'Inputs | General'!I$26),2) -> 13.49 | L18: =ROUND('Output | Price Caps'!K18*(1-'Inputs | Price Cap'!H$109)*(1+'Inputs | General'!J$26),2) -> 13.96 | M18: =ROUND('Output | Price Caps'!L18*(1-'Inputs | Price Cap'!I$109)*(1+'Inputs | General'!K$26),2) -> 14.44 | N18: =ROUND('Output | Price Caps'!M18*(1-'Inputs | Price Cap'!J$109)*(1+'Inputs | General'!L$26),2) -> 14.94
C19: 4 | D19: ='Inputs | Price Cap'!D54 -> Small Business Non ToU | E19: Capital | F19: ='Inputs | Price Cap'!F54 -> B2 | G19: ='Inputs | Price Cap'!G54 -> Primary | I19: =ROUND('Inputs | Price Cap'!H54,2) -> 30 | J19: =ROUND('Output | Price Caps'!I19*(1-'Inputs | Price Cap'!F$125)*(1+'Inputs | General'!H$26),2) -> 26.87 | K19: =ROUND('Output | Price Caps'!J19*(1-'Inputs | Price Cap'!G$125)*(1+'Inputs | General'!I$26),2) -> 26.7 | L19: =ROUND('Output | Price Caps'!K19*(1-'Inputs | Price Cap'!H$125)*(1+'Inputs | General'!J$26),2) -> 26.53 | M19: =ROUND('Output | Price Caps'!L19*(1-'Inputs | Price Cap'!I$125)*(1+'Inputs | General'!K$26),2) -> 26.36 | N19: =ROUND('Output | Price Caps'!M19*(1-'Inputs | Price Cap'!J$125)*(1+'Inputs | General'!L$26),2) -> 26.19
C20: 4 | D20: ='Inputs | Price Cap'!D55 -> Small Business Non ToU | E20: Total | F20: ='Inputs | Price Cap'!F55 -> B2 | G20: ='Inputs | Price Cap'!G55 -> Primary | I20: =ROUND('Inputs | Price Cap'!H55,2) -> 40 | J20: =J18+J19 -> 39.91 | K20: =K18+K19 -> 40.19 | L20: =L18+L19 -> 40.49 | M20: =M18+M19 -> 40.8 | N20: =N18+N19 -> 41.13
C21: 5 | D21: ='Inputs | Price Cap'!D56 -> Small Business ToU | E21: Non-capital | F21: ='Inputs | Price Cap'!F56 -> LV1 | G21: ='Inputs | Price Cap'!G56 -> Primary | I21: =ROUND('Inputs | Price Cap'!H56,2) -> 25 | J21: =ROUND('Output | Price Caps'!I21*(1-'Inputs | Price Cap'!F$109)*(1+'Inputs | General'!H$26),2) -> 32.6 | K21: =ROUND('Output | Price Caps'!J21*(1-'Inputs | Price Cap'!G$109)*(1+'Inputs | General'!I$26),2) -> 33.72 | L21: =ROUND('Output | Price Caps'!K21*(1-'Inputs | Price Cap'!H$109)*(1+'Inputs | General'!J$26),2) -> 34.88 | M21: =ROUND('Output | Price Caps'!L21*(1-'Inputs | Price Cap'!I$109)*(1+'Inputs | General'!K$26),2) -> 36.08 | N21: =ROUND('Output | Price Caps'!M21*(1-'Inputs | Price Cap'!J$109)*(1+'Inputs | General'!L$26),2) -> 37.32
C22: 5 | D22: ='Inputs | Price Cap'!D57 -> Small Business ToU | E22: Capital | F22: ='Inputs | Price Cap'!F57 -> LV1 | G22: ='Inputs | Price Cap'!G57 -> Primary | I22: =ROUND('Inputs | Price Cap'!H57,2) -> 20 | J22: =ROUND('Output | Price Caps'!I22*(1-'Inputs | Price Cap'!F$125)*(1+'Inputs | General'!H$26),2) -> 17.92 | K22: =ROUND('Output | Price Caps'!J22*(1-'Inputs | Price Cap'!G$125)*(1+'Inputs | General'!I$26),2) -> 17.8 | L22: =ROUND('Output | Price Caps'!K22*(1-'Inputs | Price Cap'!H$125)*(1+'Inputs | General'!J$26),2) -> 17.68 | M22: =ROUND('Output | Price Caps'!L22*(1-'Inputs | Price Cap'!I$125)*(1+'Inputs | General'!K$26),2) -> 17.57 | N22: =ROUND('Output | Price Caps'!M22*(1-'Inputs | Price Cap'!J$125)*(1+'Inputs | General'!L$26),2) -> 17.46
C23: 5 | D23: ='Inputs | Price Cap'!D58 -> Small Business ToU | E23: Total | F23: ='Inputs | Price Cap'!F58 -> LV1 | G23: ='Inputs | Price Cap'!G58 -> Primary | I23: =ROUND('Inputs | Price Cap'!H58,2) -> 45 | J23: =J21+J22 -> 50.52 | K23: =K21+K22 -> 51.52 | L23: =L21+L22 -> 52.56 | M23: =M21+M22 -> 53.65 | N23: =N21+N22 -> 54.78
C24: 6 | D24: ='Inputs | Price Cap'!D59 -> LV 40-160 MWh (System) | E24: Non-capital | F24: ='Inputs | Price Cap'!F59 -> 0 | G24: ='Inputs | Price Cap'!G59 -> 0 | I24: =ROUND('Inputs | Price Cap'!H59,2) -> 45 | J24: =ROUND('Output | Price Caps'!I24*(1-'Inputs | Price Cap'!F$109)*(1+'Inputs | General'!H$26),2) -> 58.68 | K24: =ROUND('Output | Price Caps'!J24*(1-'Inputs | Price Cap'!G$109)*(1+'Inputs | General'!I$26),2) -> 60.7 | L24: =ROUND('Output | Price Caps'!K24*(1-'Inputs | Price Cap'!H$109)*(1+'Inputs | General'!J$26),2) -> 62.79 | M24: =ROUND('Output | Price Caps'!L24*(1-'Inputs | Price Cap'!I$109)*(1+'Inputs | General'!K$26),2) -> 64.96 | N24: =ROUND('Output | Price Caps'!M24*(1-'Inputs | Price Cap'!J$109)*(1+'Inputs | General'!L$26),2) -> 67.2
C25: 6 | D25: ='Inputs | Price Cap'!D60 -> LV 40-160 MWh (System) | E25: Capital | F25: ='Inputs | Price Cap'!F60 -> 0 | G25: ='Inputs | Price Cap'!G60 -> 0 | I25: =ROUND('Inputs | Price Cap'!H60,2) -> 25 | J25: =ROUND('Output | Price Caps'!I25*(1-'Inputs | Price Cap'!F$125)*(1+'Inputs | General'!H$26),2) -> 22.39 | K25: =ROUND('Output | Price Caps'!J25*(1-'Inputs | Price Cap'!G$125)*(1+'Inputs | General'!I$26),2) -> 22.24 | L25: =ROUND('Output | Price Caps'!K25*(1-'Inputs | Price Cap'!H$125)*(1+'Inputs | General'!J$26),2) -> 22.1 | M25: =ROUND('Output | Price Caps'!L25*(1-'Inputs | Price Cap'!I$125)*(1+'Inputs | General'!K$26),2) -> 21.96 | N25: =ROUND('Output | Price Caps'!M25*(1-'Inputs | Price Cap'!J$125)*(1+'Inputs | General'!L$26),2) -> 21.82
C26: 6 | D26: ='Inputs | Price Cap'!D61 -> LV 40-160 MWh (System) | E26: Total | F26: ='Inputs | Price Cap'!F61 -> 0 | G26: ='Inputs | Price Cap'!G61 -> 0 | I26: =ROUND('Inputs | Price Cap'!H61,2) -> 70 | J26: =J24+J25 -> 81.07 | K26: =K24+K25 -> 82.94 | L26: =L24+L25 -> 84.89 | M26: =M24+M25 -> 86.92 | N26: =N24+N25 -> 89.02
C27: 7 | D27: ='Inputs | Price Cap'!D62 -> 0 | E27: Non-capital | F27: ='Inputs | Price Cap'!F62 -> 0 | G27: ='Inputs | Price Cap'!G62 -> 0 | I27: =ROUND('Inputs | Price Cap'!H62,2) -> 0 | J27: =ROUND('Output | Price Caps'!I27*(1-'Inputs | Price Cap'!F$109)*(1+'Inputs | General'!H$26),2) -> 0 | K27: =ROUND('Output | Price Caps'!J27*(1-'Inputs | Price Cap'!G$109)*(1+'Inputs | General'!I$26),2) -> 0 | L27: =ROUND('Output | Price Caps'!K27*(1-'Inputs | Price Cap'!H$109)*(1+'Inputs | General'!J$26),2) -> 0 | M27: =ROUND('Output | Price Caps'!L27*(1-'Inputs | Price Cap'!I$109)*(1+'Inputs | General'!K$26),2) -> 0 | N27: =ROUND('Output | Price Caps'!M27*(1-'Inputs | Price Cap'!J$109)*(1+'Inputs | General'!L$26),2) -> 0
C28: 7 | D28: ='Inputs | Price Cap'!D63 -> 0 | E28: Capital | F28: ='Inputs | Price Cap'!F63 -> 0 | G28: ='Inputs | Price Cap'!G63 -> 0 | I28: =ROUND('Inputs | Price Cap'!H63,2) -> 0 | J28: =ROUND('Output | Price Caps'!I28*(1-'Inputs | Price Cap'!F$125)*(1+'Inputs | General'!H$26),2) -> 0 | K28: =ROUND('Output | Price Caps'!J28*(1-'Inputs | Price Cap'!G$125)*(1+'Inputs | General'!I$26),2) -> 0 | L28: =ROUND('Output | Price Caps'!K28*(1-'Inputs | Price Cap'!H$125)*(1+'Inputs | General'!J$26),2) -> 0 | M28: =ROUND('Output | Price Caps'!L28*(1-'Inputs | Price Cap'!I$125)*(1+'Inputs | General'!K$26),2) -> 0 | N28: =ROUND('Output | Price Caps'!M28*(1-'Inputs | Price Cap'!J$125)*(1+'Inputs | General'!L$26),2) -> 0
C29: 7 | D29: ='Inputs | Price Cap'!D64 -> 0 | E29: Total | F29: ='Inputs | Price Cap'!F64 -> 0 | G29: ='Inputs | Price Cap'!G64 -> 0 | I29: =ROUND('Inputs | Price Cap'!H64,2) -> 0 | J29: =J27+J28 -> 0 | K29: =K27+K28 -> 0 | L29: =L27+L28 -> 0 | M29: =M27+M28 -> 0 | N29: =N27+N28 -> 0
C30: 8 | D30: ='Inputs | Price Cap'!D65 -> 0 | E30: Non-capital | F30: ='Inputs | Price Cap'!F65 -> 0 | G30: ='Inputs | Price Cap'!G65 -> 0 | I30: =ROUND('Inputs | Price Cap'!H65,2) -> 0 | J30: =ROUND('Output | Price Caps'!I30*(1-'Inputs | Price Cap'!F$109)*(1+'Inputs | General'!H$26),2) -> 0 | K30: =ROUND('Output | Price Caps'!J30*(1-'Inputs | Price Cap'!G$109)*(1+'Inputs | General'!I$26),2) -> 0 | L30: =ROUND('Output | Price Caps'!K30*(1-'Inputs | Price Cap'!H$109)*(1+'Inputs | General'!J$26),2) -> 0 | M30: =ROUND('Output | Price Caps'!L30*(1-'Inputs | Price Cap'!I$109)*(1+'Inputs | General'!K$26),2) -> 0 | N30: =ROUND('Output | Price Caps'!M30*(1-'Inputs | Price Cap'!J$109)*(1+'Inputs | General'!L$26),2) -> 0
C31: 8 | D31: ='Inputs | Price Cap'!D66 -> 0 | E31: Capital | F31: ='Inputs | Price Cap'!F66 -> 0 | G31: ='Inputs | Price Cap'!G66 -> 0 | I31: =ROUND('Inputs | Price Cap'!H66,2) -> 0 | J31: =ROUND('Output | Price Caps'!I31*(1-'Inputs | Price Cap'!F$125)*(1+'Inputs | General'!H$26),2) -> 0 | K31: =ROUND('Output | Price Caps'!J31*(1-'Inputs | Price Cap'!G$125)*(1+'Inputs | General'!I$26),2) -> 0 | L31: =ROUND('Output | Price Caps'!K31*(1-'Inputs | Price Cap'!H$125)*(1+'Inputs | General'!J$26),2) -> 0 | M31: =ROUND('Output | Price Caps'!L31*(1-'Inputs | Price Cap'!I$125)*(1+'Inputs | General'!K$26),2) -> 0 | N31: =ROUND('Output | Price Caps'!M31*(1-'Inputs | Price Cap'!J$125)*(1+'Inputs | General'!L$26),2) -> 0
C32: 8 | D32: ='Inputs | Price Cap'!D67 -> 0 | E32: Total | F32: ='Inputs | Price Cap'!F67 -> 0 | G32: ='Inputs | Price Cap'!G67 -> 0 | I32: =ROUND('Inputs | Price Cap'!H67,2) -> 0 | J32: =J30+J31 -> 0 | K32: =K30+K31 -> 0 | L32: =L30+L31 -> 0 | M32: =M30+M31 -> 0 | N32: =N30+N31 -> 0
C33: 9 | D33: ='Inputs | Price Cap'!D68 -> 0 | E33: Non-capital | F33: ='Inputs | Price Cap'!F68 -> 0 | G33: ='Inputs | Price Cap'!G68 -> 0 | I33: =ROUND('Inputs | Price Cap'!H68,2) -> 0 | J33: =ROUND('Output | Price Caps'!I33*(1-'Inputs | Price Cap'!F$109)*(1+'Inputs | General'!H$26),2) -> 0 | K33: =ROUND('Output | Price Caps'!J33*(1-'Inputs | Price Cap'!G$109)*(1+'Inputs | General'!I$26),2) -> 0 | L33: =ROUND('Output | Price Caps'!K33*(1-'Inputs | Price Cap'!H$109)*(1+'Inputs | General'!J$26),2) -> 0 | M33: =ROUND('Output | Price Caps'!L33*(1-'Inputs | Price Cap'!I$109)*(1+'Inputs | General'!K$26),2) -> 0 | N33: =ROUND('Output | Price Caps'!M33*(1-'Inputs | Price Cap'!J$109)*(1+'Inputs | General'!L$26),2) -> 0
C34: 9 | D34: ='Inputs | Price Cap'!D69 -> 0 | E34: Capital | F34: ='Inputs | Price Cap'!F69 -> 0 | G34: ='Inputs | Price Cap'!G69 -> 0 | I34: =ROUND('Inputs | Price Cap'!H69,2) -> 0 | J34: =ROUND('Output | Price Caps'!I34*(1-'Inputs | Price Cap'!F$125)*(1+'Inputs | General'!H$26),2) -> 0 | K34: =ROUND('Output | Price Caps'!J34*(1-'Inputs | Price Cap'!G$125)*(1+'Inputs | General'!I$26),2) -> 0 | L34: =ROUND('Output | Price Caps'!K34*(1-'Inputs | Price Cap'!H$125)*(1+'Inputs | General'!J$26),2) -> 0 | M34: =ROUND('Output | Price Caps'!L34*(1-'Inputs | Price Cap'!I$125)*(1+'Inputs | General'!K$26),2) -> 0 | N34: =ROUND('Output | Price Caps'!M34*(1-'Inputs | Price Cap'!J$125)*(1+'Inputs | General'!L$26),2) -> 0
C35: 9 | D35: ='Inputs | Price Cap'!D70 -> 0 | E35: Total | F35: ='Inputs | Price Cap'!F70 -> 0 | G35: ='Inputs | Price Cap'!G70 -> 0 | I35: =ROUND('Inputs | Price Cap'!H70,2) -> 0 | J35: =J33+J34 -> 0 | K35: =K33+K34 -> 0 | L35: =L33+L34 -> 0 | M35: =M33+M34 -> 0 | N35: =N33+N34 -> 0
C36: 10 | D36: ='Inputs | Price Cap'!D71 -> 0 | E36: Non-capital | F36: ='Inputs | Price Cap'!F71 -> 0 | G36: ='Inputs | Price Cap'!G71 -> 0 | I36: =ROUND('Inputs | Price Cap'!H71,2) -> 0 | J36: =ROUND('Output | Price Caps'!I36*(1-'Inputs | Price Cap'!F$109)*(1+'Inputs | General'!H$26),2) -> 0 | K36: =ROUND('Output | Price Caps'!J36*(1-'Inputs | Price Cap'!G$109)*(1+'Inputs | General'!I$26),2) -> 0 | L36: =ROUND('Output | Price Caps'!K36*(1-'Inputs | Price Cap'!H$109)*(1+'Inputs | General'!J$26),2) -> 0 | M36: =ROUND('Output | Price Caps'!L36*(1-'Inputs | Price Cap'!I$109)*(1+'Inputs | General'!K$26),2) -> 0 | N36: =ROUND('Output | Price Caps'!M36*(1-'Inputs | Price Cap'!J$109)*(1+'Inputs | General'!L$26),2) -> 0
C37: 10 | D37: ='Inputs | Price Cap'!D72 -> 0 | E37: Capital | F37: ='Inputs | Price Cap'!F72 -> 0 | G37: ='Inputs | Price Cap'!G72 -> 0 | I37: =ROUND('Inputs | Price Cap'!H72,2) -> 0 | J37: =ROUND('Output | Price Caps'!I37*(1-'Inputs | Price Cap'!F$125)*(1+'Inputs | General'!H$26),2) -> 0 | K37: =ROUND('Output | Price Caps'!J37*(1-'Inputs | Price Cap'!G$125)*(1+'Inputs | General'!I$26),2) -> 0 | L37: =ROUND('Output | Price Caps'!K37*(1-'Inputs | Price Cap'!H$125)*(1+'Inputs | General'!J$26),2) -> 0 | M37: =ROUND('Output | Price Caps'!L37*(1-'Inputs | Price Cap'!I$125)*(1+'Inputs | General'!K$26),2) -> 0 | N37: =ROUND('Output | Price Caps'!M37*(1-'Inputs | Price Cap'!J$125)*(1+'Inputs | General'!L$26),2) -> 0
C38: 10 | D38: ='Inputs | Price Cap'!D73 -> 0 | E38: Total | F38: ='Inputs | Price Cap'!F73 -> 0 | G38: ='Inputs | Price Cap'!G73 -> 0 | I38: =ROUND('Inputs | Price Cap'!H73,2) -> 0 | J38: =J36+J37 -> 0 | K38: =K36+K37 -> 0 | L38: =L36+L37 -> 0 | M38: =M36+M37 -> 0 | N38: =N36+N37 -> 0
C39: 11 | D39: ='Inputs | Price Cap'!D74 -> 0 | E39: Non-capital | F39: ='Inputs | Price Cap'!F74 -> 0 | G39: ='Inputs | Price Cap'!G74 -> 0 | I39: =ROUND('Inputs | Price Cap'!H74,2) -> 0 | J39: =ROUND('Output | Price Caps'!I39*(1-'Inputs | Price Cap'!F$109)*(1+'Inputs | General'!H$26),2) -> 0 | K39: =ROUND('Output | Price Caps'!J39*(1-'Inputs | Price Cap'!G$109)*(1+'Inputs | General'!I$26),2) -> 0 | L39: =ROUND('Output | Price Caps'!K39*(1-'Inputs | Price Cap'!H$109)*(1+'Inputs | General'!J$26),2) -> 0 | M39: =ROUND('Output | Price Caps'!L39*(1-'Inputs | Price Cap'!I$109)*(1+'Inputs | General'!K$26),2) -> 0 | N39: =ROUND('Output | Price Caps'!M39*(1-'Inputs | Price Cap'!J$109)*(1+'Inputs | General'!L$26),2) -> 0
C40: 11 | D40: ='Inputs | Price Cap'!D75 -> 0 | E40: Capital | F40: ='Inputs | Price Cap'!F75 -> 0 | G40: ='Inputs | Price Cap'!G75 -> 0 | I40: =ROUND('Inputs | Price Cap'!H75,2) -> 0 | J40: =ROUND('Output | Price Caps'!I40*(1-'Inputs | Price Cap'!F$125)*(1+'Inputs | General'!H$26),2) -> 0 | K40: =ROUND('Output | Price Caps'!J40*(1-'Inputs | Price Cap'!G$125)*(1+'Inputs | General'!I$26),2) -> 0 | L40: =ROUND('Output | Price Caps'!K40*(1-'Inputs | Price Cap'!H$125)*(1+'Inputs | General'!J$26),2) -> 0 | M40: =ROUND('Output | Price Caps'!L40*(1-'Inputs | Price Cap'!I$125)*(1+'Inputs | General'!K$26),2) -> 0 | N40: =ROUND('Output | Price Caps'!M40*(1-'Inputs | Price Cap'!J$125)*(1+'Inputs | General'!L$26),2) -> 0
C41: 11 | D41: ='Inputs | Price Cap'!D76 -> 0 | E41: Total | F41: ='Inputs | Price Cap'!F76 -> 0 | G41: ='Inputs | Price Cap'!G76 -> 0 | I41: =ROUND('Inputs | Price Cap'!H76,2) -> 0 | J41: =J39+J40 -> 0 | K41: =K39+K40 -> 0 | L41: =L39+L40 -> 0 | M41: =M39+M40 -> 0 | N41: =N39+N40 -> 0
C42: 12 | D42: ='Inputs | Price Cap'!D77 -> 0 | E42: Non-capital | F42: ='Inputs | Price Cap'!F77 -> 0 | G42: ='Inputs | Price Cap'!G77 -> 0 | I42: =ROUND('Inputs | Price Cap'!H77,2) -> 0 | J42: =ROUND('Output | Price Caps'!I42*(1-'Inputs | Price Cap'!F$109)*(1+'Inputs | General'!H$26),2) -> 0 | K42: =ROUND('Output | Price Caps'!J42*(1-'Inputs | Price Cap'!G$109)*(1+'Inputs | General'!I$26),2) -> 0 | L42: =ROUND('Output | Price Caps'!K42*(1-'Inputs | Price Cap'!H$109)*(1+'Inputs | General'!J$26),2) -> 0 | M42: =ROUND('Output | Price Caps'!L42*(1-'Inputs | Price Cap'!I$109)*(1+'Inputs | General'!K$26),2) -> 0 | N42: =ROUND('Output | Price Caps'!M42*(1-'Inputs | Price Cap'!J$109)*(1+'Inputs | General'!L$26),2) -> 0
C43: 12 | D43: ='Inputs | Price Cap'!D78 -> 0 | E43: Capital | F43: ='Inputs | Price Cap'!F78 -> 0 | G43: ='Inputs | Price Cap'!G78 -> 0 | I43: =ROUND('Inputs | Price Cap'!H78,2) -> 0 | J43: =ROUND('Output | Price Caps'!I43*(1-'Inputs | Price Cap'!F$125)*(1+'Inputs | General'!H$26),2) -> 0 | K43: =ROUND('Output | Price Caps'!J43*(1-'Inputs | Price Cap'!G$125)*(1+'Inputs | General'!I$26),2) -> 0 | L43: =ROUND('Output | Price Caps'!K43*(1-'Inputs | Price Cap'!H$125)*(1+'Inputs | General'!J$26),2) -> 0 | M43: =ROUND('Output | Price Caps'!L43*(1-'Inputs | Price Cap'!I$125)*(1+'Inputs | General'!K$26),2) -> 0 | N43: =ROUND('Output | Price Caps'!M43*(1-'Inputs | Price Cap'!J$125)*(1+'Inputs | General'!L$26),2) -> 0
C44: 12 | D44: ='Inputs | Price Cap'!D79 -> 0 | E44: Total | F44: ='Inputs | Price Cap'!F79 -> 0 | G44: ='Inputs | Price Cap'!G79 -> 0 | I44: =ROUND('Inputs | Price Cap'!H79,2) -> 0 | J44: =J42+J43 -> 0 | K44: =K42+K43 -> 0 | L44: =L42+L43 -> 0 | M44: =M42+M43 -> 0 | N44: =N42+N43 -> 0
C45: 13 | D45: ='Inputs | Price Cap'!D80 -> 0 | E45: Non-capital | F45: ='Inputs | Price Cap'!F80 -> 0 | G45: ='Inputs | Price Cap'!G80 -> 0 | I45: =ROUND('Inputs | Price Cap'!H80,2) -> 0 | J45: =ROUND('Output | Price Caps'!I45*(1-'Inputs | Price Cap'!F$109)*(1+'Inputs | General'!H$26),2) -> 0 | K45: =ROUND('Output | Price Caps'!J45*(1-'Inputs | Price Cap'!G$109)*(1+'Inputs | General'!I$26),2) -> 0 | L45: =ROUND('Output | Price Caps'!K45*(1-'Inputs | Price Cap'!H$109)*(1+'Inputs | General'!J$26),2) -> 0 | M45: =ROUND('Output | Price Caps'!L45*(1-'Inputs | Price Cap'!I$109)*(1+'Inputs | General'!K$26),2) -> 0 | N45: =ROUND('Output | Price Caps'!M45*(1-'Inputs | Price Cap'!J$109)*(1+'Inputs | General'!L$26),2) -> 0
C46: 13 | D46: ='Inputs | Price Cap'!D81 -> 0 | E46: Capital | F46: ='Inputs | Price Cap'!F81 -> 0 | G46: ='Inputs | Price Cap'!G81 -> 0 | I46: =ROUND('Inputs | Price Cap'!H81,2) -> 0 | J46: =ROUND('Output | Price Caps'!I46*(1-'Inputs | Price Cap'!F$125)*(1+'Inputs | General'!H$26),2) -> 0 | K46: =ROUND('Output | Price Caps'!J46*(1-'Inputs | Price Cap'!G$125)*(1+'Inputs | General'!I$26),2) -> 0 | L46: =ROUND('Output | Price Caps'!K46*(1-'Inputs | Price Cap'!H$125)*(1+'Inputs | General'!J$26),2) -> 0 | M46: =ROUND('Output | Price Caps'!L46*(1-'Inputs | Price Cap'!I$125)*(1+'Inputs | General'!K$26),2) -> 0 | N46: =ROUND('Output | Price Caps'!M46*(1-'Inputs | Price Cap'!J$125)*(1+'Inputs | General'!L$26),2) -> 0
C47: 13 | D47: ='Inputs | Price Cap'!D82 -> 0 | E47: Total | F47: ='Inputs | Price Cap'!F82 -> 0 | G47: ='Inputs | Price Cap'!G82 -> 0 | I47: =ROUND('Inputs | Price Cap'!H82,2) -> 0 | J47: =J45+J46 -> 0 | K47: =K45+K46 -> 0 | L47: =L45+L46 -> 0 | M47: =M45+M46 -> 0 | N47: =N45+N46 -> 0
C48: 14 | D48: ='Inputs | Price Cap'!D83 -> 0 | E48: Non-capital | F48: ='Inputs | Price Cap'!F83 -> 0 | G48: ='Inputs | Price Cap'!G83 -> 0 | I48: =ROUND('Inputs | Price Cap'!H83,2) -> 0 | J48: =ROUND('Output | Price Caps'!I48*(1-'Inputs | Price Cap'!F$109)*(1+'Inputs | General'!H$26),2) -> 0 | K48: =ROUND('Output | Price Caps'!J48*(1-'Inputs | Price Cap'!G$109)*(1+'Inputs | General'!I$26),2) -> 0 | L48: =ROUND('Output | Price Caps'!K48*(1-'Inputs | Price Cap'!H$109)*(1+'Inputs | General'!J$26),2) -> 0 | M48: =ROUND('Output | Price Caps'!L48*(1-'Inputs | Price Cap'!I$109)*(1+'Inputs | General'!K$26),2) -> 0 | N48: =ROUND('Output | Price Caps'!M48*(1-'Inputs | Price Cap'!J$109)*(1+'Inputs | General'!L$26),2) -> 0
C49: 14 | D49: ='Inputs | Price Cap'!D84 -> 0 | E49: Capital | F49: ='Inputs | Price Cap'!F84 -> 0 | G49: ='Inputs | Price Cap'!G84 -> 0 | I49: =ROUND('Inputs | Price Cap'!H84,2) -> 0 | J49: =ROUND('Output | Price Caps'!I49*(1-'Inputs | Price Cap'!F$125)*(1+'Inputs | General'!H$26),2) -> 0 | K49: =ROUND('Output | Price Caps'!J49*(1-'Inputs | Price Cap'!G$125)*(1+'Inputs | General'!I$26),2) -> 0 | L49: =ROUND('Output | Price Caps'!K49*(1-'Inputs | Price Cap'!H$125)*(1+'Inputs | General'!J$26),2) -> 0 | M49: =ROUND('Output | Price Caps'!L49*(1-'Inputs | Price Cap'!I$125)*(1+'Inputs | General'!K$26),2) -> 0 | N49: =ROUND('Output | Price Caps'!M49*(1-'Inputs | Price Cap'!J$125)*(1+'Inputs | General'!L$26),2) -> 0
C50: 14 | D50: ='Inputs | Price Cap'!D85 -> 0 | E50: Total | F50: ='Inputs | Price Cap'!F85 -> 0 | G50: ='Inputs | Price Cap'!G85 -> 0 | I50: =ROUND('Inputs | Price Cap'!H85,2) -> 0 | J50: =J48+J49 -> 0 | K50: =K48+K49 -> 0 | L50: =L48+L49 -> 0 | M50: =M48+M49 -> 0 | N50: =N48+N49 -> 0
C51: 15 | D51: ='Inputs | Price Cap'!D86 -> 0 | E51: Non-capital | F51: ='Inputs | Price Cap'!F86 -> 0 | G51: ='Inputs | Price Cap'!G86 -> 0 | I51: =ROUND('Inputs | Price Cap'!H86,2) -> 0 | J51: =ROUND('Output | Price Caps'!I51*(1-'Inputs | Price Cap'!F$109)*(1+'Inputs | General'!H$26),2) -> 0 | K51: =ROUND('Output | Price Caps'!J51*(1-'Inputs | Price Cap'!G$109)*(1+'Inputs | General'!I$26),2) -> 0 | L51: =ROUND('Output | Price Caps'!K51*(1-'Inputs | Price Cap'!H$109)*(1+'Inputs | General'!J$26),2) -> 0 | M51: =ROUND('Output | Price Caps'!L51*(1-'Inputs | Price Cap'!I$109)*(1+'Inputs | General'!K$26),2) -> 0 | N51: =ROUND('Output | Price Caps'!M51*(1-'Inputs | Price Cap'!J$109)*(1+'Inputs | General'!L$26),2) -> 0
C52: 15 | D52: ='Inputs | Price Cap'!D87 -> 0 | E52: Capital | F52: ='Inputs | Price Cap'!F87 -> 0 | G52: ='Inputs | Price Cap'!G87 -> 0 | I52: =ROUND('Inputs | Price Cap'!H87,2) -> 0 | J52: =ROUND('Output | Price Caps'!I52*(1-'Inputs | Price Cap'!F$125)*(1+'Inputs | General'!H$26),2) -> 0 | K52: =ROUND('Output | Price Caps'!J52*(1-'Inputs | Price Cap'!G$125)*(1+'Inputs | General'!I$26),2) -> 0 | L52: =ROUND('Output | Price Caps'!K52*(1-'Inputs | Price Cap'!H$125)*(1+'Inputs | General'!J$26),2) -> 0 | M52: =ROUND('Output | Price Caps'!L52*(1-'Inputs | Price Cap'!I$125)*(1+'Inputs | General'!K$26),2) -> 0 | N52: =ROUND('Output | Price Caps'!M52*(1-'Inputs | Price Cap'!J$125)*(1+'Inputs | General'!L$26),2) -> 0
C53: 15 | D53: ='Inputs | Price Cap'!D88 -> 0 | E53: Total | F53: ='Inputs | Price Cap'!F88 -> 0 | G53: ='Inputs | Price Cap'!G88 -> 0 | I53: =ROUND('Inputs | Price Cap'!H88,2) -> 0 | J53: =J51+J52 -> 0 | K53: =K51+K52 -> 0 | L53: =L51+L52 -> 0 | M53: =M51+M52 -> 0 | N53: =N51+N52 -> 0
B56: Implicit X-Factors
D57: X-Factors | E57: =FPFirstYear -> 2021-22 | F57: =LEFT(E57,4)+1&"-"&RIGHT(E57,2)+1 -> 2022-23 | G57: =LEFT(F57,4)+1&"-"&RIGHT(F57,2)+1 -> 2023-24 | H57: =LEFT(G57,4)+1&"-"&RIGHT(G57,2)+1 -> 2024-25 | I57: =LEFT(H57,4)+1&"-"&RIGHT(H57,2)+1 -> 2025-26
E58: P_0 | F58: X_02 | G58: X_03 | H58: X_04 | I58: X_05
D59: All Tariffs - Non-Capital | E59: =NC_P_0_WAPC -> -0.273156522 | F59: =NC_X_02_WAPC -> -0.01 | G59: =NC_X_03_WAPC -> -0.01 | H59: =NC_X_04_WAPC -> -0.01 | I59: =NC_X_05_WAPC -> -0.01
D60: All Tariffs - Capital | E60: =C_P_0_WAPC -> 0.1254211795 | F60: =C_X_02_WAPC -> 0.03 | G60: =C_X_03_WAPC -> 0.03 | H60: =C_X_04_WAPC -> 0.03 | I60: =C_X_05_WAPC -> 0.03
B65: Cost Metric
I66: Base Year Charges | J66: Price Cap - Annual Charges
D67: Price Cap Per Meter | F67: Application | G67: Units | H67: Basis | I67: =LEFT(J67,4)-1&"-"&RIGHT(J67,2)-1 -> 2020-21 | J67: =FPFirstYear -> 2021-22 | K67: =LEFT(J67,4)+1&"-"&RIGHT(J67,2)+1 -> 2022-23 | L67: =LEFT(K67,4)+1&"-"&RIGHT(K67,2)+1 -> 2023-24 | M67: =LEFT(L67,4)+1&"-"&RIGHT(L67,2)+1 -> 2024-25 | N67: =LEFT(M67,4)+1&"-"&RIGHT(M67,2)+1 -> 2025-26
D68: Volume Weighted Average Price Cap - Per Meter | F68: Non-capital | G68: $dollars | H68: nominal | I68: ='Calc | Price Cap'!I59/'Inputs | Price Cap'!I90 -> 10.81871345 | J68: ='Calc | Price Cap'!J59/'Inputs | Price Cap'!J90 -> 14.10690058 | K68: ='Calc | Price Cap'!K59/'Inputs | Price Cap'!K90 -> 14.59269006 | L68: ='Calc | Price Cap'!L59/'Inputs | Price Cap'!L90 -> 15.09935673 | M68: ='Calc | Price Cap'!M59/'Inputs | Price Cap'!M90 -> 15.61906433 | N68: ='Calc | Price Cap'!N59/'Inputs | Price Cap'!N90 -> 16.15964912
D69: Volume Weighted Average Price Cap - Per Meter | F69: Capital | G69: $dollars | H69: nominal | I69: ='Calc | Price Cap'!I60/'Inputs | Price Cap'!I91 -> 18.56382979 | J69: ='Calc | Price Cap'!J60/'Inputs | Price Cap'!J91 -> 16.63284574 | K69: ='Calc | Price Cap'!K60/'Inputs | Price Cap'!K91 -> 16.52175532 | L69: ='Calc | Price Cap'!L60/'Inputs | Price Cap'!L91 -> 16.41071809 | M69: ='Calc | Price Cap'!M60/'Inputs | Price Cap'!M91 -> 16.30757979 | N69: ='Calc | Price Cap'!N60/'Inputs | Price Cap'!N91 -> 16.20444149
D70: Volume Weighted Average Price Cap - Per Non-Capital Meter | F70: Total | G70: $dollars | H70: nominal | I70: ='Calc | Price Cap'!I61/'Inputs | Price Cap'!I90 -> 31.22807018 | J70: ='Calc | Price Cap'!J61/'Inputs | Price Cap'!J90 -> 34.42512671 | K70: ='Calc | Price Cap'!K61/'Inputs | Price Cap'!K90 -> 37.01771352 | L70: ='Calc | Price Cap'!L61/'Inputs | Price Cap'!L90 -> 39.84859264 | M70: ='Calc | Price Cap'!M61/'Inputs | Price Cap'!M90 -> 42.94538832 | N70: ='Calc | Price Cap'!N61/'Inputs | Price Cap'!N90 -> 46.3302013

Sheet Exit Fees >

Sheet Input | Exit Fees
B1: ='Title Page'!B8&" v"&'Title Page'!$C$10 -> Preliminary Standardised Metering Pricing Model v1 | M1: DNSP: | N1: =IF('Inputs | General'!$G$16="Price Cap","NOT USED",NSP) -> TEST NSP
B2: =MID(CELL("filename",A1),FIND("]",CELL("filename",A1))+1,255) -> Input | Exit Fees | H2: Key: | I2: Input | J2: External Link | K2: Internal Link
B5: =LEFT('Inputs | General'!B21,1)+1&". Linked Input - RAB" -> 3. Linked Input - RAB | J5: =IF('Inputs | General'!$G$16="Price Cap","NOT USED","") -> 
B7: Linked Input - RAB Meters | G7: Base Year | H7: Regulatory Period
E8: Units | G8: =LEFT(H8,4)-1&"-"&RIGHT(H8,2)-1 -> 2020-21 | H8: =FPFirstYear -> 2021-22 | I8: =LEFT(H8,4)+1&"-"&RIGHT(H8,2)+1 -> 2022-23 | J8: =LEFT(I8,4)+1&"-"&RIGHT(I8,2)+1 -> 2023-24 | K8: =LEFT(J8,4)+1&"-"&RIGHT(J8,2)+1 -> 2024-25 | L8: =LEFT(K8,4)+1&"-"&RIGHT(K8,2)+1 -> 2025-26
C9: Opening RAB | E9: $m | G9: 150 | H9: =G9+G10-G11 -> 132 | I9: =H9+H10-H11 -> 112.5 | J9: =I9+I10-I11 -> 91.5 | K9: =J9+J10-J11 -> 69 | L9: =K9+K10-K11 -> 46 | N9: Opening balance of METERS row in PTRM inputs sheet of PTRM
C10: Gross capital expenditure | E10: $m | G10: 7 | H10: 7.5 | I10: 8 | J10: 8.5 | K10: 9 | N10: Gross capex from METERS row in ASSETS sheet of PTRM
C11: Regulatory depreciation | E11: $m | G11: 25 | H11: 27 | I11: 29 | J11: 31 | K11: 32 | N11: Depreciation from METERS row in ASSETS sheet of PTRM
B14: Linked Input - RAB Comms & IT
E15: Units | G15: =LEFT(H15,4)-1&"-"&RIGHT(H15,2)-1 -> 2020-21 | H15: =FPFirstYear -> 2021-22 | I15: =LEFT(H15,4)+1&"-"&RIGHT(H15,2)+1 -> 2022-23 | J15: =LEFT(I15,4)+1&"-"&RIGHT(I15,2)+1 -> 2023-24 | K15: =LEFT(J15,4)+1&"-"&RIGHT(J15,2)+1 -> 2024-25 | L15: =LEFT(K15,4)+1&"-"&RIGHT(K15,2)+1 -> 2025-26
C16: Opening RAB | E16: $m | G16: 5 | H16: =G16+G17-G18 -> 14 | I16: =H16+H17-H18 -> 21 | J16: =I16+I17-I18 -> 26 | K16: =J16+J17-J18 -> 29 | L16: =K16+K17-K18 -> 31 | N16: Opening balance of COMMS & IT rows from PTRM INPUTS sheet of PTRM
C17: Gross capital expenditure | E17: $m | G17: 11 | H17: 10 | I17: 9 | J17: 8 | K17: 7 | L17: 6 | N17: Gross capex from COMMS & IT rows in ASSETS sheet of PTRM
C18: Regulatory depreciation | E18: $m | G18: 2 | H18: 3 | I18: 4 | J18: 5 | K18: 5 | L18: 5 | N18: Depreciation from COMMS & IT rows in ASSETS sheet of PTRM
E21: Units | G21: =LEFT(H21,4)-1&"-"&RIGHT(H21,2)-1 -> 2020-21 | H21: =FPFirstYear -> 2021-22 | I21: =LEFT(H21,4)+1&"-"&RIGHT(H21,2)+1 -> 2022-23 | J21: =LEFT(I21,4)+1&"-"&RIGHT(I21,2)+1 -> 2023-24 | K21: =LEFT(J21,4)+1&"-"&RIGHT(J21,2)+1 -> 2024-25 | L21: =LEFT(K21,4)+1&"-"&RIGHT(K21,2)+1 -> 2025-26
B22: TOTAL Opening RAB | E22: $m | G22: =G9+G16 -> 155 | H22: 146 | I22: 133.5 | J22: 117.5 | K22: 98 | L22: 77
B25: =LEFT(B5,1)+1&". Input | Define Exit Fees" -> 4. Input | Define Exit Fees
B27: Enter Allowed Exit Fee in final year of current Regulatory Period | G27: Exit Fee
D28: Exit Fee Name | F28: Units | G28: Last Year - Current RP
D29: Single phase | F29: $dollars | G29: 300
D30: Multiphase | F30: $dollars | G30: 500
D31: 0 | F31: $dollars
D32: 0 | F32: $dollars
D33: 0 | F33: $dollars
D34: 0 | F34: $dollars | G34: 0
D35: 0 | F35: $dollars | G35: 0
D36: 0 | F36: $dollars | G36: 0
D37: 0 | F37: $dollars | G37: 0
D38: 0 | F38: $dollars | G38: 0
B42: =LEFT(B25,1)+1&". Input | from Metering ACS Model" -> 5. Input | from Metering ACS Model
B44: METERS
B46: a | C46: Inputs - Designated Exit Fee by Meter Type | G46: b | H46: Linked Input - Meter Types & Unit Costs
K47: Equipment Cost | L47: Labour Cost | M47: Total Cost
D48: Designated Exit Fee | H48: Meter Type | I48: Units | J48: Basis | K48: New Meter Installations | L48: New Meter Installations | M48: New Meter Installations | Q48: Link from Metering - ACS Model
D49: Single phase | H49: Single phase single element | I49: $dollars | J49: 2019-12-01 | K49: 200 | L49: 250 | M49: =K49+L49 -> 450
D50: Single phase | H50: Single phase 2 element with contactor | I50: $dollars | J50: 2019-12-01 | K50: 200 | L50: 250 | M50: 450
D51: Multiphase | H51: Multiphase | I51: $dollars | J51: 2019-12-01 | K51: 350 | L51: 250 | M51: 600
D52: Multiphase | H52: Multiphase with contactor | I52: $dollars | J52: 2019-12-01 | K52: 350 | L52: 250 | M52: 600
D53: Multiphase | H53: Multiphase with CT connected | I53: $dollars | J53: 2019-12-01 | K53: 350 | L53: 500 | M53: 850
D54: 0 | I54: $dollars | J54: 2019-12-01 | M54: 0
D55: 0 | I55: $dollars | J55: 2019-12-01
D56: 0 | I56: $dollars | J56: 2019-12-01
D57: 0 | I57: $dollars | J57: 2019-12-01
D58: 0 | I58: $dollars | J58: 2019-12-01
D59: 0 | I59: $dollars | J59: 2019-12-01
D60: 0 | I60: $dollars | J60: 2019-12-01
D61: 0 | H61: 0 | I61: $dollars | J61: 2019-12-01
D62: 0 | H62: 0 | I62: $dollars | J62: 2019-12-01
D63: 0 | H63: 0 | I63: $dollars | J63: 2019-12-01
B66: e | C66: Linked Input - Gross Meter Population (Year End), by meter type
J67: Number of meters in year
H68: =H48 -> Meter Type | I68: Units | J68: =LEFT(K68,4)-1&"-"&RIGHT(K68,2)-1 -> 2020-21 | K68: =FPFirstYear -> 2021-22 | L68: =LEFT(K68,4)+1&"-"&RIGHT(K68,2)+1 -> 2022-23 | M68: =LEFT(L68,4)+1&"-"&RIGHT(L68,2)+1 -> 2023-24 | N68: 2024-25 | O68: 2025-26 | Q68: Link from Metering - ACS Model
H69: Single phase single element | I69: No. | J69: 500000 | K69: =J69 -> 500000 | L69: =K69 -> 500000 | M69: 500000 | N69: 500000 | O69: 500000
H70: Single phase 2 element with contactor | I70: No. | J70: 100000 | K70: =J70 -> 100000 | L70: 100000 | M70: 100000 | N70: 100000 | O70: 100000
H71: Multiphase | I71: No. | J71: 50000 | K71: 50000 | L71: 50000 | M71: 50000 | N71: 50000 | O71: 50000
H72: Multiphase with contactor | I72: No. | J72: 40000 | K72: 40000 | L72: 40000 | M72: 40000 | N72: 40000 | O72: 40000
H73: Multiphase with CT connected | I73: No. | J73: 5000 | K73: 5000 | L73: 5000 | M73: 5000 | N73: 5000 | O73: 5000
I74: No.
H75: =H55 -> 0 | I75: No.
H76: 0 | I76: No.
H77: 0 | I77: No.
H78: 0 | I78: No.
H79: 0 | I79: No.
H80: 0 | I80: No.
H81: 0 | I81: No. | J81: 0 | K81: 0 | L81: 0 | M81: 0 | N81: 0 | O81: 0
H82: 0 | I82: No. | J82: 0 | K82: 0 | L82: 0 | M82: 0 | N82: 0 | O82: 0
H83: 0 | I83: No. | J83: 0 | K83: 0 | L83: 0 | M83: 0 | N83: 0 | O83: 0
H84: Total | I84: No. | J84: =SUM(J69:J83) -> 695000 | K84: 695000 | L84: 695000 | M84: 695000 | N84: 695000 | O84: 695000
B87: =LEFT(B42,1)+1&". INPUT | Admin and handling" -> 6. INPUT | Admin and handling
B89: a | C89: Inputs - Admin Hourly Rate
D90: Admin Fees | E90: Units | G90: Rate
D91: Hourly Rate | E91: $dollars/hr | G91: 75
B94: b | C94: Inputs - Admin & Handling Costs
D95: Admin Process Description | G95: Amount ($Fixed or Hours) | H95: Calculated or Entered | I95: Proportion required | K95: =FPFirstYear -> 2021-22 | L95: =LEFT(K95,4)+1&"-"&RIGHT(K95,2)+1 -> 2022-23 | M95: =LEFT(L95,4)+1&"-"&RIGHT(L95,2)+1 -> 2023-24 | N95: =LEFT(M95,4)+1&"-"&RIGHT(M95,2)+1 -> 2024-25 | O95: =LEFT(N95,4)+1&"-"&RIGHT(N95,2)+1 -> 2025-26
D96: Site visit @ 20% of the time to rectify issues and locate missing meters | G96: 175 | H96: Calc-Fixed | I96: 0.2
D97: Back-office admin processing | G97: 0.25 | H97: Calc-Hourly | I97: 1
D98: Receipt Meters into store | G98: 0.27 | H98: Calc-Hourly | I98: 1 | L98: 15 | M98: 25
D99: 0 | K99: 5 | L99: =IF($H99="Fixed",$I99*$G99,$G$91*$G99*$I99) -> 0 | M99: =IF($H99="Fixed",$I99*$G99,$G$91*$G99*$I99) -> 0 | N99: 3 | O99: =IF($H99="Fixed",$I99*$G99,$G$91*$G99*$I99) -> 0
D100: 0
D101: 0
D102: 0
D103: 0
D104: 0
D105: 0
B107: c | C107: Admin & Handling Cost Calculation (Autofilled)
D108: Admin Process Description | G108: Amount (Fixed or Hours) | H108: Calculated or Entered | I108: Proportion required | K108: =FPFirstYear -> 2021-22 | L108: =LEFT(K108,4)+1&"-"&RIGHT(K108,2)+1 -> 2022-23 | M108: =LEFT(L108,4)+1&"-"&RIGHT(L108,2)+1 -> 2023-24 | N108: =LEFT(M108,4)+1&"-"&RIGHT(M108,2)+1 -> 2024-25 | O108: =LEFT(N108,4)+1&"-"&RIGHT(N108,2)+1 -> 2025-26
D109: =D96 -> Site visit @ 20% of the time to rectify issues and locate missing meters | G109: =G96 -> 175 | H109: Calc-Fixed | I109: 0.2 | K109: =IF($H109="Calc-Fixed",$I109*$G109,IF($H109="Calc-Hourly",$G$91*$G109*$I109,IF($H109="Entered",K96,0))) -> 35 | L109: =IF($H109="Calc-Fixed",$I109*$G109,IF($H109="Calc-Hourly",$G$91*$G109*$I109,IF($H109="Entered",L96,0))) -> 35 | M109: 35 | N109: 35 | O109: 35
D110: Back-office admin processing | G110: 0.25 | H110: Calc-Hourly | I110: 1 | K110: =IF($H110="Calc-Fixed",$I110*$G110,IF($H110="Calc-Hourly",$G$91*$G110*$I110,IF($H110="Entered",K97,0))) -> 18.75 | L110: 18.75 | M110: 18.75 | N110: 18.75 | O110: 18.75
D111: Receipt Meters into store | G111: 0.27 | H111: Calc-Hourly | I111: 1 | K111: =IF($H111="Calc-Fixed",$I111*$G111,IF($H111="Calc-Hourly",$G$91*$G111*$I111,IF($H111="Entered",K98,0))) -> 20.25 | L111: 20.25 | M111: 20.25 | N111: 20.25 | O111: 20.25
D112: 0 | G112: 0 | H112: 0 | I112: 0 | K112: =IF($H112="Calc-Fixed",$I112*$G112,IF($H112="Calc-Hourly",$G$91*$G112*$I112,IF($H112="Entered",K99,0))) -> 0 | L112: 0 | M112: 0 | N112: 0 | O112: 0
D113: 0 | G113: 0 | H113: 0 | I113: 0 | K113: =IF($H113="Calc-Fixed",$I113*$G113,IF($H113="Calc-Hourly",$G$91*$G113*$I113,IF($H113="Entered",K100,0))) -> 0 | L113: 0 | M113: 0 | N113: 0 | O113: 0
D114: 0 | G114: 0 | H114: 0 | I114: 0 | K114: =IF($H114="Calc-Fixed",$I114*$G114,IF($H114="Calc-Hourly",$G$91*$G114*$I114,IF($H114="Entered",K101,0))) -> 0 | L114: 0 | M114: 0 | N114: 0 | O114: 0
D115: 0 | G115: 0 | H115: 0 | I115: 0 | K115: =IF($H115="Calc-Fixed",$I115*$G115,IF($H115="Calc-Hourly",$G$91*$G115*$I115,IF($H115="Entered",K102,0))) -> 0 | L115: 0 | M115: 0 | N115: 0 | O115: 0
D116: 0 | G116: 0 | H116: 0 | I116: 0 | K116: =IF($H116="Calc-Fixed",$I116*$G116,IF($H116="Calc-Hourly",$G$91*$G116*$I116,IF($H116="Entered",K103,0))) -> 0 | L116: 0 | M116: 0 | N116: 0 | O116: 0
D117: 0 | G117: 0 | H117: 0 | I117: 0 | K117: =IF($H117="Calc-Fixed",$I117*$G117,IF($H117="Calc-Hourly",$G$91*$G117*$I117,IF($H117="Entered",K104,0))) -> 0 | L117: 0 | M117: 0 | N117: 0 | O117: 0
D118: 0 | G118: 0 | H118: 0 | I118: 0 | K118: =IF($H118="Calc-Fixed",$I118*$G118,IF($H118="Calc-Hourly",$G$91*$G118*$I118,IF($H118="Entered",K105,0))) -> 0 | L118: 0 | M118: 0 | N118: 0 | O118: 0
D119: TOTAL ADMIN and Handling | K119: =SUM(K109:K118) -> 74 | L119: =SUM(L109:L118) -> 74 | M119: =SUM(M109:M118) -> 74 | N119: =SUM(N109:N118) -> 74 | O119: =SUM(O109:O118) -> 74

Sheet Calc | Exit Fees
B1: ='Title Page'!B8&" v"&'Title Page'!$C$10 -> Preliminary Standardised Metering Pricing Model v1 | M1: DNSP: | N1: =IF('Inputs | General'!$G$16="Price Cap","NOT USED",NSP) -> TEST NSP
B2: =MID(CELL("filename",A1),FIND("]",CELL("filename",A1))+1,255) -> Calc | Exit Fees | H2: Key: | I2: Input | J2: External Link | K2: Internal Link
B5: CALCULATION | Meters
B7: Calculation of Allocated Meters RAB by Designated Exit Fee
E9: Volume of meters | J9: Base Year | K9: Regulatory period
F10: Exit Fee | G10: Units | J10: =LEFT(K10,4)-1&"-"&RIGHT(K10,2)-1 -> 2020-21 | K10: =FPFirstYear -> 2021-22 | L10: =LEFT(K10,4)+1&"-"&RIGHT(K10,2)+1 -> 2022-23 | M10: =LEFT(L10,4)+1&"-"&RIGHT(L10,2)+1 -> 2023-24 | N10: =LEFT(M10,4)+1&"-"&RIGHT(M10,2)+1 -> 2024-25 | O10: =LEFT(N10,4)+1&"-"&RIGHT(N10,2)+1 -> 2025-26
F11: ='Input | Exit Fees'!$D$29:$D$38 -> Single phase | G11: $dollars | J11: =IF($F11=0,0,SUMPRODUCT('Input | Exit Fees'!J$69:J$83,('Input | Exit Fees'!$D$49:$D$63=$F11)/1)) -> 600000 | K11: =IF($F11=0,0,SUMPRODUCT('Input | Exit Fees'!K$69:K$83,('Input | Exit Fees'!$D$49:$D$63=$F11)/1)) -> 600000 | L11: =IF($F11=0,0,SUMPRODUCT('Input | Exit Fees'!L$69:L$83,('Input | Exit Fees'!$D$49:$D$63=$F11)/1)) -> 600000 | M11: =IF($F11=0,0,SUMPRODUCT('Input | Exit Fees'!M$69:M$83,('Input | Exit Fees'!$D$49:$D$63=$F11)/1)) -> 600000 | N11: =IF($F11=0,0,SUMPRODUCT('Input | Exit Fees'!N$69:N$83,('Input | Exit Fees'!$D$49:$D$63=$F11)/1)) -> 600000 | O11: =IF($F11=0,0,SUMPRODUCT('Input | Exit Fees'!O$69:O$83,('Input | Exit Fees'!$D$49:$D$63=$F11)/1)) -> 600000
F12: Multiphase | G12: $dollars | J12: =IF($F12=0,0,SUMPRODUCT('Input | Exit Fees'!J$69:J$83,('Input | Exit Fees'!$D$49:$D$63=$F12)/1)) -> 95000 | K12: =IF($F12=0,0,SUMPRODUCT('Input | Exit Fees'!K$69:K$83,('Input | Exit Fees'!$D$49:$D$63=$F12)/1)) -> 95000 | L12: =IF($F12=0,0,SUMPRODUCT('Input | Exit Fees'!L$69:L$83,('Input | Exit Fees'!$D$49:$D$63=$F12)/1)) -> 95000 | M12: =IF($F12=0,0,SUMPRODUCT('Input | Exit Fees'!M$69:M$83,('Input | Exit Fees'!$D$49:$D$63=$F12)/1)) -> 95000 | N12: =IF($F12=0,0,SUMPRODUCT('Input | Exit Fees'!N$69:N$83,('Input | Exit Fees'!$D$49:$D$63=$F12)/1)) -> 95000 | O12: =IF($F12=0,0,SUMPRODUCT('Input | Exit Fees'!O$69:O$83,('Input | Exit Fees'!$D$49:$D$63=$F12)/1)) -> 95000
F13: 0 | G13: $dollars | J13: =IF($F13=0,0,SUMPRODUCT('Input | Exit Fees'!J$69:J$83,('Input | Exit Fees'!$D$49:$D$63=$F13)/1)) -> 0 | K13: =IF($F13=0,0,SUMPRODUCT('Input | Exit Fees'!K$69:K$83,('Input | Exit Fees'!$D$49:$D$63=$F13)/1)) -> 0 | L13: =IF($F13=0,0,SUMPRODUCT('Input | Exit Fees'!L$69:L$83,('Input | Exit Fees'!$D$49:$D$63=$F13)/1)) -> 0 | M13: =IF($F13=0,0,SUMPRODUCT('Input | Exit Fees'!M$69:M$83,('Input | Exit Fees'!$D$49:$D$63=$F13)/1)) -> 0 | N13: =IF($F13=0,0,SUMPRODUCT('Input | Exit Fees'!N$69:N$83,('Input | Exit Fees'!$D$49:$D$63=$F13)/1)) -> 0 | O13: =IF($F13=0,0,SUMPRODUCT('Input | Exit Fees'!O$69:O$83,('Input | Exit Fees'!$D$49:$D$63=$F13)/1)) -> 0
F14: 0 | G14: $dollars | J14: =IF($F14=0,0,SUMPRODUCT('Input | Exit Fees'!J$69:J$83,('Input | Exit Fees'!$D$49:$D$63=$F14)/1)) -> 0 | K14: =IF($F14=0,0,SUMPRODUCT('Input | Exit Fees'!K$69:K$83,('Input | Exit Fees'!$D$49:$D$63=$F14)/1)) -> 0 | L14: =IF($F14=0,0,SUMPRODUCT('Input | Exit Fees'!L$69:L$83,('Input | Exit Fees'!$D$49:$D$63=$F14)/1)) -> 0 | M14: =IF($F14=0,0,SUMPRODUCT('Input | Exit Fees'!M$69:M$83,('Input | Exit Fees'!$D$49:$D$63=$F14)/1)) -> 0 | N14: =IF($F14=0,0,SUMPRODUCT('Input | Exit Fees'!N$69:N$83,('Input | Exit Fees'!$D$49:$D$63=$F14)/1)) -> 0 | O14: =IF($F14=0,0,SUMPRODUCT('Input | Exit Fees'!O$69:O$83,('Input | Exit Fees'!$D$49:$D$63=$F14)/1)) -> 0
F15: 0 | G15: $dollars | J15: =IF($F15=0,0,SUMPRODUCT('Input | Exit Fees'!J$69:J$83,('Input | Exit Fees'!$D$49:$D$63=$F15)/1)) -> 0 | K15: =IF($F15=0,0,SUMPRODUCT('Input | Exit Fees'!K$69:K$83,('Input | Exit Fees'!$D$49:$D$63=$F15)/1)) -> 0 | L15: =IF($F15=0,0,SUMPRODUCT('Input | Exit Fees'!L$69:L$83,('Input | Exit Fees'!$D$49:$D$63=$F15)/1)) -> 0 | M15: =IF($F15=0,0,SUMPRODUCT('Input | Exit Fees'!M$69:M$83,('Input | Exit Fees'!$D$49:$D$63=$F15)/1)) -> 0 | N15: =IF($F15=0,0,SUMPRODUCT('Input | Exit Fees'!N$69:N$83,('Input | Exit Fees'!$D$49:$D$63=$F15)/1)) -> 0 | O15: =IF($F15=0,0,SUMPRODUCT('Input | Exit Fees'!O$69:O$83,('Input | Exit Fees'!$D$49:$D$63=$F15)/1)) -> 0
F16: 0 | G16: $dollars | J16: =IF($F16=0,0,SUMPRODUCT('Input | Exit Fees'!J$69:J$83,('Input | Exit Fees'!$D$49:$D$63=$F16)/1)) -> 0 | K16: =IF($F16=0,0,SUMPRODUCT('Input | Exit Fees'!K$69:K$83,('Input | Exit Fees'!$D$49:$D$63=$F16)/1)) -> 0 | L16: =IF($F16=0,0,SUMPRODUCT('Input | Exit Fees'!L$69:L$83,('Input | Exit Fees'!$D$49:$D$63=$F16)/1)) -> 0 | M16: =IF($F16=0,0,SUMPRODUCT('Input | Exit Fees'!M$69:M$83,('Input | Exit Fees'!$D$49:$D$63=$F16)/1)) -> 0 | N16: =IF($F16=0,0,SUMPRODUCT('Input | Exit Fees'!N$69:N$83,('Input | Exit Fees'!$D$49:$D$63=$F16)/1)) -> 0 | O16: =IF($F16=0,0,SUMPRODUCT('Input | Exit Fees'!O$69:O$83,('Input | Exit Fees'!$D$49:$D$63=$F16)/1)) -> 0
F17: 0 | G17: $dollars | J17: =IF($F17=0,0,SUMPRODUCT('Input | Exit Fees'!J$69:J$83,('Input | Exit Fees'!$D$49:$D$63=$F17)/1)) -> 0 | K17: =IF($F17=0,0,SUMPRODUCT('Input | Exit Fees'!K$69:K$83,('Input | Exit Fees'!$D$49:$D$63=$F17)/1)) -> 0 | L17: =IF($F17=0,0,SUMPRODUCT('Input | Exit Fees'!L$69:L$83,('Input | Exit Fees'!$D$49:$D$63=$F17)/1)) -> 0 | M17: =IF($F17=0,0,SUMPRODUCT('Input | Exit Fees'!M$69:M$83,('Input | Exit Fees'!$D$49:$D$63=$F17)/1)) -> 0 | N17: =IF($F17=0,0,SUMPRODUCT('Input | Exit Fees'!N$69:N$83,('Input | Exit Fees'!$D$49:$D$63=$F17)/1)) -> 0 | O17: =IF($F17=0,0,SUMPRODUCT('Input | Exit Fees'!O$69:O$83,('Input | Exit Fees'!$D$49:$D$63=$F17)/1)) -> 0
F18: 0 | G18: $dollars | J18: =IF($F18=0,0,SUMPRODUCT('Input | Exit Fees'!J$69:J$83,('Input | Exit Fees'!$D$49:$D$63=$F18)/1)) -> 0 | K18: =IF($F18=0,0,SUMPRODUCT('Input | Exit Fees'!K$69:K$83,('Input | Exit Fees'!$D$49:$D$63=$F18)/1)) -> 0 | L18: =IF($F18=0,0,SUMPRODUCT('Input | Exit Fees'!L$69:L$83,('Input | Exit Fees'!$D$49:$D$63=$F18)/1)) -> 0 | M18: =IF($F18=0,0,SUMPRODUCT('Input | Exit Fees'!M$69:M$83,('Input | Exit Fees'!$D$49:$D$63=$F18)/1)) -> 0 | N18: =IF($F18=0,0,SUMPRODUCT('Input | Exit Fees'!N$69:N$83,('Input | Exit Fees'!$D$49:$D$63=$F18)/1)) -> 0 | O18: =IF($F18=0,0,SUMPRODUCT('Input | Exit Fees'!O$69:O$83,('Input | Exit Fees'!$D$49:$D$63=$F18)/1)) -> 0
F19: 0 | G19: $dollars | J19: =IF($F19=0,0,SUMPRODUCT('Input | Exit Fees'!J$69:J$83,('Input | Exit Fees'!$D$49:$D$63=$F19)/1)) -> 0 | K19: =IF($F19=0,0,SUMPRODUCT('Input | Exit Fees'!K$69:K$83,('Input | Exit Fees'!$D$49:$D$63=$F19)/1)) -> 0 | L19: =IF($F19=0,0,SUMPRODUCT('Input | Exit Fees'!L$69:L$83,('Input | Exit Fees'!$D$49:$D$63=$F19)/1)) -> 0 | M19: =IF($F19=0,0,SUMPRODUCT('Input | Exit Fees'!M$69:M$83,('Input | Exit Fees'!$D$49:$D$63=$F19)/1)) -> 0 | N19: =IF($F19=0,0,SUMPRODUCT('Input | Exit Fees'!N$69:N$83,('Input | Exit Fees'!$D$49:$D$63=$F19)/1)) -> 0 | O19: =IF($F19=0,0,SUMPRODUCT('Input | Exit Fees'!O$69:O$83,('Input | Exit Fees'!$D$49:$D$63=$F19)/1)) -> 0
F20: 0 | G20: $dollars | J20: =IF($F20=0,0,SUMPRODUCT('Input | Exit Fees'!J$69:J$83,('Input | Exit Fees'!$D$49:$D$63=$F20)/1)) -> 0 | K20: =IF($F20=0,0,SUMPRODUCT('Input | Exit Fees'!K$69:K$83,('Input | Exit Fees'!$D$49:$D$63=$F20)/1)) -> 0 | L20: =IF($F20=0,0,SUMPRODUCT('Input | Exit Fees'!L$69:L$83,('Input | Exit Fees'!$D$49:$D$63=$F20)/1)) -> 0 | M20: =IF($F20=0,0,SUMPRODUCT('Input | Exit Fees'!M$69:M$83,('Input | Exit Fees'!$D$49:$D$63=$F20)/1)) -> 0 | N20: =IF($F20=0,0,SUMPRODUCT('Input | Exit Fees'!N$69:N$83,('Input | Exit Fees'!$D$49:$D$63=$F20)/1)) -> 0 | O20: =IF($F20=0,0,SUMPRODUCT('Input | Exit Fees'!O$69:O$83,('Input | Exit Fees'!$D$49:$D$63=$F20)/1)) -> 0
F21: Total | G21: $dollars | J21: =SUM(J11:J20) -> 695000 | K21: 695000 | L21: 695000 | M21: 695000 | N21: 695000 | O21: 695000
E24: Cost-Weighted Volume of Meters | K24: Regulatory period
F25: Exit Fee | G25: Units | K25: =FPFirstYear -> 2021-22 | L25: =LEFT(K25,4)+1&"-"&RIGHT(K25,2)+1 -> 2022-23 | M25: =LEFT(L25,4)+1&"-"&RIGHT(L25,2)+1 -> 2023-24 | N25: =LEFT(M25,4)+1&"-"&RIGHT(M25,2)+1 -> 2024-25 | O25: =LEFT(N25,4)+1&"-"&RIGHT(N25,2)+1 -> 2025-26
F26: ='Input | Exit Fees'!$D$29:$D$38 -> Single phase | G26: $dollars | K26: =SUMPRODUCT('Input | Exit Fees'!$M$49:$M$63,'Input | Exit Fees'!K$69:K$83,('Input | Exit Fees'!$D$49:$D$63=$F26)/1) -> 270000000 | L26: =SUMPRODUCT('Input | Exit Fees'!$M$49:$M$63,'Input | Exit Fees'!L$69:L$83,('Input | Exit Fees'!$D$49:$D$63=$F26)/1) -> 270000000 | M26: =SUMPRODUCT('Input | Exit Fees'!$M$49:$M$63,'Input | Exit Fees'!M$69:M$83,('Input | Exit Fees'!$D$49:$D$63=$F26)/1) -> 270000000 | N26: =SUMPRODUCT('Input | Exit Fees'!$M$49:$M$63,'Input | Exit Fees'!N$69:N$83,('Input | Exit Fees'!$D$49:$D$63=$F26)/1) -> 270000000 | O26: =SUMPRODUCT('Input | Exit Fees'!$M$49:$M$63,'Input | Exit Fees'!O$69:O$83,('Input | Exit Fees'!$D$49:$D$63=$F26)/1) -> 270000000
F27: Multiphase | G27: $dollars | K27: =SUMPRODUCT('Input | Exit Fees'!$M$49:$M$63,'Input | Exit Fees'!K$69:K$83,('Input | Exit Fees'!$D$49:$D$63=$F27)/1) -> 58250000 | L27: =SUMPRODUCT('Input | Exit Fees'!$M$49:$M$63,'Input | Exit Fees'!L$69:L$83,('Input | Exit Fees'!$D$49:$D$63=$F27)/1) -> 58250000 | M27: =SUMPRODUCT('Input | Exit Fees'!$M$49:$M$63,'Input | Exit Fees'!M$69:M$83,('Input | Exit Fees'!$D$49:$D$63=$F27)/1) -> 58250000 | N27: =SUMPRODUCT('Input | Exit Fees'!$M$49:$M$63,'Input | Exit Fees'!N$69:N$83,('Input | Exit Fees'!$D$49:$D$63=$F27)/1) -> 58250000 | O27: =SUMPRODUCT('Input | Exit Fees'!$M$49:$M$63,'Input | Exit Fees'!O$69:O$83,('Input | Exit Fees'!$D$49:$D$63=$F27)/1) -> 58250000
F28: 0 | G28: $dollars | K28: =SUMPRODUCT('Input | Exit Fees'!$M$49:$M$63,'Input | Exit Fees'!K$69:K$83,('Input | Exit Fees'!$D$49:$D$63=$F28)/1) -> 0 | L28: =SUMPRODUCT('Input | Exit Fees'!$M$49:$M$63,'Input | Exit Fees'!L$69:L$83,('Input | Exit Fees'!$D$49:$D$63=$F28)/1) -> 0 | M28: =SUMPRODUCT('Input | Exit Fees'!$M$49:$M$63,'Input | Exit Fees'!M$69:M$83,('Input | Exit Fees'!$D$49:$D$63=$F28)/1) -> 0 | N28: =SUMPRODUCT('Input | Exit Fees'!$M$49:$M$63,'Input | Exit Fees'!N$69:N$83,('Input | Exit Fees'!$D$49:$D$63=$F28)/1) -> 0 | O28: =SUMPRODUCT('Input | Exit Fees'!$M$49:$M$63,'Input | Exit Fees'!O$69:O$83,('Input | Exit Fees'!$D$49:$D$63=$F28)/1) -> 0
F29: 0 | G29: $dollars | K29: =SUMPRODUCT('Input | Exit Fees'!$M$49:$M$63,'Input | Exit Fees'!K$69:K$83,('Input | Exit Fees'!$D$49:$D$63=$F29)/1) -> 0 | L29: =SUMPRODUCT('Input | Exit Fees'!$M$49:$M$63,'Input | Exit Fees'!L$69:L$83,('Input | Exit Fees'!$D$49:$D$63=$F29)/1) -> 0 | M29: =SUMPRODUCT('Input | Exit Fees'!$M$49:$M$63,'Input | Exit Fees'!M$69:M$83,('Input | Exit Fees'!$D$49:$D$63=$F29)/1) -> 0 | N29: =SUMPRODUCT('Input | Exit Fees'!$M$49:$M$63,'Input | Exit Fees'!N$69:N$83,('Input | Exit Fees'!$D$49:$D$63=$F29)/1) -> 0 | O29: =SUMPRODUCT('Input | Exit Fees'!$M$49:$M$63,'Input | Exit Fees'!O$69:O$83,('Input | Exit Fees'!$D$49:$D$63=$F29)/1) -> 0
F30: 0 | G30: $dollars | K30: =SUMPRODUCT('Input | Exit Fees'!$M$49:$M$63,'Input | Exit Fees'!K$69:K$83,('Input | Exit Fees'!$D$49:$D$63=$F30)/1) -> 0 | L30: =SUMPRODUCT('Input | Exit Fees'!$M$49:$M$63,'Input | Exit Fees'!L$69:L$83,('Input | Exit Fees'!$D$49:$D$63=$F30)/1) -> 0 | M30: =SUMPRODUCT('Input | Exit Fees'!$M$49:$M$63,'Input | Exit Fees'!M$69:M$83,('Input | Exit Fees'!$D$49:$D$63=$F30)/1) -> 0 | N30: =SUMPRODUCT('Input | Exit Fees'!$M$49:$M$63,'Input | Exit Fees'!N$69:N$83,('Input | Exit Fees'!$D$49:$D$63=$F30)/1) -> 0 | O30: =SUMPRODUCT('Input | Exit Fees'!$M$49:$M$63,'Input | Exit Fees'!O$69:O$83,('Input | Exit Fees'!$D$49:$D$63=$F30)/1) -> 0
F31: 0 | G31: $dollars | K31: =SUMPRODUCT('Input | Exit Fees'!$M$49:$M$63,'Input | Exit Fees'!K$69:K$83,('Input | Exit Fees'!$D$49:$D$63=$F31)/1) -> 0 | L31: =SUMPRODUCT('Input | Exit Fees'!$M$49:$M$63,'Input | Exit Fees'!L$69:L$83,('Input | Exit Fees'!$D$49:$D$63=$F31)/1) -> 0 | M31: =SUMPRODUCT('Input | Exit Fees'!$M$49:$M$63,'Input | Exit Fees'!M$69:M$83,('Input | Exit Fees'!$D$49:$D$63=$F31)/1) -> 0 | N31: =SUMPRODUCT('Input | Exit Fees'!$M$49:$M$63,'Input | Exit Fees'!N$69:N$83,('Input | Exit Fees'!$D$49:$D$63=$F31)/1) -> 0 | O31: =SUMPRODUCT('Input | Exit Fees'!$M$49:$M$63,'Input | Exit Fees'!O$69:O$83,('Input | Exit Fees'!$D$49:$D$63=$F31)/1) -> 0
F32: 0 | G32: $dollars | K32: =SUMPRODUCT('Input | Exit Fees'!$M$49:$M$63,'Input | Exit Fees'!K$69:K$83,('Input | Exit Fees'!$D$49:$D$63=$F32)/1) -> 0 | L32: =SUMPRODUCT('Input | Exit Fees'!$M$49:$M$63,'Input | Exit Fees'!L$69:L$83,('Input | Exit Fees'!$D$49:$D$63=$F32)/1) -> 0 | M32: =SUMPRODUCT('Input | Exit Fees'!$M$49:$M$63,'Input | Exit Fees'!M$69:M$83,('Input | Exit Fees'!$D$49:$D$63=$F32)/1) -> 0 | N32: =SUMPRODUCT('Input | Exit Fees'!$M$49:$M$63,'Input | Exit Fees'!N$69:N$83,('Input | Exit Fees'!$D$49:$D$63=$F32)/1) -> 0 | O32: =SUMPRODUCT('Input | Exit Fees'!$M$49:$M$63,'Input | Exit Fees'!O$69:O$83,('Input | Exit Fees'!$D$49:$D$63=$F32)/1) -> 0
F33: 0 | G33: $dollars | K33: =SUMPRODUCT('Input | Exit Fees'!$M$49:$M$63,'Input | Exit Fees'!K$69:K$83,('Input | Exit Fees'!$D$49:$D$63=$F33)/1) -> 0 | L33: =SUMPRODUCT('Input | Exit Fees'!$M$49:$M$63,'Input | Exit Fees'!L$69:L$83,('Input | Exit Fees'!$D$49:$D$63=$F33)/1) -> 0 | M33: =SUMPRODUCT('Input | Exit Fees'!$M$49:$M$63,'Input | Exit Fees'!M$69:M$83,('Input | Exit Fees'!$D$49:$D$63=$F33)/1) -> 0 | N33: =SUMPRODUCT('Input | Exit Fees'!$M$49:$M$63,'Input | Exit Fees'!N$69:N$83,('Input | Exit Fees'!$D$49:$D$63=$F33)/1) -> 0 | O33: =SUMPRODUCT('Input | Exit Fees'!$M$49:$M$63,'Input | Exit Fees'!O$69:O$83,('Input | Exit Fees'!$D$49:$D$63=$F33)/1) -> 0
F34: 0 | G34: $dollars | K34: =SUMPRODUCT('Input | Exit Fees'!$M$49:$M$63,'Input | Exit Fees'!K$69:K$83,('Input | Exit Fees'!$D$49:$D$63=$F34)/1) -> 0 | L34: =SUMPRODUCT('Input | Exit Fees'!$M$49:$M$63,'Input | Exit Fees'!L$69:L$83,('Input | Exit Fees'!$D$49:$D$63=$F34)/1) -> 0 | M34: =SUMPRODUCT('Input | Exit Fees'!$M$49:$M$63,'Input | Exit Fees'!M$69:M$83,('Input | Exit Fees'!$D$49:$D$63=$F34)/1) -> 0 | N34: =SUMPRODUCT('Input | Exit Fees'!$M$49:$M$63,'Input | Exit Fees'!N$69:N$83,('Input | Exit Fees'!$D$49:$D$63=$F34)/1) -> 0 | O34: =SUMPRODUCT('Input | Exit Fees'!$M$49:$M$63,'Input | Exit Fees'!O$69:O$83,('Input | Exit Fees'!$D$49:$D$63=$F34)/1) -> 0
F35: 0 | G35: $dollars | K35: =SUMPRODUCT('Input | Exit Fees'!$M$49:$M$63,'Input | Exit Fees'!K$69:K$83,('Input | Exit Fees'!$D$49:$D$63=$F35)/1) -> 0 | L35: =SUMPRODUCT('Input | Exit Fees'!$M$49:$M$63,'Input | Exit Fees'!L$69:L$83,('Input | Exit Fees'!$D$49:$D$63=$F35)/1) -> 0 | M35: =SUMPRODUCT('Input | Exit Fees'!$M$49:$M$63,'Input | Exit Fees'!M$69:M$83,('Input | Exit Fees'!$D$49:$D$63=$F35)/1) -> 0 | N35: =SUMPRODUCT('Input | Exit Fees'!$M$49:$M$63,'Input | Exit Fees'!N$69:N$83,('Input | Exit Fees'!$D$49:$D$63=$F35)/1) -> 0 | O35: =SUMPRODUCT('Input | Exit Fees'!$M$49:$M$63,'Input | Exit Fees'!O$69:O$83,('Input | Exit Fees'!$D$49:$D$63=$F35)/1) -> 0
F36: Total | G36: $dollars | K36: =SUM(K26:K35) -> 328250000 | L36: =SUM(L26:L35) -> 328250000 | M36: =SUM(M26:M35) -> 328250000 | N36: =SUM(N26:N35) -> 328250000 | O36: =SUM(O26:O35) -> 328250000
E39: Proportionate Volume-Weighted Costs | K39: Regulatory period
F40: Exit Fee | G40: Units | K40: =FPFirstYear -> 2021-22 | L40: =LEFT(K40,4)+1&"-"&RIGHT(K40,2)+1 -> 2022-23 | M40: =LEFT(L40,4)+1&"-"&RIGHT(L40,2)+1 -> 2023-24 | N40: =LEFT(M40,4)+1&"-"&RIGHT(M40,2)+1 -> 2024-25 | O40: =LEFT(N40,4)+1&"-"&RIGHT(N40,2)+1 -> 2025-26
F41: ='Input | Exit Fees'!$D$29:$D$38 -> Single phase | G41: % | K41: =K26/K$36 -> 0.8225437928 | L41: 0.8225437928 | M41: 0.8225437928 | N41: 0.8225437928 | O41: 0.8225437928
F42: Multiphase | G42: % | K42: 0.1774562072 | L42: 0.1774562072 | M42: 0.1774562072 | N42: 0.1774562072 | O42: 0.1774562072
F43: 0 | G43: % | K43: 0 | L43: 0 | M43: 0 | N43: 0 | O43: 0
F44: 0 | G44: % | K44: 0 | L44: 0 | M44: 0 | N44: 0 | O44: 0
F45: 0 | G45: % | K45: 0 | L45: 0 | M45: 0 | N45: 0 | O45: 0
F46: 0 | G46: % | K46: 0 | L46: 0 | M46: 0 | N46: 0 | O46: 0
F47: 0 | G47: % | K47: 0 | L47: 0 | M47: 0 | N47: 0 | O47: 0
F48: 0 | G48: % | K48: 0 | L48: 0 | M48: 0 | N48: 0 | O48: 0
F49: 0 | G49: % | K49: 0 | L49: 0 | M49: 0 | N49: 0 | O49: 0
F50: 0 | G50: % | K50: 0 | L50: 0 | M50: 0 | N50: 0 | O50: 0
F51: Total | G51: % | K51: =SUM(K41:K50) -> 1 | L51: =SUM(L41:L50) -> 1 | M51: =SUM(M41:M50) -> 1 | N51: =SUM(N41:N50) -> 1 | O51: =SUM(O41:O50) -> 1
A52: =PRODUCT(J52:O52) -> 1 | K52: =(K51=1)/1 -> 1 | L52: =(L51=1)/1 -> 1 | M52: =(M51=1)/1 -> 1 | N52: =(N51=1)/1 -> 1 | O52: =(O51=1)/1 -> 1
E55: Allocated Meter RAB by Designated Exit Fee | K55: Regulatory period
F56: Exit Fee | G56: Units | K56: =FPFirstYear -> 2021-22 | L56: =LEFT(K56,4)+1&"-"&RIGHT(K56,2)+1 -> 2022-23 | M56: =LEFT(L56,4)+1&"-"&RIGHT(L56,2)+1 -> 2023-24 | N56: =LEFT(M56,4)+1&"-"&RIGHT(M56,2)+1 -> 2024-25 | O56: =LEFT(N56,4)+1&"-"&RIGHT(N56,2)+1 -> 2025-26
F57: ='Input | Exit Fees'!$D$29:$D$38 -> Single phase | G57: $m | K57: =AVERAGE('Input | Exit Fees'!G$8:H$9)*'Calc | Exit Fees'!K41 -> 115.9786748 | L57: =AVERAGE('Input | Exit Fees'!H$8:I$9)*'Calc | Exit Fees'!L41 -> 100.5559787 | M57: =AVERAGE('Input | Exit Fees'!I$8:J$9)*'Calc | Exit Fees'!M41 -> 83.89946687 | N57: =AVERAGE('Input | Exit Fees'!J$8:K$9)*'Calc | Exit Fees'!N41 -> 66.00913938 | O57: =AVERAGE('Input | Exit Fees'!K$8:L$9)*'Calc | Exit Fees'!O41 -> 47.29626809
F58: Multiphase | G58: $m | K58: =AVERAGE('Input | Exit Fees'!G$8:H$9)*'Calc | Exit Fees'!K42 -> 25.02132521 | L58: =AVERAGE('Input | Exit Fees'!H$8:I$9)*'Calc | Exit Fees'!L42 -> 21.69402133 | M58: =AVERAGE('Input | Exit Fees'!I$8:J$9)*'Calc | Exit Fees'!M42 -> 18.10053313 | N58: =AVERAGE('Input | Exit Fees'!J$8:K$9)*'Calc | Exit Fees'!N42 -> 14.24086062 | O58: =AVERAGE('Input | Exit Fees'!K$8:L$9)*'Calc | Exit Fees'!O42 -> 10.20373191
F59: 0 | G59: $m | K59: =AVERAGE('Input | Exit Fees'!G$8:H$9)*'Calc | Exit Fees'!K43 -> 0 | L59: =AVERAGE('Input | Exit Fees'!H$8:I$9)*'Calc | Exit Fees'!L43 -> 0 | M59: =AVERAGE('Input | Exit Fees'!I$8:J$9)*'Calc | Exit Fees'!M43 -> 0 | N59: =AVERAGE('Input | Exit Fees'!J$8:K$9)*'Calc | Exit Fees'!N43 -> 0 | O59: =AVERAGE('Input | Exit Fees'!K$8:L$9)*'Calc | Exit Fees'!O43 -> 0
F60: 0 | G60: $m | K60: =AVERAGE('Input | Exit Fees'!G$8:H$9)*'Calc | Exit Fees'!K44 -> 0 | L60: =AVERAGE('Input | Exit Fees'!H$8:I$9)*'Calc | Exit Fees'!L44 -> 0 | M60: =AVERAGE('Input | Exit Fees'!I$8:J$9)*'Calc | Exit Fees'!M44 -> 0 | N60: =AVERAGE('Input | Exit Fees'!J$8:K$9)*'Calc | Exit Fees'!N44 -> 0 | O60: =AVERAGE('Input | Exit Fees'!K$8:L$9)*'Calc | Exit Fees'!O44 -> 0
F61: 0 | G61: $m | K61: =AVERAGE('Input | Exit Fees'!G$8:H$9)*'Calc | Exit Fees'!K45 -> 0 | L61: =AVERAGE('Input | Exit Fees'!H$8:I$9)*'Calc | Exit Fees'!L45 -> 0 | M61: =AVERAGE('Input | Exit Fees'!I$8:J$9)*'Calc | Exit Fees'!M45 -> 0 | N61: =AVERAGE('Input | Exit Fees'!J$8:K$9)*'Calc | Exit Fees'!N45 -> 0 | O61: =AVERAGE('Input | Exit Fees'!K$8:L$9)*'Calc | Exit Fees'!O45 -> 0
F62: 0 | G62: $m | K62: =AVERAGE('Input | Exit Fees'!G$8:H$9)*'Calc | Exit Fees'!K46 -> 0 | L62: =AVERAGE('Input | Exit Fees'!H$8:I$9)*'Calc | Exit Fees'!L46 -> 0 | M62: =AVERAGE('Input | Exit Fees'!I$8:J$9)*'Calc | Exit Fees'!M46 -> 0 | N62: =AVERAGE('Input | Exit Fees'!J$8:K$9)*'Calc | Exit Fees'!N46 -> 0 | O62: =AVERAGE('Input | Exit Fees'!K$8:L$9)*'Calc | Exit Fees'!O46 -> 0
F63: 0 | G63: $m | K63: =AVERAGE('Input | Exit Fees'!G$8:H$9)*'Calc | Exit Fees'!K47 -> 0 | L63: =AVERAGE('Input | Exit Fees'!H$8:I$9)*'Calc | Exit Fees'!L47 -> 0 | M63: =AVERAGE('Input | Exit Fees'!I$8:J$9)*'Calc | Exit Fees'!M47 -> 0 | N63: =AVERAGE('Input | Exit Fees'!J$8:K$9)*'Calc | Exit Fees'!N47 -> 0 | O63: =AVERAGE('Input | Exit Fees'!K$8:L$9)*'Calc | Exit Fees'!O47 -> 0
F64: 0 | G64: $m | K64: =AVERAGE('Input | Exit Fees'!G$8:H$9)*'Calc | Exit Fees'!K48 -> 0 | L64: =AVERAGE('Input | Exit Fees'!H$8:I$9)*'Calc | Exit Fees'!L48 -> 0 | M64: =AVERAGE('Input | Exit Fees'!I$8:J$9)*'Calc | Exit Fees'!M48 -> 0 | N64: =AVERAGE('Input | Exit Fees'!J$8:K$9)*'Calc | Exit Fees'!N48 -> 0 | O64: =AVERAGE('Input | Exit Fees'!K$8:L$9)*'Calc | Exit Fees'!O48 -> 0
F65: 0 | G65: $m | K65: =AVERAGE('Input | Exit Fees'!G$8:H$9)*'Calc | Exit Fees'!K49 -> 0 | L65: =AVERAGE('Input | Exit Fees'!H$8:I$9)*'Calc | Exit Fees'!L49 -> 0 | M65: =AVERAGE('Input | Exit Fees'!I$8:J$9)*'Calc | Exit Fees'!M49 -> 0 | N65: =AVERAGE('Input | Exit Fees'!J$8:K$9)*'Calc | Exit Fees'!N49 -> 0 | O65: =AVERAGE('Input | Exit Fees'!K$8:L$9)*'Calc | Exit Fees'!O49 -> 0
F66: 0 | G66: $m | K66: =AVERAGE('Input | Exit Fees'!G$8:H$9)*'Calc | Exit Fees'!K50 -> 0 | L66: =AVERAGE('Input | Exit Fees'!H$8:I$9)*'Calc | Exit Fees'!L50 -> 0 | M66: =AVERAGE('Input | Exit Fees'!I$8:J$9)*'Calc | Exit Fees'!M50 -> 0 | N66: =AVERAGE('Input | Exit Fees'!J$8:K$9)*'Calc | Exit Fees'!N50 -> 0 | O66: =AVERAGE('Input | Exit Fees'!K$8:L$9)*'Calc | Exit Fees'!O50 -> 0
F67: Total | G67: $m | K67: =SUM(K57:K66) -> 141 | L67: =SUM(L57:L66) -> 122.25 | M67: =SUM(M57:M66) -> 102 | N67: =SUM(N57:N66) -> 80.25 | O67: =SUM(O57:O66) -> 57.5
A68: =PRODUCT(J68:O68) -> 1 | K68: =(K67=AVERAGE('Input | Exit Fees'!G$8:H$9))/1 -> 1 | L68: =(L67=AVERAGE('Input | Exit Fees'!H$8:I$9))/1 -> 1 | M68: =(M67=AVERAGE('Input | Exit Fees'!I$8:J$9))/1 -> 1 | N68: =(N67=AVERAGE('Input | Exit Fees'!J$8:K$9))/1 -> 1 | O68: =(O67=AVERAGE('Input | Exit Fees'!K$8:L$9))/1 -> 1
E70: Allocated Meter RAB by Designated Exit Fee Per Meter | K70: Regulatory period
F71: Exit Fee | G71: Units | K71: =FPFirstYear -> 2021-22 | L71: =LEFT(K71,4)+1&"-"&RIGHT(K71,2)+1 -> 2022-23 | M71: =LEFT(L71,4)+1&"-"&RIGHT(L71,2)+1 -> 2023-24 | N71: =LEFT(M71,4)+1&"-"&RIGHT(M71,2)+1 -> 2024-25 | O71: =LEFT(N71,4)+1&"-"&RIGHT(N71,2)+1 -> 2025-26
F72: ='Input | Exit Fees'!$D$29:$D$38 -> Single phase | G72: $dollars | K72: =IFERROR(K57*10^6/K11,0) -> 193.2977913 | L72: 167.5932978 | M72: 139.8324448 | N72: 110.0152323 | O72: 78.82711348
F73: Multiphase | G73: $dollars | K73: 263.3823706 | L73: 228.3581192 | M73: 190.5319277 | N73: 149.903796 | O73: 107.4077043
F74: 0 | G74: $dollars | K74: 0 | L74: 0 | M74: 0 | N74: 0 | O74: 0
F75: 0 | G75: $dollars | K75: 0 | L75: 0 | M75: 0 | N75: 0 | O75: 0
F76: 0 | G76: $dollars | K76: 0 | L76: 0 | M76: 0 | N76: 0 | O76: 0
F77: 0 | G77: $dollars | K77: 0 | L77: 0 | M77: 0 | N77: 0 | O77: 0
F78: 0 | G78: $dollars | K78: 0 | L78: 0 | M78: 0 | N78: 0 | O78: 0
F79: 0 | G79: $dollars | K79: 0 | L79: 0 | M79: 0 | N79: 0 | O79: 0
F80: 0 | G80: $dollars | K80: 0 | L80: 0 | M80: 0 | N80: 0 | O80: 0
F81: 0 | G81: $dollars | K81: 0 | L81: 0 | M81: 0 | N81: 0 | O81: 0
B83: Calculations | Comms & IT
C85: Calculation of Allocated Comms & IT RAB by Designated Exit Fee
K87: Regulatory period
F88: Exit Fee Component | G88: Units | K88: =FPFirstYear -> 2021-22 | L88: =LEFT(K88,4)+1&"-"&RIGHT(K88,2)+1 -> 2022-23 | M88: =LEFT(L88,4)+1&"-"&RIGHT(L88,2)+1 -> 2023-24 | N88: =LEFT(M88,4)+1&"-"&RIGHT(M88,2)+1 -> 2024-25 | O88: =LEFT(N88,4)+1&"-"&RIGHT(N88,2)+1 -> 2025-26
F89: Comms & IT RAB per meter | G89: $dollars | K89: =(AVERAGE('Input | Exit Fees'!G$16:H$16)*10^6)/'Calc | Exit Fees'!K$21 -> 13.66906475 | L89: =(AVERAGE('Input | Exit Fees'!H$16:I$16)*10^6)/'Calc | Exit Fees'!L$21 -> 25.17985612 | M89: =(AVERAGE('Input | Exit Fees'!I$16:J$16)*10^6)/'Calc | Exit Fees'!M$21 -> 33.81294964 | N89: =(AVERAGE('Input | Exit Fees'!J$16:K$16)*10^6)/'Calc | Exit Fees'!N$21 -> 39.56834532 | O89: =(AVERAGE('Input | Exit Fees'!K$16:L$16)*10^6)/'Calc | Exit Fees'!O$21 -> 43.16546763
B96: Calculations | Exit Fees with Component Detail
F98: Base Year | G98: Regulatory period
G99: Tariff ($/year)
C100: No. | D100: Exit Fee Name | E100: Component | F100: 2020-21 | G100: 2021-22 | H100: 2022-23 | I100: 2023-24 | J100: 2024-25 | K100: 2025-26
C101: 1 | D101: ='Input | Exit Fees'!D29 -> Single phase
E102: Meter RAB | G102: =IF($D101=0,0,SUMIFS('Calc | Exit Fees'!K$72:K$81,'Input | Exit Fees'!$D$29:$D$38,$D101)) -> 193.2977913 | H102: =IF($D101=0,0,SUMIFS('Calc | Exit Fees'!L$72:L$81,'Input | Exit Fees'!$D$29:$D$38,$D101)) -> 167.5932978 | I102: =IF($D101=0,0,SUMIFS('Calc | Exit Fees'!M$72:M$81,'Input | Exit Fees'!$D$29:$D$38,$D101)) -> 139.8324448 | J102: =IF($D101=0,0,SUMIFS('Calc | Exit Fees'!N$72:N$81,'Input | Exit Fees'!$D$29:$D$38,$D101)) -> 110.0152323 | K102: =IF($D101=0,0,SUMIFS('Calc | Exit Fees'!O$72:O$81,'Input | Exit Fees'!$D$29:$D$38,$D101)) -> 78.82711348
E103: Comms & IT | G103: =IF($D101=0,0,'Calc | Exit Fees'!K$89) -> 13.66906475 | H103: =IF($D101=0,0,'Calc | Exit Fees'!L$89) -> 25.17985612 | I103: =IF($D101=0,0,'Calc | Exit Fees'!M$89) -> 33.81294964 | J103: =IF($D101=0,0,'Calc | Exit Fees'!N$89) -> 39.56834532 | K103: =IF($D101=0,0,'Calc | Exit Fees'!O$89) -> 43.16546763
E104: Admin cost | G104: =IF($D101=0,0,'Input | Exit Fees'!K$119) -> 74 | H104: =IF($D101=0,0,'Input | Exit Fees'!L$119) -> 74 | I104: =IF($D101=0,0,'Input | Exit Fees'!M$119) -> 74 | J104: =IF($D101=0,0,'Input | Exit Fees'!N$119) -> 74 | K104: =IF($D101=0,0,'Input | Exit Fees'!O$119) -> 74
E106: TOTAL exit fee | F106: =IF(D101=0,0,'Input | Exit Fees'!G29) -> 300 | G106: =SUM(G102:G105) -> 280.9668561 | H106: =SUM(H102:H105) -> 266.7731539 | I106: 247.6453944 | J106: 223.5835776 | K106: 195.9925811
C107: 2 | D107: ='Input | Exit Fees'!D30 -> Multiphase
E108: =IF($D107=0,"",E$102) -> Meter RAB | G108: =IF($D107=0,0,SUMIFS('Calc | Exit Fees'!K$72:K$81,'Input | Exit Fees'!$D$29:$D$38,$D107)) -> 263.3823706 | H108: =IF($D107=0,0,SUMIFS('Calc | Exit Fees'!L$72:L$81,'Input | Exit Fees'!$D$29:$D$38,$D107)) -> 228.3581192 | I108: =IF($D107=0,0,SUMIFS('Calc | Exit Fees'!M$72:M$81,'Input | Exit Fees'!$D$29:$D$38,$D107)) -> 190.5319277 | J108: =IF($D107=0,0,SUMIFS('Calc | Exit Fees'!N$72:N$81,'Input | Exit Fees'!$D$29:$D$38,$D107)) -> 149.903796 | K108: =IF($D107=0,0,SUMIFS('Calc | Exit Fees'!O$72:O$81,'Input | Exit Fees'!$D$29:$D$38,$D107)) -> 107.4077043
E109: =IF($D107=0,"",E$103) -> Comms & IT | G109: =IF($D107=0,0,'Calc | Exit Fees'!K$89) -> 13.66906475 | H109: =IF($D107=0,0,'Calc | Exit Fees'!L$89) -> 25.17985612 | I109: =IF($D107=0,0,'Calc | Exit Fees'!M$89) -> 33.81294964 | J109: =IF($D107=0,0,'Calc | Exit Fees'!N$89) -> 39.56834532 | K109: =IF($D107=0,0,'Calc | Exit Fees'!O$89) -> 43.16546763
E110: =IF($D107=0,"",E$104) -> Admin cost | G110: =IF($D107=0,0,'Input | Exit Fees'!K$119) -> 74 | H110: =IF($D107=0,0,'Input | Exit Fees'!L$119) -> 74 | I110: =IF($D107=0,0,'Input | Exit Fees'!M$119) -> 74 | J110: =IF($D107=0,0,'Input | Exit Fees'!N$119) -> 74 | K110: =IF($D107=0,0,'Input | Exit Fees'!O$119) -> 74
E112: =IF($D107=0,"",E$106) -> TOTAL exit fee | F112: =IF(D107=0,0,'Input | Exit Fees'!G30) -> 500 | G112: =SUM(G108:G111) -> 351.0514354 | H112: =SUM(H108:H111) -> 327.5379753 | I112: 298.3448773 | J112: 263.4721414 | K112: 224.573172
C113: 3 | D113: ='Input | Exit Fees'!D31 -> 0
E114: =IF($D113=0,"",E$102) ->  | G114: =IF($D113=0,0,SUMIFS('Calc | Exit Fees'!K$72:K$81,'Input | Exit Fees'!$D$29:$D$38,$D113)) -> 0 | H114: =IF($D113=0,0,SUMIFS('Calc | Exit Fees'!L$72:L$81,'Input | Exit Fees'!$D$29:$D$38,$D113)) -> 0 | I114: =IF($D113=0,0,SUMIFS('Calc | Exit Fees'!M$72:M$81,'Input | Exit Fees'!$D$29:$D$38,$D113)) -> 0 | J114: =IF($D113=0,0,SUMIFS('Calc | Exit Fees'!N$72:N$81,'Input | Exit Fees'!$D$29:$D$38,$D113)) -> 0 | K114: =IF($D113=0,0,SUMIFS('Calc | Exit Fees'!O$72:O$81,'Input | Exit Fees'!$D$29:$D$38,$D113)) -> 0
E115: =IF($D113=0,"",E$103) ->  | G115: =IF($D113=0,0,'Calc | Exit Fees'!K$89) -> 0 | H115: =IF($D113=0,0,'Calc | Exit Fees'!L$89) -> 0 | I115: =IF($D113=0,0,'Calc | Exit Fees'!M$89) -> 0 | J115: =IF($D113=0,0,'Calc | Exit Fees'!N$89) -> 0 | K115: =IF($D113=0,0,'Calc | Exit Fees'!O$89) -> 0
E116: =IF($D113=0,"",E$104) ->  | G116: =IF($D113=0,0,'Input | Exit Fees'!K$119) -> 0 | H116: =IF($D113=0,0,'Input | Exit Fees'!L$119) -> 0 | I116: =IF($D113=0,0,'Input | Exit Fees'!M$119) -> 0 | J116: =IF($D113=0,0,'Input | Exit Fees'!N$119) -> 0 | K116: =IF($D113=0,0,'Input | Exit Fees'!O$119) -> 0
E118: =IF($D113=0,"",E$106) ->  | F118: =IF(D113=0,0,'Input | Exit Fees'!G31) -> 0 | G118: =SUM(G114:G117) -> 0 | H118: =SUM(H114:H117) -> 0 | I118: 0 | J118: 0 | K118: 0
C119: 4 | D119: ='Input | Exit Fees'!D32 -> 0
E120: =IF($D119=0,"",E$102) ->  | G120: =IF($D119=0,0,SUMIFS('Calc | Exit Fees'!K$72:K$81,'Input | Exit Fees'!$D$29:$D$38,$D119)) -> 0 | H120: =IF($D119=0,0,SUMIFS('Calc | Exit Fees'!L$72:L$81,'Input | Exit Fees'!$D$29:$D$38,$D119)) -> 0 | I120: =IF($D119=0,0,SUMIFS('Calc | Exit Fees'!M$72:M$81,'Input | Exit Fees'!$D$29:$D$38,$D119)) -> 0 | J120: =IF($D119=0,0,SUMIFS('Calc | Exit Fees'!N$72:N$81,'Input | Exit Fees'!$D$29:$D$38,$D119)) -> 0 | K120: =IF($D119=0,0,SUMIFS('Calc | Exit Fees'!O$72:O$81,'Input | Exit Fees'!$D$29:$D$38,$D119)) -> 0
E121: =IF($D119=0,"",E$103) ->  | G121: =IF($D119=0,0,'Calc | Exit Fees'!K$89) -> 0 | H121: =IF($D119=0,0,'Calc | Exit Fees'!L$89) -> 0 | I121: =IF($D119=0,0,'Calc | Exit Fees'!M$89) -> 0 | J121: =IF($D119=0,0,'Calc | Exit Fees'!N$89) -> 0 | K121: =IF($D119=0,0,'Calc | Exit Fees'!O$89) -> 0
E122: =IF($D119=0,"",E$104) ->  | G122: =IF($D119=0,0,'Input | Exit Fees'!K$119) -> 0 | H122: =IF($D119=0,0,'Input | Exit Fees'!L$119) -> 0 | I122: =IF($D119=0,0,'Input | Exit Fees'!M$119) -> 0 | J122: =IF($D119=0,0,'Input | Exit Fees'!N$119) -> 0 | K122: =IF($D119=0,0,'Input | Exit Fees'!O$119) -> 0
E124: =IF($D119=0,"",E$106) ->  | F124: =IF(D119=0,0,'Input | Exit Fees'!G32) -> 0 | G124: =SUM(G120:G123) -> 0 | H124: =SUM(H120:H123) -> 0 | I124: 0 | J124: 0 | K124: 0
C125: 5 | D125: ='Input | Exit Fees'!D33 -> 0
E126: =IF($D125=0,"",E$102) ->  | G126: =IF($D125=0,0,SUMIFS('Calc | Exit Fees'!K$72:K$81,'Input | Exit Fees'!$D$29:$D$38,$D125)) -> 0 | H126: =IF($D125=0,0,SUMIFS('Calc | Exit Fees'!L$72:L$81,'Input | Exit Fees'!$D$29:$D$38,$D125)) -> 0 | I126: =IF($D125=0,0,SUMIFS('Calc | Exit Fees'!M$72:M$81,'Input | Exit Fees'!$D$29:$D$38,$D125)) -> 0 | J126: =IF($D125=0,0,SUMIFS('Calc | Exit Fees'!N$72:N$81,'Input | Exit Fees'!$D$29:$D$38,$D125)) -> 0 | K126: =IF($D125=0,0,SUMIFS('Calc | Exit Fees'!O$72:O$81,'Input | Exit Fees'!$D$29:$D$38,$D125)) -> 0
E127: =IF($D125=0,"",E$103) ->  | G127: =IF($D125=0,0,'Calc | Exit Fees'!K$89) -> 0 | H127: =IF($D125=0,0,'Calc | Exit Fees'!L$89) -> 0 | I127: =IF($D125=0,0,'Calc | Exit Fees'!M$89) -> 0 | J127: =IF($D125=0,0,'Calc | Exit Fees'!N$89) -> 0 | K127: =IF($D125=0,0,'Calc | Exit Fees'!O$89) -> 0
E128: =IF($D125=0,"",E$104) ->  | G128: =IF($D125=0,0,'Input | Exit Fees'!K$119) -> 0 | H128: =IF($D125=0,0,'Input | Exit Fees'!L$119) -> 0 | I128: =IF($D125=0,0,'Input | Exit Fees'!M$119) -> 0 | J128: =IF($D125=0,0,'Input | Exit Fees'!N$119) -> 0 | K128: =IF($D125=0,0,'Input | Exit Fees'!O$119) -> 0
E130: =IF($D125=0,"",E$106) ->  | F130: =IF(D125=0,0,'Input | Exit Fees'!G33) -> 0 | G130: =SUM(G126:G129) -> 0 | H130: =SUM(H126:H129) -> 0 | I130: 0 | J130: 0 | K130: 0
C131: 6 | D131: ='Input | Exit Fees'!D34 -> 0
E132: =IF($D131=0,"",E$102) ->  | G132: =IF($D131=0,0,SUMIFS('Calc | Exit Fees'!K$72:K$81,'Input | Exit Fees'!$D$29:$D$38,$D131)) -> 0 | H132: =IF($D131=0,0,SUMIFS('Calc | Exit Fees'!L$72:L$81,'Input | Exit Fees'!$D$29:$D$38,$D131)) -> 0 | I132: =IF($D131=0,0,SUMIFS('Calc | Exit Fees'!M$72:M$81,'Input | Exit Fees'!$D$29:$D$38,$D131)) -> 0 | J132: =IF($D131=0,0,SUMIFS('Calc | Exit Fees'!N$72:N$81,'Input | Exit Fees'!$D$29:$D$38,$D131)) -> 0 | K132: =IF($D131=0,0,SUMIFS('Calc | Exit Fees'!O$72:O$81,'Input | Exit Fees'!$D$29:$D$38,$D131)) -> 0
E133: =IF($D131=0,"",E$103) ->  | G133: =IF($D131=0,0,'Calc | Exit Fees'!K$89) -> 0 | H133: =IF($D131=0,0,'Calc | Exit Fees'!L$89) -> 0 | I133: =IF($D131=0,0,'Calc | Exit Fees'!M$89) -> 0 | J133: =IF($D131=0,0,'Calc | Exit Fees'!N$89) -> 0 | K133: =IF($D131=0,0,'Calc | Exit Fees'!O$89) -> 0
E134: =IF($D131=0,"",E$104) ->  | G134: =IF($D131=0,0,'Input | Exit Fees'!K$119) -> 0 | H134: =IF($D131=0,0,'Input | Exit Fees'!L$119) -> 0 | I134: =IF($D131=0,0,'Input | Exit Fees'!M$119) -> 0 | J134: =IF($D131=0,0,'Input | Exit Fees'!N$119) -> 0 | K134: =IF($D131=0,0,'Input | Exit Fees'!O$119) -> 0
E136: =IF($D131=0,"",E$106) ->  | F136: =IF(D131=0,0,'Input | Exit Fees'!G34) -> 0 | G136: =SUM(G132:G135) -> 0 | H136: =SUM(H132:H135) -> 0 | I136: 0 | J136: 0 | K136: 0
C137: 7 | D137: ='Input | Exit Fees'!D35 -> 0
E138: =IF($D137=0,"",E$102) ->  | G138: =IF($D137=0,0,SUMIFS('Calc | Exit Fees'!K$72:K$81,'Input | Exit Fees'!$D$29:$D$38,$D137)) -> 0 | H138: =IF($D137=0,0,SUMIFS('Calc | Exit Fees'!L$72:L$81,'Input | Exit Fees'!$D$29:$D$38,$D137)) -> 0 | I138: =IF($D137=0,0,SUMIFS('Calc | Exit Fees'!M$72:M$81,'Input | Exit Fees'!$D$29:$D$38,$D137)) -> 0 | J138: =IF($D137=0,0,SUMIFS('Calc | Exit Fees'!N$72:N$81,'Input | Exit Fees'!$D$29:$D$38,$D137)) -> 0 | K138: =IF($D137=0,0,SUMIFS('Calc | Exit Fees'!O$72:O$81,'Input | Exit Fees'!$D$29:$D$38,$D137)) -> 0
E139: =IF($D137=0,"",E$103) ->  | G139: =IF($D137=0,0,'Calc | Exit Fees'!K$89) -> 0 | H139: =IF($D137=0,0,'Calc | Exit Fees'!L$89) -> 0 | I139: =IF($D137=0,0,'Calc | Exit Fees'!M$89) -> 0 | J139: =IF($D137=0,0,'Calc | Exit Fees'!N$89) -> 0 | K139: =IF($D137=0,0,'Calc | Exit Fees'!O$89) -> 0
E140: =IF($D137=0,"",E$104) ->  | G140: =IF($D137=0,0,'Input | Exit Fees'!K$119) -> 0 | H140: =IF($D137=0,0,'Input | Exit Fees'!L$119) -> 0 | I140: =IF($D137=0,0,'Input | Exit Fees'!M$119) -> 0 | J140: =IF($D137=0,0,'Input | Exit Fees'!N$119) -> 0 | K140: =IF($D137=0,0,'Input | Exit Fees'!O$119) -> 0
E142: =IF($D137=0,"",E$106) ->  | F142: =IF(D137=0,0,'Input | Exit Fees'!G35) -> 0 | G142: =SUM(G138:G141) -> 0 | H142: =SUM(H138:H141) -> 0 | I142: 0 | J142: 0 | K142: 0
C143: 8 | D143: ='Input | Exit Fees'!D36 -> 0
E144: =IF($D143=0,"",E$102) ->  | G144: =IF($D143=0,0,SUMIFS('Calc | Exit Fees'!K$72:K$81,'Input | Exit Fees'!$D$29:$D$38,$D143)) -> 0 | H144: =IF($D143=0,0,SUMIFS('Calc | Exit Fees'!L$72:L$81,'Input | Exit Fees'!$D$29:$D$38,$D143)) -> 0 | I144: =IF($D143=0,0,SUMIFS('Calc | Exit Fees'!M$72:M$81,'Input | Exit Fees'!$D$29:$D$38,$D143)) -> 0 | J144: =IF($D143=0,0,SUMIFS('Calc | Exit Fees'!N$72:N$81,'Input | Exit Fees'!$D$29:$D$38,$D143)) -> 0 | K144: =IF($D143=0,0,SUMIFS('Calc | Exit Fees'!O$72:O$81,'Input | Exit Fees'!$D$29:$D$38,$D143)) -> 0
E145: =IF($D143=0,"",E$103) ->  | G145: =IF($D143=0,0,'Calc | Exit Fees'!K$89) -> 0 | H145: =IF($D143=0,0,'Calc | Exit Fees'!L$89) -> 0 | I145: =IF($D143=0,0,'Calc | Exit Fees'!M$89) -> 0 | J145: =IF($D143=0,0,'Calc | Exit Fees'!N$89) -> 0 | K145: =IF($D143=0,0,'Calc | Exit Fees'!O$89) -> 0
E146: =IF($D143=0,"",E$104) ->  | G146: =IF($D143=0,0,'Input | Exit Fees'!K$119) -> 0 | H146: =IF($D143=0,0,'Input | Exit Fees'!L$119) -> 0 | I146: =IF($D143=0,0,'Input | Exit Fees'!M$119) -> 0 | J146: =IF($D143=0,0,'Input | Exit Fees'!N$119) -> 0 | K146: =IF($D143=0,0,'Input | Exit Fees'!O$119) -> 0
E148: =IF($D143=0,"",E$106) ->  | F148: =IF(D143=0,0,'Input | Exit Fees'!G36) -> 0 | G148: =SUM(G144:G147) -> 0 | H148: =SUM(H144:H147) -> 0 | I148: 0 | J148: 0 | K148: 0
C149: 9 | D149: ='Input | Exit Fees'!D37 -> 0
E150: =IF($D149=0,"",E$102) ->  | G150: =IF($D149=0,0,SUMIFS('Calc | Exit Fees'!K$72:K$81,'Input | Exit Fees'!$D$29:$D$38,$D149)) -> 0 | H150: =IF($D149=0,0,SUMIFS('Calc | Exit Fees'!L$72:L$81,'Input | Exit Fees'!$D$29:$D$38,$D149)) -> 0 | I150: =IF($D149=0,0,SUMIFS('Calc | Exit Fees'!M$72:M$81,'Input | Exit Fees'!$D$29:$D$38,$D149)) -> 0 | J150: =IF($D149=0,0,SUMIFS('Calc | Exit Fees'!N$72:N$81,'Input | Exit Fees'!$D$29:$D$38,$D149)) -> 0 | K150: =IF($D149=0,0,SUMIFS('Calc | Exit Fees'!O$72:O$81,'Input | Exit Fees'!$D$29:$D$38,$D149)) -> 0
E151: =IF($D149=0,"",E$103) ->  | G151: =IF($D149=0,0,'Calc | Exit Fees'!K$89) -> 0 | H151: =IF($D149=0,0,'Calc | Exit Fees'!L$89) -> 0 | I151: =IF($D149=0,0,'Calc | Exit Fees'!M$89) -> 0 | J151: =IF($D149=0,0,'Calc | Exit Fees'!N$89) -> 0 | K151: =IF($D149=0,0,'Calc | Exit Fees'!O$89) -> 0
E152: =IF($D149=0,"",E$104) ->  | G152: =IF($D149=0,0,'Input | Exit Fees'!K$119) -> 0 | H152: =IF($D149=0,0,'Input | Exit Fees'!L$119) -> 0 | I152: =IF($D149=0,0,'Input | Exit Fees'!M$119) -> 0 | J152: =IF($D149=0,0,'Input | Exit Fees'!N$119) -> 0 | K152: =IF($D149=0,0,'Input | Exit Fees'!O$119) -> 0
E154: =IF($D149=0,"",E$106) ->  | F154: =IF(D149=0,0,'Input | Exit Fees'!G37) -> 0 | G154: =SUM(G150:G153) -> 0 | H154: =SUM(H150:H153) -> 0 | I154: 0 | J154: 0 | K154: 0
C155: 10 | D155: ='Input | Exit Fees'!D38 -> 0
E156: =IF($D155=0,"",E$102) ->  | G156: =IF($D155=0,0,SUMIFS('Calc | Exit Fees'!K$72:K$81,'Input | Exit Fees'!$D$29:$D$38,$D155)) -> 0 | H156: =IF($D155=0,0,SUMIFS('Calc | Exit Fees'!L$72:L$81,'Input | Exit Fees'!$D$29:$D$38,$D155)) -> 0 | I156: =IF($D155=0,0,SUMIFS('Calc | Exit Fees'!M$72:M$81,'Input | Exit Fees'!$D$29:$D$38,$D155)) -> 0 | J156: =IF($D155=0,0,SUMIFS('Calc | Exit Fees'!N$72:N$81,'Input | Exit Fees'!$D$29:$D$38,$D155)) -> 0 | K156: =IF($D155=0,0,SUMIFS('Calc | Exit Fees'!O$72:O$81,'Input | Exit Fees'!$D$29:$D$38,$D155)) -> 0
E157: =IF($D155=0,"",E$103) ->  | G157: =IF($D155=0,0,'Calc | Exit Fees'!K$89) -> 0 | H157: =IF($D155=0,0,'Calc | Exit Fees'!L$89) -> 0 | I157: =IF($D155=0,0,'Calc | Exit Fees'!M$89) -> 0 | J157: =IF($D155=0,0,'Calc | Exit Fees'!N$89) -> 0 | K157: =IF($D155=0,0,'Calc | Exit Fees'!O$89) -> 0
E158: =IF($D155=0,"",E$104) ->  | G158: =IF($D155=0,0,'Input | Exit Fees'!K$119) -> 0 | H158: =IF($D155=0,0,'Input | Exit Fees'!L$119) -> 0 | I158: =IF($D155=0,0,'Input | Exit Fees'!M$119) -> 0 | J158: =IF($D155=0,0,'Input | Exit Fees'!N$119) -> 0 | K158: =IF($D155=0,0,'Input | Exit Fees'!O$119) -> 0
E160: =IF($D155=0,"",E$106) ->  | F160: =IF(D155=0,0,'Input | Exit Fees'!G38) -> 0 | G160: =SUM(G156:G159) -> 0 | H160: =SUM(H156:H159) -> 0 | I160: 0 | J160: 0 | K160: 0

Sheet Output | Exit Fee price caps
B1: ='Title Page'!B8&" v"&'Title Page'!$C$10 -> Preliminary Standardised Metering Pricing Model v1 | M1: DNSP: | N1: D
B2: =MID(CELL("filename",A1),FIND("]",CELL("filename",A1))+1,255) -> Output | Exit Fee price caps | H2: Key: | I2: Input | J2: External Link | K2: Internal Link
C5: Applicable Exit Fees Price Caps
H7: Base Year | I7: Regulatory Period
D8: Exit Fee Name | F8: Units | G8: Basis | H8: 2020-21 | I8: 2021-22 | J8: 2022-23 | K8: 2023-24 | L8: 2024-25 | M8: 2025-26
D9: =D25 -> Single phase | F9: $dollars | G9: nominal | H9: =ROUND(H25,2) -> 300 | I9: =IF(I25=0,0,ROUND(H9*(1-I45)*(1+I$41),2)) -> 280.97 | J9: 266.78 | K9: 247.65 | L9: 223.59 | M9: 196
D10: =D26 -> Multiphase | F10: $dollars | G10: nominal | H10: 500 | I10: 351.05 | J10: 327.54 | K10: 298.35 | L10: 263.48 | M10: 224.58
D11: 0 | F11: $dollars | G11: nominal | H11: =ROUND(H27,2) -> 0 | I11: =IF(I27=0,0,ROUND(H11*(1-I47)*(1+I$41),2)) -> 0 | J11: =IF(J27=0,0,ROUND(I11*(1-J47)*(1+J$41),2)) -> 0 | K11: 0 | L11: 0 | M11: 0
D12: 0 | F12: $dollars | G12: nominal | H12: 0 | I12: 0 | J12: 0 | K12: 0 | L12: 0 | M12: 0
D13: 0 | F13: $dollars | G13: nominal | H13: 0 | I13: 0 | J13: 0 | K13: 0 | L13: 0 | M13: 0
D14: 0 | F14: $dollars | G14: nominal | H14: 0 | I14: 0 | J14: 0 | K14: 0 | L14: 0 | M14: 0
D15: 0 | F15: $dollars | G15: nominal | H15: 0 | I15: 0 | J15: 0 | K15: 0 | L15: 0 | M15: 0
D16: 0 | F16: $dollars | G16: nominal | H16: 0 | I16: 0 | J16: 0 | K16: 0 | L16: 0 | M16: 0
D17: 0 | F17: $dollars | G17: nominal | H17: 0 | I17: 0 | J17: 0 | K17: 0 | L17: 0 | M17: 0
D18: 0 | F18: $dollars | G18: nominal | H18: 0 | I18: 0 | J18: 0 | K18: 0 | L18: 0 | M18: 0
C21: Exit Fees Per Meter
H23: Base Year | I23: Regulatory Period
D24: Exit Fee Name | F24: Units | G24: Basis | H24: 2020-21 | I24: 2021-22 | J24: 2022-23 | K24: 2023-24 | L24: 2024-25 | M24: 2025-26
D25: ='Input | Exit Fees'!$D29 -> Single phase | F25: $dollars | G25: nominal | H25: =INDEX(Table3[2020-21],MATCH('Output | Exit Fee price caps'!$D25,Table3[[Exit Fee Name]:[Exit Fee Name]],0)+5) -> 300 | I25: =INDEX(Table3[2021-22],MATCH('Output | Exit Fee price caps'!$D25,Table3[[Exit Fee Name]:[Exit Fee Name]],0)+5) -> 280.9668561 | J25: =INDEX(Table3[2022-23],MATCH('Output | Exit Fee price caps'!$D25,Table3[[Exit Fee Name]:[Exit Fee Name]],0)+5) -> 266.7731539 | K25: =INDEX(Table3[2023-24],MATCH('Output | Exit Fee price caps'!$D25,Table3[[Exit Fee Name]:[Exit Fee Name]],0)+5) -> 247.6453944 | L25: =INDEX(Table3[2024-25],MATCH('Output | Exit Fee price caps'!$D25,Table3[[Exit Fee Name]:[Exit Fee Name]],0)+5) -> 223.5835776 | M25: =INDEX(Table3[2025-26],MATCH('Output | Exit Fee price caps'!$D25,Table3[[Exit Fee Name]:[Exit Fee Name]],0)+5) -> 195.9925811
D26: ='Input | Exit Fees'!$D30 -> Multiphase | F26: $dollars | G26: nominal | H26: =INDEX(Table3[2020-21],MATCH('Output | Exit Fee price caps'!$D26,Table3[[Exit Fee Name]:[Exit Fee Name]],0)+5) -> 500 | I26: =INDEX(Table3[2021-22],MATCH('Output | Exit Fee price caps'!$D26,Table3[[Exit Fee Name]:[Exit Fee Name]],0)+5) -> 351.0514354 | J26: =INDEX(Table3[2022-23],MATCH('Output | Exit Fee price caps'!$D26,Table3[[Exit Fee Name]:[Exit Fee Name]],0)+5) -> 327.5379753 | K26: =INDEX(Table3[2023-24],MATCH('Output | Exit Fee price caps'!$D26,Table3[[Exit Fee Name]:[Exit Fee Name]],0)+5) -> 298.3448773 | L26: =INDEX(Table3[2024-25],MATCH('Output | Exit Fee price caps'!$D26,Table3[[Exit Fee Name]:[Exit Fee Name]],0)+5) -> 263.4721414 | M26: =INDEX(Table3[2025-26],MATCH('Output | Exit Fee price caps'!$D26,Table3[[Exit Fee Name]:[Exit Fee Name]],0)+5) -> 224.573172
D27: ='Input | Exit Fees'!$D31 -> 0 | F27: $dollars | G27: nominal | H27: =INDEX(Table3[2020-21],MATCH('Output | Exit Fee price caps'!$D27,Table3[[Exit Fee Name]:[Exit Fee Name]],0)+5) -> 0 | I27: =INDEX(Table3[2021-22],MATCH('Output | Exit Fee price caps'!$D27,Table3[[Exit Fee Name]:[Exit Fee Name]],0)+5) -> 0 | J27: =INDEX(Table3[2022-23],MATCH('Output | Exit Fee price caps'!$D27,Table3[[Exit Fee Name]:[Exit Fee Name]],0)+5) -> 0 | K27: =INDEX(Table3[2023-24],MATCH('Output | Exit Fee price caps'!$D27,Table3[[Exit Fee Name]:[Exit Fee Name]],0)+5) -> 0 | L27: =INDEX(Table3[2024-25],MATCH('Output | Exit Fee price caps'!$D27,Table3[[Exit Fee Name]:[Exit Fee Name]],0)+5) -> 0 | M27: =INDEX(Table3[2025-26],MATCH('Output | Exit Fee price caps'!$D27,Table3[[Exit Fee Name]:[Exit Fee Name]],0)+5) -> 0
D28: ='Input | Exit Fees'!$D32 -> 0 | F28: $dollars | G28: nominal | H28: =INDEX(Table3[2020-21],MATCH('Output | Exit Fee price caps'!$D28,Table3[[Exit Fee Name]:[Exit Fee Name]],0)+5) -> 0 | I28: =INDEX(Table3[2021-22],MATCH('Output | Exit Fee price caps'!$D28,Table3[[Exit Fee Name]:[Exit Fee Name]],0)+5) -> 0 | J28: =INDEX(Table3[2022-23],MATCH('Output | Exit Fee price caps'!$D28,Table3[[Exit Fee Name]:[Exit Fee Name]],0)+5) -> 0 | K28: =INDEX(Table3[2023-24],MATCH('Output | Exit Fee price caps'!$D28,Table3[[Exit Fee Name]:[Exit Fee Name]],0)+5) -> 0 | L28: =INDEX(Table3[2024-25],MATCH('Output | Exit Fee price caps'!$D28,Table3[[Exit Fee Name]:[Exit Fee Name]],0)+5) -> 0 | M28: =INDEX(Table3[2025-26],MATCH('Output | Exit Fee price caps'!$D28,Table3[[Exit Fee Name]:[Exit Fee Name]],0)+5) -> 0
D29: ='Input | Exit Fees'!$D33 -> 0 | F29: $dollars | G29: nominal | H29: =INDEX(Table3[2020-21],MATCH('Output | Exit Fee price caps'!$D29,Table3[[Exit Fee Name]:[Exit Fee Name]],0)+5) -> 0 | I29: =INDEX(Table3[2021-22],MATCH('Output | Exit Fee price caps'!$D29,Table3[[Exit Fee Name]:[Exit Fee Name]],0)+5) -> 0 | J29: =INDEX(Table3[2022-23],MATCH('Output | Exit Fee price caps'!$D29,Table3[[Exit Fee Name]:[Exit Fee Name]],0)+5) -> 0 | K29: =INDEX(Table3[2023-24],MATCH('Output | Exit Fee price caps'!$D29,Table3[[Exit Fee Name]:[Exit Fee Name]],0)+5) -> 0 | L29: =INDEX(Table3[2024-25],MATCH('Output | Exit Fee price caps'!$D29,Table3[[Exit Fee Name]:[Exit Fee Name]],0)+5) -> 0 | M29: =INDEX(Table3[2025-26],MATCH('Output | Exit Fee price caps'!$D29,Table3[[Exit Fee Name]:[Exit Fee Name]],0)+5) -> 0
D30: ='Input | Exit Fees'!$D34 -> 0 | F30: $dollars | G30: nominal | H30: =INDEX(Table3[2020-21],MATCH('Output | Exit Fee price caps'!$D30,Table3[[Exit Fee Name]:[Exit Fee Name]],0)+5) -> 0 | I30: =INDEX(Table3[2021-22],MATCH('Output | Exit Fee price caps'!$D30,Table3[[Exit Fee Name]:[Exit Fee Name]],0)+5) -> 0 | J30: =INDEX(Table3[2022-23],MATCH('Output | Exit Fee price caps'!$D30,Table3[[Exit Fee Name]:[Exit Fee Name]],0)+5) -> 0 | K30: =INDEX(Table3[2023-24],MATCH('Output | Exit Fee price caps'!$D30,Table3[[Exit Fee Name]:[Exit Fee Name]],0)+5) -> 0 | L30: =INDEX(Table3[2024-25],MATCH('Output | Exit Fee price caps'!$D30,Table3[[Exit Fee Name]:[Exit Fee Name]],0)+5) -> 0 | M30: =INDEX(Table3[2025-26],MATCH('Output | Exit Fee price caps'!$D30,Table3[[Exit Fee Name]:[Exit Fee Name]],0)+5) -> 0
D31: ='Input | Exit Fees'!$D35 -> 0 | F31: $dollars | G31: nominal | H31: =INDEX(Table3[2020-21],MATCH('Output | Exit Fee price caps'!$D31,Table3[[Exit Fee Name]:[Exit Fee Name]],0)+5) -> 0 | I31: =INDEX(Table3[2021-22],MATCH('Output | Exit Fee price caps'!$D31,Table3[[Exit Fee Name]:[Exit Fee Name]],0)+5) -> 0 | J31: =INDEX(Table3[2022-23],MATCH('Output | Exit Fee price caps'!$D31,Table3[[Exit Fee Name]:[Exit Fee Name]],0)+5) -> 0 | K31: =INDEX(Table3[2023-24],MATCH('Output | Exit Fee price caps'!$D31,Table3[[Exit Fee Name]:[Exit Fee Name]],0)+5) -> 0 | L31: =INDEX(Table3[2024-25],MATCH('Output | Exit Fee price caps'!$D31,Table3[[Exit Fee Name]:[Exit Fee Name]],0)+5) -> 0 | M31: =INDEX(Table3[2025-26],MATCH('Output | Exit Fee price caps'!$D31,Table3[[Exit Fee Name]:[Exit Fee Name]],0)+5) -> 0
D32: ='Input | Exit Fees'!$D36 -> 0 | F32: $dollars | G32: nominal | H32: =INDEX(Table3[2020-21],MATCH('Output | Exit Fee price caps'!$D32,Table3[[Exit Fee Name]:[Exit Fee Name]],0)+5) -> 0 | I32: =INDEX(Table3[2021-22],MATCH('Output | Exit Fee price caps'!$D32,Table3[[Exit Fee Name]:[Exit Fee Name]],0)+5) -> 0 | J32: =INDEX(Table3[2022-23],MATCH('Output | Exit Fee price caps'!$D32,Table3[[Exit Fee Name]:[Exit Fee Name]],0)+5) -> 0 | K32: =INDEX(Table3[2023-24],MATCH('Output | Exit Fee price caps'!$D32,Table3[[Exit Fee Name]:[Exit Fee Name]],0)+5) -> 0 | L32: =INDEX(Table3[2024-25],MATCH('Output | Exit Fee price caps'!$D32,Table3[[Exit Fee Name]:[Exit Fee Name]],0)+5) -> 0 | M32: =INDEX(Table3[2025-26],MATCH('Output | Exit Fee price caps'!$D32,Table3[[Exit Fee Name]:[Exit Fee Name]],0)+5) -> 0
D33: ='Input | Exit Fees'!$D37 -> 0 | F33: $dollars | G33: nominal | H33: =INDEX(Table3[2020-21],MATCH('Output | Exit Fee price caps'!$D33,Table3[[Exit Fee Name]:[Exit Fee Name]],0)+5) -> 0 | I33: =INDEX(Table3[2021-22],MATCH('Output | Exit Fee price caps'!$D33,Table3[[Exit Fee Name]:[Exit Fee Name]],0)+5) -> 0 | J33: =INDEX(Table3[2022-23],MATCH('Output | Exit Fee price caps'!$D33,Table3[[Exit Fee Name]:[Exit Fee Name]],0)+5) -> 0 | K33: =INDEX(Table3[2023-24],MATCH('Output | Exit Fee price caps'!$D33,Table3[[Exit Fee Name]:[Exit Fee Name]],0)+5) -> 0 | L33: =INDEX(Table3[2024-25],MATCH('Output | Exit Fee price caps'!$D33,Table3[[Exit Fee Name]:[Exit Fee Name]],0)+5) -> 0 | M33: =INDEX(Table3[2025-26],MATCH('Output | Exit Fee price caps'!$D33,Table3[[Exit Fee Name]:[Exit Fee Name]],0)+5) -> 0
D34: ='Input | Exit Fees'!$D38 -> 0 | F34: $dollars | G34: nominal | H34: =INDEX(Table3[2020-21],MATCH('Output | Exit Fee price caps'!$D34,Table3[[Exit Fee Name]:[Exit Fee Name]],0)+5) -> 0 | I34: =INDEX(Table3[2021-22],MATCH('Output | Exit Fee price caps'!$D34,Table3[[Exit Fee Name]:[Exit Fee Name]],0)+5) -> 0 | J34: =INDEX(Table3[2022-23],MATCH('Output | Exit Fee price caps'!$D34,Table3[[Exit Fee Name]:[Exit Fee Name]],0)+5) -> 0 | K34: =INDEX(Table3[2023-24],MATCH('Output | Exit Fee price caps'!$D34,Table3[[Exit Fee Name]:[Exit Fee Name]],0)+5) -> 0 | L34: =INDEX(Table3[2024-25],MATCH('Output | Exit Fee price caps'!$D34,Table3[[Exit Fee Name]:[Exit Fee Name]],0)+5) -> 0 | M34: =INDEX(Table3[2025-26],MATCH('Output | Exit Fee price caps'!$D34,Table3[[Exit Fee Name]:[Exit Fee Name]],0)+5) -> 0
C39: Xfactors
D41: CPI | F41: % | I41: ='Inputs | General'!H26 -> 0.02424874658 | J41: ='Inputs | General'!I26 -> 0.02424874658 | K41: ='Inputs | General'!J26 -> 0.02424874658 | L41: ='Inputs | General'!K26 -> 0.02424874658 | M41: ='Inputs | General'!L26 -> 0.02424874658
I43: =FPFirstYear -> 2021-22 | J43: =LEFT(I43,4)+1&"-"&RIGHT(I43,2)+1 -> 2022-23 | K43: =LEFT(J43,4)+1&"-"&RIGHT(J43,2)+1 -> 2023-24 | L43: =LEFT(K43,4)+1&"-"&RIGHT(K43,2)+1 -> 2024-25 | M43: =LEFT(L43,4)+1&"-"&RIGHT(L43,2)+1 -> 2025-26
D44: Exit Fee Name | F44: Units | I44: P_0 | J44: X_02 | K44: X_03 | L44: X_04 | M44: X_05
D45: ='Input | Exit Fees'!$D29 -> Single phase | F45: % | I45: =IFERROR(-1*(((I25/H25)/(1+I$41)-1)),"") -> 0.08561646766 | J45: 0.07299603825 | K45: 0.09367764717 | L45: 0.1185367623 | M45: 0.1441566311
D46: ='Input | Exit Fees'!$D30 -> Multiphase | F46: % | I46: 0.3145191799 | J46: 0.08906903358 | K46: 0.1106934644 | L46: 0.1377947266 | M46: 0.1678191248
D47: ='Input | Exit Fees'!$D31 -> 0 | F47: %
D48: ='Input | Exit Fees'!$D32 -> 0 | F48: %
D49: ='Input | Exit Fees'!$D33 -> 0 | F49: %
D50: ='Input | Exit Fees'!$D34 -> 0 | F50: %
D51: ='Input | Exit Fees'!$D35 -> 0 | F51: %
D52: ='Input | Exit Fees'!$D36 -> 0 | F52: %
D53: ='Input | Exit Fees'!$D37 -> 0 | F53: %
D54: ='Input | Exit Fees'!$D38 -> 0 | F54: %
C58: Cost Metric
H60: Base Year | I60: Regulatory Period
D61: Exit Fee Per Meter | F61: Units | G61: Basis | H61: 2020-21 | I61: 2021-22 | J61: 2022-23 | K61: 2023-24 | L61: 2024-25 | M61: 2025-26
D62: Volume Weighted Average Exit Fee - Per Meter | F62: $dollars | G62: nominal | H62: =SUMPRODUCT(H$25:H$34,'Calc | Exit Fees'!J$11:J$20)/'Calc | Exit Fees'!J$21 -> 327.3381295 | I62: =SUMPRODUCT(I$25:I$34,'Calc | Exit Fees'!K$11:K$20)/'Calc | Exit Fees'!K$21 -> 290.5467626 | J62: =SUMPRODUCT(J$25:J$34,'Calc | Exit Fees'!L$11:L$20)/'Calc | Exit Fees'!L$21 -> 275.0791367 | K62: =SUMPRODUCT(K$25:K$34,'Calc | Exit Fees'!M$11:M$20)/'Calc | Exit Fees'!M$21 -> 254.5755396 | L62: =SUMPRODUCT(L$25:L$34,'Calc | Exit Fees'!N$11:N$20)/'Calc | Exit Fees'!N$21 -> 229.0359712 | M62: =SUMPRODUCT(M$25:M$34,'Calc | Exit Fees'!O$11:O$20)/'Calc | Exit Fees'!O$21 -> 199.8992806

Sheet LUTs and Dropdowns
B1: ='Title Page'!B8&" v"&'Title Page'!$C$10 -> Preliminary Standardised Metering Pricing Model v1
B2: =MID(CELL("filename",A1),FIND("]",CELL("filename",A1))+1,255) -> LUTs and Dropdowns
B14: Model Use
B15: Price Cap
B16: Exit Fees (Vic)
B17: Show All Sheets
B20: Admin Charges
B21: Entered
B22: Calc-Fixed
B23: Calc-Hourly
